Body,Body Name,Posted Fiscal Date,Amount,Transaction Number,Supplier Name,Supplier Number,Directorate,Service,Activity,Cost Centre Code,Cost Centre Name,Subjective Name,Service Head,Redact,Remove,Reason
http://opendatacommunities.org/doc/london-borough-council/havering,London Borough of Havering,06/04/2016,71095.00,APR16L1,Suttons Primary School,500030,"Children, Adults & Housing",DSG Learning & Achievement Service,Primary,A72024,Suttons Primary,SCHOOL BANK ACCOUNTS,Sue Imbriano,,,
http://opendatacommunities.org/doc/london-borough-council/havering,London Borough of Havering,26/04/2016,91903.00,APR16L2,Suttons Primary School,500030,"Children, Adults & Housing",DSG Learning & Achievement Service,Primary,A72024,Suttons Primary,SCHOOL BANK ACCOUNTS,Sue Imbriano,,,
http://opendatacommunities.org/doc/london-borough-council/havering,London Borough of Havering,06/04/2016,70494.00,APR16L3,St Ursula's Roman Catholic Junior School,500046,"Children, Adults & Housing",DSG Learning & Achievement Service,Primary,A73504,St Ursulas Junior,SCHOOL BANK ACCOUNTS,Sue Imbriano,,,
http://opendatacommunities.org/doc/london-borough-council/havering,London Borough of Havering,26/04/2016,86671.00,APR16L4,St Ursula's Roman Catholic Junior School,500046,"Children, Adults & Housing",DSG Learning & Achievement Service,Primary,A73504,St Ursulas Junior,SCHOOL BANK ACCOUNTS,Sue Imbriano,,,
http://opendatacommunities.org/doc/london-borough-council/havering,London Borough of Havering,06/04/2016,101771.00,APR16L5,Elm Park Primary,500047,"Children, Adults & Housing",DSG Learning & Achievement Service,Primary,A72008,Elm Park Primary,SCHOOL BANK ACCOUNTS,Sue Imbriano,,,
http://opendatacommunities.org/doc/london-borough-council/havering,London Borough of Havering,26/04/2016,2280.49,APR16L6,Elm Park Primary,500047,oneSource Non-Shared LBH,Strategic HR & OD,People & Change,A47020,Union Costs,STATUTORY MATERNITY AND PATERNITY PAY,Caroline Nugent,,,
http://opendatacommunities.org/doc/london-borough-council/havering,London Borough of Havering,25/04/2016,127967.00,APR16L7,Elm Park Primary,500047,"Children, Adults & Housing",DSG Learning & Achievement Service,Primary,A72008,Elm Park Primary,SCHOOL BANK ACCOUNTS,Sue Imbriano,,,
http://opendatacommunities.org/doc/london-borough-council/havering,London Borough of Havering,28/04/2016,552.57,APR16L8,Elm Park Primary,500047,"Children, Adults & Housing",Learning & Achievement,Personnel Quality and Assurance,A35655,Sickness Insurance Scheme,STAFF OTHER EXPENSES,Sue Imbriano,,,
http://opendatacommunities.org/doc/london-borough-council/havering,London Borough of Havering,05/04/2016,1836.06,APR16L9,Elm Park Primary,500047,"Children, Adults & Housing",Learning & Achievement,Personnel Quality and Assurance,A35655,Sickness Insurance Scheme,STAFF OTHER EXPENSES,Sue Imbriano,,,
http://opendatacommunities.org/doc/london-borough-council/havering,London Borough of Havering,06/04/2016,76706.00,APR16L10,Squirrels Heath Infant School,500049,"Children, Adults & Housing",DSG Learning & Achievement Service,Primary,A72062,Squir'L Heath Infant,SCHOOL BANK ACCOUNTS,Sue Imbriano,,,
http://opendatacommunities.org/doc/london-borough-council/havering,London Borough of Havering,26/04/2016,102612.00,APR16L11,Squirrels Heath Infant School,500049,"Children, Adults & Housing",DSG Learning & Achievement Service,Primary,A72062,Squir'L Heath Infant,SCHOOL BANK ACCOUNTS,Sue Imbriano,,,
http://opendatacommunities.org/doc/london-borough-council/havering,London Borough of Havering,28/04/2016,2976.66,APR16L12,Squirrels Heath Infant School,500049,"Children, Adults & Housing",Learning & Achievement,Personnel Quality and Assurance,A35655,Sickness Insurance Scheme,STAFF OTHER EXPENSES,Sue Imbriano,,,
http://opendatacommunities.org/doc/london-borough-council/havering,London Borough of Havering,05/04/2016,2124.19,APR16L13,Squirrels Heath Infant School,500049,"Children, Adults & Housing",Learning & Achievement,Personnel Quality and Assurance,A35655,Sickness Insurance Scheme,STAFF OTHER EXPENSES,Sue Imbriano,,,
http://opendatacommunities.org/doc/london-borough-council/havering,London Borough of Havering,06/04/2016,172889.00,APR16L14,Corbets Tey School,500050,"Children, Adults & Housing",DSG Learning & Achievement Service,Special,A77000,Corbets Tey School,SCHOOL BANK ACCOUNTS,Sue Imbriano,,,
http://opendatacommunities.org/doc/london-borough-council/havering,London Borough of Havering,25/04/2016,212566.00,APR16L15,Corbets Tey School,500050,"Children, Adults & Housing",DSG Learning & Achievement Service,Special,A77000,Corbets Tey School,SCHOOL BANK ACCOUNTS,Sue Imbriano,,,
http://opendatacommunities.org/doc/london-borough-council/havering,London Borough of Havering,28/04/2016,2273.42,APR16L16,Corbets Tey School,500050,"Children, Adults & Housing",Learning & Achievement,Personnel Quality and Assurance,A35655,Sickness Insurance Scheme,STAFF OTHER EXPENSES,Sue Imbriano,,,
http://opendatacommunities.org/doc/london-borough-council/havering,London Borough of Havering,05/04/2016,2069.12,APR16L17,Corbets Tey School,500050,"Children, Adults & Housing",Learning & Achievement,Personnel Quality and Assurance,A35655,Sickness Insurance Scheme,STAFF OTHER EXPENSES,Sue Imbriano,,,
http://opendatacommunities.org/doc/london-borough-council/havering,London Borough of Havering,06/04/2016,303199.00,APR16L18,Marshalls Park School,500055,"Children, Adults & Housing",DSG Learning & Achievement Service,Secondary,A74037,Marshalls Park School,SCHOOL BANK ACCOUNTS,Sue Imbriano,,,
http://opendatacommunities.org/doc/london-borough-council/havering,London Borough of Havering,25/04/2016,369531.00,APR16L19,Marshalls Park School,500055,"Children, Adults & Housing",DSG Learning & Achievement Service,Secondary,A74037,Marshalls Park School,SCHOOL BANK ACCOUNTS,Sue Imbriano,,,
http://opendatacommunities.org/doc/london-borough-council/havering,London Borough of Havering,28/04/2016,500.00,APR16L20,Heritage of London Trust,500056,Community and Resources,Culture & Leisure,Historic Buildings,A20700,Heritage,RESPONSIVE REPAIRS - BUILDING,Simon Parkinson,,,
http://opendatacommunities.org/doc/london-borough-council/havering,London Borough of Havering,01/04/2016,792.00,APR16L21,City & Guilds of London Institute,500105,"Children, Adults & Housing",Learning & Achievement,Adult Education,A30910,HCAE - Central Office,EXAM FEES,Sue Imbriano,,,
http://opendatacommunities.org/doc/london-borough-council/havering,London Borough of Havering,27/04/2016,880.00,APR16L22,The Rosewood Medical Centre,500106,Public Health,Public Health,PH - NHS Health Check Programme,A48004,NHS Health Checks - Mandatory,PRIVATE CONTRACTORS PAYMENT - OTHER,Sue Milner,,,
http://opendatacommunities.org/doc/london-borough-council/havering,London Borough of Havering,01/04/2016,5886.90,APR16L23,Compass Minerals UK Ltd,500107,Community and Resources,Streetcare,Borough Roads,A27018,Bor Rds-Gri t &Pre-Salting,PRIVATE CONTRACTORS PAYMENT - OTHER,Steve Moore,,,
http://opendatacommunities.org/doc/london-borough-council/havering,London Borough of Havering,11/04/2016,8324.37,APR16L24,Compass Minerals UK Ltd,500107,Community and Resources,Streetcare,Borough Roads,A27018,Bor Rds-Gri t &Pre-Salting,PRIVATE CONTRACTORS PAYMENT - OTHER,Steve Moore,,,
http://opendatacommunities.org/doc/london-borough-council/havering,London Borough of Havering,11/04/2016,3595.44,APR16L25,Compass Minerals UK Ltd,500107,Community and Resources,Streetcare,Borough Roads,A27018,Bor Rds-Gri t &Pre-Salting,PRIVATE CONTRACTORS PAYMENT - OTHER,Steve Moore,,,
http://opendatacommunities.org/doc/london-borough-council/havering,London Borough of Havering,18/04/2016,520.00,APR16L26,Iansyst Ltd,500124,oneSource Shared,oS Asset Management Services,oS Health & Safety,A46412,Corp.Support Svs Section,PROFESSIONAL SERVICES - GENERAL,Mark Butler,,,
http://opendatacommunities.org/doc/london-borough-council/havering,London Borough of Havering,06/04/2016,66455.00,APR16L27,Brady Primary School,500125,"Children, Adults & Housing",DSG Learning & Achievement Service,Primary,A72078,Brady Primary,SCHOOL BANK ACCOUNTS,Sue Imbriano,,,
http://opendatacommunities.org/doc/london-borough-council/havering,London Borough of Havering,25/04/2016,77022.00,APR16L28,Brady Primary School,500125,"Children, Adults & Housing",DSG Learning & Achievement Service,Primary,A72078,Brady Primary,SCHOOL BANK ACCOUNTS,Sue Imbriano,,,
http://opendatacommunities.org/doc/london-borough-council/havering,London Borough of Havering,06/04/2016,75707.00,APR16L29,Crownfield Infant School,500126,"Children, Adults & Housing",DSG Learning & Achievement Service,Primary,A72042,Crownfield Infant,SCHOOL BANK ACCOUNTS,Sue Imbriano,,,
http://opendatacommunities.org/doc/london-borough-council/havering,London Borough of Havering,25/04/2016,110388.00,APR16L30,Crownfield Infant School,500126,"Children, Adults & Housing",DSG Learning & Achievement Service,Primary,A72042,Crownfield Infant,SCHOOL BANK ACCOUNTS,Sue Imbriano,,,
http://opendatacommunities.org/doc/london-borough-council/havering,London Borough of Havering,28/04/2016,622.29,APR16L31,Crownfield Infant School,500126,"Children, Adults & Housing",Learning & Achievement,Personnel Quality and Assurance,A35655,Sickness Insurance Scheme,STAFF OTHER EXPENSES,Sue Imbriano,,,
http://opendatacommunities.org/doc/london-borough-council/havering,London Borough of Havering,06/04/2016,201299.00,APR16L32,Hilldene Primary School,500127,"Children, Adults & Housing",DSG Learning & Achievement Service,Primary,A72090,Hilldene Primary,SCHOOL BANK ACCOUNTS,Sue Imbriano,,,
http://opendatacommunities.org/doc/london-borough-council/havering,London Borough of Havering,25/04/2016,267111.00,APR16L33,Hilldene Primary School,500127,"Children, Adults & Housing",DSG Learning & Achievement Service,Primary,A72090,Hilldene Primary,SCHOOL BANK ACCOUNTS,Sue Imbriano,,,
http://opendatacommunities.org/doc/london-borough-council/havering,London Borough of Havering,28/04/2016,2469.54,APR16L34,Hilldene Primary School,500127,"Children, Adults & Housing",Learning & Achievement,Personnel Quality and Assurance,A35655,Sickness Insurance Scheme,STAFF OTHER EXPENSES,Sue Imbriano,,,
http://opendatacommunities.org/doc/london-borough-council/havering,London Borough of Havering,05/04/2016,1747.85,APR16L35,Hilldene Primary School,500127,"Children, Adults & Housing",Learning & Achievement,Personnel Quality and Assurance,A35655,Sickness Insurance Scheme,STAFF OTHER EXPENSES,Sue Imbriano,,,
http://opendatacommunities.org/doc/london-borough-council/havering,London Borough of Havering,06/04/2016,89062.00,APR16L36,James Oglethorpe Primary School,500128,"Children, Adults & Housing",DSG Learning & Achievement Service,Primary,A72003,James Oglethorpe Primary,SCHOOL BANK ACCOUNTS,Sue Imbriano,,,
http://opendatacommunities.org/doc/london-borough-council/havering,London Borough of Havering,26/04/2016,113348.00,APR16L37,James Oglethorpe Primary School,500128,"Children, Adults & Housing",DSG Learning & Achievement Service,Primary,A72003,James Oglethorpe Primary,SCHOOL BANK ACCOUNTS,Sue Imbriano,,,
http://opendatacommunities.org/doc/london-borough-council/havering,London Borough of Havering,06/04/2016,118705.00,APR16L38,Parklands Junior School,500129,"Children, Adults & Housing",DSG Learning & Achievement Service,Primary,A72055,Parklands Junior,SCHOOL BANK ACCOUNTS,Sue Imbriano,,,
http://opendatacommunities.org/doc/london-borough-council/havering,London Borough of Havering,25/04/2016,145523.00,APR16L39,Parklands Junior School,500129,"Children, Adults & Housing",DSG Learning & Achievement Service,Primary,A72055,Parklands Junior,SCHOOL BANK ACCOUNTS,Sue Imbriano,,,
http://opendatacommunities.org/doc/london-borough-council/havering,London Borough of Havering,18/04/2016,34254.25,APR16L40,Parklands Junior School,500129,"Children, Adults & Housing",Learning & Achievement,Personnel Quality and Assurance,A35600,Prim - Early Ret & Sever,RETIREMENT PENSION PAYMENT,Sue Imbriano,,,
http://opendatacommunities.org/doc/london-borough-council/havering,London Borough of Havering,28/04/2016,4420.00,APR16L41,Parklands Junior School,500129,"Children, Adults & Housing",Learning & Achievement,Personnel Quality and Assurance,A35655,Sickness Insurance Scheme,STAFF OTHER EXPENSES,Sue Imbriano,,,
http://opendatacommunities.org/doc/london-borough-council/havering,London Borough of Havering,06/04/2016,71363.00,APR16L42,Scotts JMI School,500131,"Children, Adults & Housing",DSG Learning & Achievement Service,Primary,A72080,Scotts Primary,SCHOOL BANK ACCOUNTS,Sue Imbriano,,,
http://opendatacommunities.org/doc/london-borough-council/havering,London Borough of Havering,26/04/2016,93663.00,APR16L43,Scotts JMI School,500131,"Children, Adults & Housing",DSG Learning & Achievement Service,Primary,A72080,Scotts Primary,SCHOOL BANK ACCOUNTS,Sue Imbriano,,,
http://opendatacommunities.org/doc/london-borough-council/havering,London Borough of Havering,06/04/2016,146537.00,APR16L44,Parsonage Farm Primary School,500133,"Children, Adults & Housing",DSG Learning & Achievement Service,Primary,A72073,Parsonage Farm Primary,SCHOOL BANK ACCOUNTS,Sue Imbriano,,,
http://opendatacommunities.org/doc/london-borough-council/havering,London Borough of Havering,25/04/2016,186811.00,APR16L45,Parsonage Farm Primary School,500133,"Children, Adults & Housing",DSG Learning & Achievement Service,Primary,A72073,Parsonage Farm Primary,SCHOOL BANK ACCOUNTS,Sue Imbriano,,,
http://opendatacommunities.org/doc/london-borough-council/havering,London Borough of Havering,28/04/2016,406.22,APR16L46,Parsonage Farm Primary School,500133,"Children, Adults & Housing",Learning & Achievement,Personnel Quality and Assurance,A35655,Sickness Insurance Scheme,STAFF OTHER EXPENSES,Sue Imbriano,,,
http://opendatacommunities.org/doc/london-borough-council/havering,London Borough of Havering,05/04/2016,645.43,APR16L47,Parsonage Farm Primary School,500133,"Children, Adults & Housing",Learning & Achievement,Personnel Quality and Assurance,A35655,Sickness Insurance Scheme,STAFF OTHER EXPENSES,Sue Imbriano,,,
http://opendatacommunities.org/doc/london-borough-council/havering,London Borough of Havering,27/04/2016,3443.40,APR16L48,Central and North West London NHS Foundation Trust,500137,Public Health,Public Health,PH - Sexual Health,A48001,SH - STI Testing and Treatment,PRIVATE CONTRACTORS PAYMENT - OTHER,Sue Milner,,,
http://opendatacommunities.org/doc/london-borough-council/havering,London Borough of Havering,27/04/2016,2523.78,APR16L49,Central and North West London NHS Foundation Trust,500137,Public Health,Public Health,PH - Sexual Health,A48001,SH - STI Testing and Treatment,PRIVATE CONTRACTORS PAYMENT - OTHER,Sue Milner,,,
http://opendatacommunities.org/doc/london-borough-council/havering,London Borough of Havering,27/04/2016,2194.20,APR16L50,Central and North West London NHS Foundation Trust,500137,Public Health,Public Health,PH - Sexual Health,A48001,SH - STI Testing and Treatment,PRIVATE CONTRACTORS PAYMENT - OTHER,Sue Milner,,,
http://opendatacommunities.org/doc/london-borough-council/havering,London Borough of Havering,13/04/2016,731.55,APR16L51,Annodata Ltd,500151,oneSource Shared,oS Asset Management Services,oS Health & Safety,A46412,Corp.Support Svs Section,INTERNAL RECHARGES,Mark Butler,,,
http://opendatacommunities.org/doc/london-borough-council/havering,London Borough of Havering,27/04/2016,620.00,APR16L52,Drs V K & S Uberoy,500155,Public Health,Public Health,PH - NHS Health Check Programme,A48004,NHS Health Checks - Mandatory,PRIVATE CONTRACTORS PAYMENT - OTHER,Sue Milner,,,
http://opendatacommunities.org/doc/london-borough-council/havering,London Borough of Havering,06/04/2016,207273.00,APR16L53,Royal Liberty School,500162,"Children, Adults & Housing",DSG Learning & Achievement Service,Secondary,A74025,Royal Liberty School,SCHOOL BANK ACCOUNTS,Sue Imbriano,,,
http://opendatacommunities.org/doc/london-borough-council/havering,London Borough of Havering,25/04/2016,252612.00,APR16L54,Royal Liberty School,500162,"Children, Adults & Housing",DSG Learning & Achievement Service,Secondary,A74025,Royal Liberty School,SCHOOL BANK ACCOUNTS,Sue Imbriano,,,
http://opendatacommunities.org/doc/london-borough-council/havering,London Borough of Havering,06/04/2016,249222.00,APR16L55,Sanders School,500163,"Children, Adults & Housing",DSG Learning & Achievement Service,Secondary,A74009,Sanders Draper School,SCHOOL BANK ACCOUNTS,Sue Imbriano,,,
http://opendatacommunities.org/doc/london-borough-council/havering,London Borough of Havering,25/04/2016,303746.00,APR16L56,Sanders School,500163,"Children, Adults & Housing",DSG Learning & Achievement Service,Secondary,A74009,Sanders Draper School,SCHOOL BANK ACCOUNTS,Sue Imbriano,,,
http://opendatacommunities.org/doc/london-borough-council/havering,London Borough of Havering,06/04/2016,194273.00,APR16L57,Mead Primary School (LBH a/c),500165,"Children, Adults & Housing",DSG Learning & Achievement Service,Primary,A72087,Mead Primary,SCHOOL BANK ACCOUNTS,Sue Imbriano,,,
http://opendatacommunities.org/doc/london-borough-council/havering,London Borough of Havering,25/04/2016,253362.00,APR16L58,Mead Primary School (LBH a/c),500165,"Children, Adults & Housing",DSG Learning & Achievement Service,Primary,A72087,Mead Primary,SCHOOL BANK ACCOUNTS,Sue Imbriano,,,
http://opendatacommunities.org/doc/london-borough-council/havering,London Borough of Havering,28/04/2016,1435.42,APR16L59,Mead Primary School (LBH a/c),500165,"Children, Adults & Housing",Learning & Achievement,Personnel Quality and Assurance,A35655,Sickness Insurance Scheme,STAFF OTHER EXPENSES,Sue Imbriano,,,
http://opendatacommunities.org/doc/london-borough-council/havering,London Borough of Havering,06/04/2016,149674.00,APR16L60,St Edward's Church of England Primary School,500166,"Children, Adults & Housing",DSG Learning & Achievement Service,Primary,A73301,St Edwards Primary,SCHOOL BANK ACCOUNTS,Sue Imbriano,,,
http://opendatacommunities.org/doc/london-borough-council/havering,London Borough of Havering,26/04/2016,199753.00,APR16L61,St Edward's Church of England Primary School,500166,"Children, Adults & Housing",DSG Learning & Achievement Service,Primary,A73301,St Edwards Primary,SCHOOL BANK ACCOUNTS,Sue Imbriano,,,
http://opendatacommunities.org/doc/london-borough-council/havering,London Borough of Havering,05/04/2016,458.93,APR16L62,St Edward's Church of England Primary School,500166,"Children, Adults & Housing",Learning & Achievement,Personnel Quality and Assurance,A35655,Sickness Insurance Scheme,STAFF OTHER EXPENSES,Sue Imbriano,,,
http://opendatacommunities.org/doc/london-borough-council/havering,London Borough of Havering,06/04/2016,115360.00,APR16L63,Wykeham Primary School,500167,"Children, Adults & Housing",DSG Learning & Achievement Service,Primary,A72096,Wykeham Primary,SCHOOL BANK ACCOUNTS,Sue Imbriano,,,
http://opendatacommunities.org/doc/london-borough-council/havering,London Borough of Havering,26/04/2016,167399.00,APR16L64,Wykeham Primary School,500167,"Children, Adults & Housing",DSG Learning & Achievement Service,Primary,A72096,Wykeham Primary,SCHOOL BANK ACCOUNTS,Sue Imbriano,,,
http://opendatacommunities.org/doc/london-borough-council/havering,London Borough of Havering,06/04/2016,79441.00,APR16L65,Scargill Junior School,500172,"Children, Adults & Housing",DSG Learning & Achievement Service,Primary,A72022,Scargill Junior,SCHOOL BANK ACCOUNTS,Sue Imbriano,,,
http://opendatacommunities.org/doc/london-borough-council/havering,London Borough of Havering,26/04/2016,97598.00,APR16L66,Scargill Junior School,500172,"Children, Adults & Housing",DSG Learning & Achievement Service,Primary,A72022,Scargill Junior,SCHOOL BANK ACCOUNTS,Sue Imbriano,,,
http://opendatacommunities.org/doc/london-borough-council/havering,London Borough of Havering,05/04/2016,401.02,APR16L67,Scargill Junior School,500172,"Children, Adults & Housing",Learning & Achievement,Personnel Quality and Assurance,A35655,Sickness Insurance Scheme,STAFF OTHER EXPENSES,Sue Imbriano,,,
http://opendatacommunities.org/doc/london-borough-council/havering,London Borough of Havering,19/04/2016,2825.00,APR16L68,Plus Business Systems Ltd,500177,"Children, Adults & Housing",Learning & Achievement,Adult Education,A30910,HCAE - Central Office,PRIVATE CONTRACTORS PAYMENT - OTHER,Sue Imbriano,,,
http://opendatacommunities.org/doc/london-borough-council/havering,London Borough of Havering,01/04/2016,423.75,APR16L69,Havering Sixth Form College,500195,Community and Resources,Regulatory Services,Development Planning,A26720,Travel Plan Project,PRIVATE CONTRACTORS PAYMENT - OTHER,Patrick Keyes,,,
http://opendatacommunities.org/doc/london-borough-council/havering,London Borough of Havering,27/04/2016,2471.83,APR16L70,Pitney Bowes Finance Plc,500196,oneSource Shared,oS Asset Management Services,oS Health & Safety,A46412,Corp.Support Svs Section,INTERNAL RECHARGES,Mark Butler,,,
http://opendatacommunities.org/doc/london-borough-council/havering,London Borough of Havering,01/04/2016,747.00,APR16L71,Kall Kwik Centre 1293,500217,"Children, Adults & Housing",Adult Services,Learning Disabilities,A32010,Avelon Centre,GENERAL OFFICE EXPENSES,Barbara Nicholls,,,
http://opendatacommunities.org/doc/london-borough-council/havering,London Borough of Havering,12/04/2016,405.75,APR16L72,Royal Mail Group Plc,500226,oneSource Shared,oS Exchequer & Transactional Services,oS Transactional Services,A41400,Transactional Payroll,INTERNAL RECHARGES,Sarah Bryant,,,
http://opendatacommunities.org/doc/london-borough-council/havering,London Borough of Havering,06/04/2016,60533.00,APR16L73,Langtons Infant School,500227,"Children, Adults & Housing",DSG Learning & Achievement Service,Primary,A72019,Langtons Infant,SCHOOL BANK ACCOUNTS,Sue Imbriano,,,
http://opendatacommunities.org/doc/london-borough-council/havering,London Borough of Havering,25/04/2016,79854.00,APR16L74,Langtons Infant School,500227,"Children, Adults & Housing",DSG Learning & Achievement Service,Primary,A72019,Langtons Infant,SCHOOL BANK ACCOUNTS,Sue Imbriano,,,
http://opendatacommunities.org/doc/london-borough-council/havering,London Borough of Havering,20/04/2016,629.04,APR16L75,Comprehensive Piano Services,500231,Community and Resources,Culture & Leisure,Music Services,A31520,Havering Music School,PRIVATE CONTRACTORS PAYMENT - OTHER,Simon Parkinson,,,
http://opendatacommunities.org/doc/london-borough-council/havering,London Borough of Havering,06/04/2016,119837.00,APR16L76,Newtons Primary School,500244,"Children, Adults & Housing",DSG Learning & Achievement Service,Primary,A72084,Newtons Primary,SCHOOL BANK ACCOUNTS,Sue Imbriano,,,
http://opendatacommunities.org/doc/london-borough-council/havering,London Borough of Havering,25/04/2016,154155.00,APR16L77,Newtons Primary School,500244,"Children, Adults & Housing",DSG Learning & Achievement Service,Primary,A72084,Newtons Primary,SCHOOL BANK ACCOUNTS,Sue Imbriano,,,
http://opendatacommunities.org/doc/london-borough-council/havering,London Borough of Havering,28/04/2016,1409.85,APR16L78,Newtons Primary School,500244,"Children, Adults & Housing",Learning & Achievement,Personnel Quality and Assurance,A35655,Sickness Insurance Scheme,STAFF OTHER EXPENSES,Sue Imbriano,,,
http://opendatacommunities.org/doc/london-borough-council/havering,London Borough of Havering,05/04/2016,2200.19,APR16L79,Newtons Primary School,500244,"Children, Adults & Housing",Learning & Achievement,Personnel Quality and Assurance,A35655,Sickness Insurance Scheme,STAFF OTHER EXPENSES,Sue Imbriano,,,
http://opendatacommunities.org/doc/london-borough-council/havering,London Borough of Havering,06/04/2016,152788.00,APR16L80,Broadford Primary School,500256,"Children, Adults & Housing",DSG Learning & Achievement Service,Primary,A72081,Broadford Primary,SCHOOL BANK ACCOUNTS,Sue Imbriano,,,
http://opendatacommunities.org/doc/london-borough-council/havering,London Borough of Havering,25/04/2016,202510.00,APR16L81,Broadford Primary School,500256,"Children, Adults & Housing",DSG Learning & Achievement Service,Primary,A72081,Broadford Primary,SCHOOL BANK ACCOUNTS,Sue Imbriano,,,
http://opendatacommunities.org/doc/london-borough-council/havering,London Borough of Havering,28/04/2016,3096.00,APR16L82,Broadford Primary School,500256,"Children, Adults & Housing",Learning & Achievement,Personnel Quality and Assurance,A35655,Sickness Insurance Scheme,STAFF OTHER EXPENSES,Sue Imbriano,,,
http://opendatacommunities.org/doc/london-borough-council/havering,London Borough of Havering,05/04/2016,1801.34,APR16L83,Broadford Primary School,500256,"Children, Adults & Housing",Learning & Achievement,Personnel Quality and Assurance,A35655,Sickness Insurance Scheme,STAFF OTHER EXPENSES,Sue Imbriano,,,
http://opendatacommunities.org/doc/london-borough-council/havering,London Borough of Havering,27/04/2016,525.00,APR16L84,Cablecom Investment Ltd,500270,"Children, Adults & Housing",Housing (HRA),Maintenance,A29315,Surtees,CYCLICAL/PLANNED MAINTENANCE - BUILDING,Neil Stubbings,,,
http://opendatacommunities.org/doc/london-borough-council/havering,London Borough of Havering,27/04/2016,1869.27,APR16L85,Cablecom Investment Ltd,500270,"Children, Adults & Housing",Housing (HRA),Maintenance,A29315,Surtees,CYCLICAL/PLANNED MAINTENANCE - BUILDING,Neil Stubbings,,,
http://opendatacommunities.org/doc/london-borough-council/havering,London Borough of Havering,01/04/2016,-15060.75,APR16L86,Zurich Management Services,500272,oneSource Shared,oS Finance,"oS Audit, Risk, Insurance & Fraud",A41050,Internal Audit,COMMISSION INCOME,Deborah Hindson,,,
http://opendatacommunities.org/doc/london-borough-council/havering,London Borough of Havering,01/04/2016,164915.21,APR16L87,Zurich Management Services,500272,Community and Resources,Corporate Financial Matters,Ins Trading Account,A41110,Self Financing Ins Prem,INSURANCE (EXCL PREMISES AND TRANSPORT),Deborah Hindson,,,
http://opendatacommunities.org/doc/london-borough-council/havering,London Borough of Havering,06/04/2016,111640.00,APR16L88,Harold Court School,500279,"Children, Adults & Housing",DSG Learning & Achievement Service,Primary,A72017,Harold Court Primary,SCHOOL BANK ACCOUNTS,Sue Imbriano,,,
http://opendatacommunities.org/doc/london-borough-council/havering,London Borough of Havering,27/04/2016,500.00,APR16L89,Harold Court School,500279,"Children, Adults & Housing",Learning & Achievement,HIAS Development Leadership Quality and Assurance,A31325,Early Years Quality and Assurance Team - CORE,PRIVATE CONTRACTORS PAYMENT - OTHER,Sue Imbriano,,,
http://opendatacommunities.org/doc/london-borough-council/havering,London Borough of Havering,25/04/2016,142049.00,APR16L90,Harold Court School,500279,"Children, Adults & Housing",DSG Learning & Achievement Service,Primary,A72017,Harold Court Primary,SCHOOL BANK ACCOUNTS,Sue Imbriano,,,
http://opendatacommunities.org/doc/london-borough-council/havering,London Borough of Havering,28/04/2016,4613.80,APR16L91,Harold Court School,500279,"Children, Adults & Housing",Learning & Achievement,Personnel Quality and Assurance,A35655,Sickness Insurance Scheme,STAFF OTHER EXPENSES,Sue Imbriano,,,
http://opendatacommunities.org/doc/london-borough-council/havering,London Borough of Havering,05/04/2016,2602.34,APR16L92,Harold Court School,500279,"Children, Adults & Housing",Learning & Achievement,Personnel Quality and Assurance,A35655,Sickness Insurance Scheme,STAFF OTHER EXPENSES,Sue Imbriano,,,
http://opendatacommunities.org/doc/london-borough-council/havering,London Borough of Havering,05/04/2016,792.00,APR16L93,"Barking, Havering and Redbridge University Hospitals NHS Trust",500281,"Children, Adults & Housing",Adult Services,Health & Social Care Other,A31875,Joint Assessment & Discharge Team (JAD),TRANSPORT COSTS - STAFF,Barbara Nicholls,,,
http://opendatacommunities.org/doc/london-borough-council/havering,London Borough of Havering,01/04/2016,600.00,APR16L94,FAAC (UK) Ltd,500285,oneSource Non-Shared LBH,Asset Management,Premises Management,A46601,Corporate Landlord-LBH,CYCLICAL/PLANNED MAINTENANCE - BUILDING,Mark Butler,,,
http://opendatacommunities.org/doc/london-borough-council/havering,London Borough of Havering,14/04/2016,5624.00,APR16L95,Experian Ltd,500286,"Children, Adults & Housing",Housing (HRA),Hsg Needs & Strategy,A28250,Needs and Service Development,MEMBERSHIP AND SUBSCRIPTIONS,Neil Stubbings,,,
http://opendatacommunities.org/doc/london-borough-council/havering,London Borough of Havering,13/04/2016,37854.64,APR16L96,Local Government Association,500293,Community and Resources,Corporate Financial Matters,Corporate Subsc.,A43200,MFT - Subscriptions,MEMBERSHIP AND SUBSCRIPTIONS,Deborah Hindson,,,
http://opendatacommunities.org/doc/london-borough-council/havering,London Borough of Havering,06/04/2016,137685.00,APR16L97,Rainham Village Primary School,500298,"Children, Adults & Housing",DSG Learning & Achievement Service,Primary,A72089,Rainham Village Primary,SCHOOL BANK ACCOUNTS,Sue Imbriano,,,
http://opendatacommunities.org/doc/london-borough-council/havering,London Borough of Havering,25/04/2016,178071.00,APR16L98,Rainham Village Primary School,500298,"Children, Adults & Housing",DSG Learning & Achievement Service,Primary,A72089,Rainham Village Primary,SCHOOL BANK ACCOUNTS,Sue Imbriano,,,
http://opendatacommunities.org/doc/london-borough-council/havering,London Borough of Havering,28/04/2016,4463.68,APR16L99,Rainham Village Primary School,500298,"Children, Adults & Housing",Learning & Achievement,Personnel Quality and Assurance,A35655,Sickness Insurance Scheme,STAFF OTHER EXPENSES,Sue Imbriano,,,
http://opendatacommunities.org/doc/london-borough-council/havering,London Borough of Havering,05/04/2016,3875.61,APR16L100,Rainham Village Primary School,500298,"Children, Adults & Housing",Learning & Achievement,Personnel Quality and Assurance,A35655,Sickness Insurance Scheme,STAFF OTHER EXPENSES,Sue Imbriano,,,
http://opendatacommunities.org/doc/london-borough-council/havering,London Borough of Havering,21/04/2016,6500.00,APR16L101,Kings College London,500314,"Children, Adults & Housing",Safeguarding - Quality and Assurance,Learning and Development,A39195,Social Work Improvement Team,STAFF DEVELOPMENT AND TRAINING,Sue Imbriano,,,
http://opendatacommunities.org/doc/london-borough-council/havering,London Borough of Havering,18/04/2016,1500.00,APR16L102,LoTSA CIC,500321,Community and Resources,Regulatory Services,Trading Standards,A25100,Trading Standards,MEMBERSHIP AND SUBSCRIPTIONS,Patrick Keyes,,,
http://opendatacommunities.org/doc/london-borough-council/havering,London Borough of Havering,06/04/2016,93056.00,APR16L103,Squirrels Heath Junior School,500329,"Children, Adults & Housing",DSG Learning & Achievement Service,Primary,A72061,Squr'L Heath Junior,SCHOOL BANK ACCOUNTS,Sue Imbriano,,,
http://opendatacommunities.org/doc/london-borough-council/havering,London Borough of Havering,26/04/2016,114236.00,APR16L104,Squirrels Heath Junior School,500329,"Children, Adults & Housing",DSG Learning & Achievement Service,Primary,A72061,Squr'L Heath Junior,SCHOOL BANK ACCOUNTS,Sue Imbriano,,,
http://opendatacommunities.org/doc/london-borough-council/havering,London Borough of Havering,05/04/2016,468.00,APR16L105,Squirrels Heath Junior School,500329,"Children, Adults & Housing",Learning & Achievement,Personnel Quality and Assurance,A35655,Sickness Insurance Scheme,STAFF OTHER EXPENSES,Sue Imbriano,,,
http://opendatacommunities.org/doc/london-borough-council/havering,London Borough of Havering,01/04/2016,103110.65,APR16L106,Capita Business Services Ltd,500340,"Children, Adults & Housing",Learning & Achievement,Education Finance Support Quality and Assurance,A30700,SSR - Education,ICT LICENCES,Sue Imbriano,,,
http://opendatacommunities.org/doc/london-borough-council/havering,London Borough of Havering,01/04/2016,666.67,APR16L107,DHL Supply Chain Ltd t/a NHS Supply Chain,500348,Community and Resources,Streetcare,Refuse Coll & Waste Dis,A27530,Clinical Waste,"PURCHASE - EQUIPMENT, FURNITURE AND MATERIALS",Steve Moore,,,
http://opendatacommunities.org/doc/london-borough-council/havering,London Borough of Havering,06/04/2016,59005.00,APR16L108,St Alban's Roman Catholic Primary School,500375,"Children, Adults & Housing",DSG Learning & Achievement Service,Primary,A73508,St Albans Primary,SCHOOL BANK ACCOUNTS,Sue Imbriano,,,
http://opendatacommunities.org/doc/london-borough-council/havering,London Borough of Havering,26/04/2016,75942.00,APR16L109,St Alban's Roman Catholic Primary School,500375,"Children, Adults & Housing",DSG Learning & Achievement Service,Primary,A73508,St Albans Primary,SCHOOL BANK ACCOUNTS,Sue Imbriano,,,
http://opendatacommunities.org/doc/london-borough-council/havering,London Borough of Havering,28/04/2016,667.26,APR16L110,St Alban's Roman Catholic Primary School,500375,"Children, Adults & Housing",Learning & Achievement,Personnel Quality and Assurance,A35655,Sickness Insurance Scheme,STAFF OTHER EXPENSES,Sue Imbriano,,,
http://opendatacommunities.org/doc/london-borough-council/havering,London Borough of Havering,05/04/2016,910.00,APR16L111,St Alban's Roman Catholic Primary School,500375,"Children, Adults & Housing",Learning & Achievement,Personnel Quality and Assurance,A35655,Sickness Insurance Scheme,STAFF OTHER EXPENSES,Sue Imbriano,,,
http://opendatacommunities.org/doc/london-borough-council/havering,London Borough of Havering,06/04/2016,97231.00,APR16L112,St Patricks Roman Catholic Primary School,500376,"Children, Adults & Housing",DSG Learning & Achievement Service,Primary,A73503,St Patricks Primary,SCHOOL BANK ACCOUNTS,Sue Imbriano,,,
http://opendatacommunities.org/doc/london-borough-council/havering,London Borough of Havering,26/04/2016,124572.00,APR16L113,St Patricks Roman Catholic Primary School,500376,"Children, Adults & Housing",DSG Learning & Achievement Service,Primary,A73503,St Patricks Primary,SCHOOL BANK ACCOUNTS,Sue Imbriano,,,
http://opendatacommunities.org/doc/london-borough-council/havering,London Borough of Havering,28/04/2016,419.41,APR16L114,St Patricks Roman Catholic Primary School,500376,"Children, Adults & Housing",Learning & Achievement,Personnel Quality and Assurance,A35655,Sickness Insurance Scheme,STAFF OTHER EXPENSES,Sue Imbriano,,,
http://opendatacommunities.org/doc/london-borough-council/havering,London Borough of Havering,11/04/2016,2700.87,APR16L115,Redbridge College,500384,"Children, Adults & Housing",DSG Learning & Achievement Service,SEN - DSG,A33585,Post-16 High Needs Top- up DSG,GENERAL CONTINGENCY,Sue Imbriano,,,
http://opendatacommunities.org/doc/london-borough-council/havering,London Borough of Havering,06/04/2016,55895.00,APR16L116,St Ursula's Roman Catholic Infant School,500389,"Children, Adults & Housing",DSG Learning & Achievement Service,Primary,A73505,St Ursulas Infant,SCHOOL BANK ACCOUNTS,Sue Imbriano,,,
http://opendatacommunities.org/doc/london-borough-council/havering,London Borough of Havering,26/04/2016,83990.00,APR16L117,St Ursula's Roman Catholic Infant School,500389,"Children, Adults & Housing",DSG Learning & Achievement Service,Primary,A73505,St Ursulas Infant,SCHOOL BANK ACCOUNTS,Sue Imbriano,,,
http://opendatacommunities.org/doc/london-borough-council/havering,London Borough of Havering,15/04/2016,487.13,APR16L118,Wernick Hire Ltd,500390,"Children, Adults & Housing",Housing (HRA),Community Support Services,A29130,TMO Services,PRIVATE CONTRACTORS PAYMENT - OTHER,Neil Stubbings,,,
http://opendatacommunities.org/doc/london-borough-council/havering,London Borough of Havering,11/04/2016,3808.00,APR16L119,Castacrete Ltd,500393,oneSource Shared,oS Business Services,oS Business Services,A51060,Balance of BI Savings,PRIVATE CONTRACTORS PAYMENT - OTHER,Tony Huff,,,
http://opendatacommunities.org/doc/london-borough-council/havering,London Borough of Havering,14/04/2016,9000.00,APR16L120,City of London,500395,"Children, Adults & Housing",Safeguarding - Quality and Assurance,Quality and Assurance - Adults,A41430,Directors Social Care Support,GENERAL OFFICE EXPENSES,Sue Imbriano,,,
http://opendatacommunities.org/doc/london-borough-council/havering,London Borough of Havering,04/04/2016,1034.67,APR16L121,The Award Scheme Ltd,500398,Community and Resources,Culture & Leisure,Youth Facilitation,A21250,Youth Facilitation - T4 - Based around Collier Row,MISCELLANEOUS EXPENSES,Simon Parkinson,,,
http://opendatacommunities.org/doc/london-borough-council/havering,London Borough of Havering,27/04/2016,440.00,APR16L122,Dr R Chowdhury,500409,Public Health,Public Health,PH - NHS Health Check Programme,A48004,NHS Health Checks - Mandatory,PRIVATE CONTRACTORS PAYMENT - OTHER,Sue Milner,,,
http://opendatacommunities.org/doc/london-borough-council/havering,London Borough of Havering,11/04/2016,827.27,APR16L123,Writtle College,500422,"Children, Adults & Housing",DSG Learning & Achievement Service,SEN - DSG,A33585,Post-16 High Needs Top- up DSG,GENERAL CONTINGENCY,Sue Imbriano,,,
http://opendatacommunities.org/doc/london-borough-council/havering,London Borough of Havering,26/04/2016,1650.01,APR16L124,Archant London,500430,Community and Resources,Streetcare,Highways Cost Recovery Account,A27310,Highways Cost Recovery Account,STAFF RECRUITMENT COSTS,Steve Moore,,,
http://opendatacommunities.org/doc/london-borough-council/havering,London Borough of Havering,26/04/2016,2225.00,APR16L125,Archant London,500430,"Children, Adults & Housing",Learning & Achievement,Borough Catering,A36360,Catering - Central Costs,STAFF RECRUITMENT COSTS,Sue Imbriano,,,
http://opendatacommunities.org/doc/london-borough-council/havering,London Borough of Havering,20/04/2016,472.48,APR16L126,Performing Right Society Ltd,500474,"Children, Adults & Housing",Childrens Services,Early Help,A39244,Early Help South Locality,PRIVATE CONTRACTORS PAYMENT - OTHER,Tim Aldridge,,,
http://opendatacommunities.org/doc/london-borough-council/havering,London Borough of Havering,20/04/2016,554.96,APR16L127,Performing Right Society Ltd,500474,"Children, Adults & Housing",Childrens Services,Early Help,A39246,Early Help North Locality,PRIVATE CONTRACTORS PAYMENT - OTHER,Tim Aldridge,,,
http://opendatacommunities.org/doc/london-borough-council/havering,London Borough of Havering,01/04/2016,1106.17,APR16L128,PHS Group Plc,500475,"Children, Adults & Housing",Adult Services,Learning Disabilities,A32010,Avelon Centre,CLEANING SERVICES,Barbara Nicholls,,,
http://opendatacommunities.org/doc/london-borough-council/havering,London Borough of Havering,18/04/2016,16080.00,APR16L129,RM Education Plc,500485,oneSource Shared,oS ICT Services,oS Commercial Services,A45000,Educational Computer Centre,PRIVATE CONTRACTORS PAYMENT - OTHER,Geoff Connell,,,
http://opendatacommunities.org/doc/london-borough-council/havering,London Borough of Havering,11/04/2016,6973.82,APR16L130,St John's Catholic School_a,500497,"Children, Adults & Housing",DSG Learning & Achievement Service,SEN - DSG,A33585,Post-16 High Needs Top- up DSG,GENERAL CONTINGENCY,Sue Imbriano,,,
http://opendatacommunities.org/doc/london-borough-council/havering,London Borough of Havering,06/04/2016,170930.00,APR16L131,Clockhouse Primary School,500551,"Children, Adults & Housing",DSG Learning & Achievement Service,Primary,A72038,Clockhouse Primary,SCHOOL BANK ACCOUNTS,Sue Imbriano,,,
http://opendatacommunities.org/doc/london-borough-council/havering,London Borough of Havering,25/04/2016,225231.00,APR16L132,Clockhouse Primary School,500551,"Children, Adults & Housing",DSG Learning & Achievement Service,Primary,A72038,Clockhouse Primary,SCHOOL BANK ACCOUNTS,Sue Imbriano,,,
http://opendatacommunities.org/doc/london-borough-council/havering,London Borough of Havering,28/04/2016,4210.05,APR16L133,Clockhouse Primary School,500551,"Children, Adults & Housing",Learning & Achievement,Personnel Quality and Assurance,A35655,Sickness Insurance Scheme,STAFF OTHER EXPENSES,Sue Imbriano,,,
http://opendatacommunities.org/doc/london-borough-council/havering,London Borough of Havering,05/04/2016,2171.65,APR16L134,Clockhouse Primary School,500551,"Children, Adults & Housing",Learning & Achievement,Personnel Quality and Assurance,A35655,Sickness Insurance Scheme,STAFF OTHER EXPENSES,Sue Imbriano,,,
http://opendatacommunities.org/doc/london-borough-council/havering,London Borough of Havering,06/04/2016,35660.00,APR16L135,Dame Tipping Primary School,500565,"Children, Adults & Housing",DSG Learning & Achievement Service,Primary,A73000,Dame Tipping Primary,SCHOOL BANK ACCOUNTS,Sue Imbriano,,,
http://opendatacommunities.org/doc/london-borough-council/havering,London Borough of Havering,25/04/2016,45876.00,APR16L136,Dame Tipping Primary School,500565,"Children, Adults & Housing",DSG Learning & Achievement Service,Primary,A73000,Dame Tipping Primary,SCHOOL BANK ACCOUNTS,Sue Imbriano,,,
http://opendatacommunities.org/doc/london-borough-council/havering,London Borough of Havering,29/04/2016,960.00,APR16L137,Microlink PC (UK) Ltd,500568,oneSource Shared,oS Asset Management Services,oS Health & Safety,A46412,Corp.Support Svs Section,PROFESSIONAL SERVICES - GENERAL,Mark Butler,,,
http://opendatacommunities.org/doc/london-borough-council/havering,London Borough of Havering,06/04/2016,102365.00,APR16L138,St Joseph's Roman Catholic Primary School,500575,"Children, Adults & Housing",DSG Learning & Achievement Service,Primary,A73506,St. Josephs Primary,SCHOOL BANK ACCOUNTS,Sue Imbriano,,,
http://opendatacommunities.org/doc/london-borough-council/havering,London Borough of Havering,26/04/2016,130786.00,APR16L139,St Joseph's Roman Catholic Primary School,500575,"Children, Adults & Housing",DSG Learning & Achievement Service,Primary,A73506,St. Josephs Primary,SCHOOL BANK ACCOUNTS,Sue Imbriano,,,
http://opendatacommunities.org/doc/london-borough-council/havering,London Borough of Havering,06/04/2016,170675.00,APR16L140,Crowlands Primary School,500577,"Children, Adults & Housing",DSG Learning & Achievement Service,Primary,A72097,Crowlands Primary,SCHOOL BANK ACCOUNTS,Sue Imbriano,,,
http://opendatacommunities.org/doc/london-borough-council/havering,London Borough of Havering,25/04/2016,231316.00,APR16L141,Crowlands Primary School,500577,"Children, Adults & Housing",DSG Learning & Achievement Service,Primary,A72097,Crowlands Primary,SCHOOL BANK ACCOUNTS,Sue Imbriano,,,
http://opendatacommunities.org/doc/london-borough-council/havering,London Borough of Havering,06/04/2016,467.55,APR16L142,G4S Cash Solutions (UK) Ltd,500581,Community and Resources,Streetcare,Parking Facilities,A24690,M Storey Car Pk Dir Costs,PRIVATE CONTRACTORS PAYMENT - OTHER,Steve Moore,,,
http://opendatacommunities.org/doc/london-borough-council/havering,London Borough of Havering,28/04/2016,668.73,APR16L143,G4S Cash Solutions (UK) Ltd,500581,Community and Resources,Culture & Leisure,Library Service,A23100,Libraries Admin,PRIVATE CONTRACTORS PAYMENT - OTHER,Simon Parkinson,,,
http://opendatacommunities.org/doc/london-borough-council/havering,London Borough of Havering,06/04/2016,1477.92,APR16L144,G4S Cash Solutions (UK) Ltd,500581,Community and Resources,Streetcare,Parking Facilities,A24690,M Storey Car Pk Dir Costs,PRIVATE CONTRACTORS PAYMENT - OTHER,Steve Moore,,,
http://opendatacommunities.org/doc/london-borough-council/havering,London Borough of Havering,25/04/2016,1373.56,APR16L145,G4S Cash Solutions (UK) Ltd,500581,Community and Resources,Streetcare,Parking Facilities,A24690,M Storey Car Pk Dir Costs,PRIVATE CONTRACTORS PAYMENT - OTHER,Steve Moore,,,
http://opendatacommunities.org/doc/london-borough-council/havering,London Borough of Havering,25/04/2016,88691.01,APR16L146,TfL Surface Transport,500582,Community and Resources,Streetcare,Borough Roads,A27040,Bor.Prin.Rds Traf Signals,PRIVATE CONTRACTORS PAYMENT - OTHER,Steve Moore,,,
http://opendatacommunities.org/doc/london-borough-council/havering,London Borough of Havering,06/04/2016,115180.00,APR16L147,The Mawney Foundation School,500594,"Children, Adults & Housing",DSG Learning & Achievement Service,Primary,A72092,Mawney School,SCHOOL BANK ACCOUNTS,Sue Imbriano,,,
http://opendatacommunities.org/doc/london-borough-council/havering,London Borough of Havering,26/04/2016,145937.00,APR16L148,The Mawney Foundation School,500594,"Children, Adults & Housing",DSG Learning & Achievement Service,Primary,A72092,Mawney School,SCHOOL BANK ACCOUNTS,Sue Imbriano,,,
http://opendatacommunities.org/doc/london-borough-council/havering,London Borough of Havering,05/04/2016,2859.60,APR16L149,The Mawney Foundation School,500594,"Children, Adults & Housing",Learning & Achievement,Personnel Quality and Assurance,A35655,Sickness Insurance Scheme,STAFF OTHER EXPENSES,Sue Imbriano,,,
http://opendatacommunities.org/doc/london-borough-council/havering,London Borough of Havering,06/04/2016,50422.00,APR16L150,Whybridge Infant School,500601,"Children, Adults & Housing",DSG Learning & Achievement Service,Primary,A72026,Whybridge Infant,SCHOOL BANK ACCOUNTS,Sue Imbriano,,,
http://opendatacommunities.org/doc/london-borough-council/havering,London Borough of Havering,26/04/2016,66688.00,APR16L151,Whybridge Infant School,500601,"Children, Adults & Housing",DSG Learning & Achievement Service,Primary,A72026,Whybridge Infant,SCHOOL BANK ACCOUNTS,Sue Imbriano,,,
http://opendatacommunities.org/doc/london-borough-council/havering,London Borough of Havering,06/04/2016,100959.00,APR16L152,Benhurst Primary School,500606,"Children, Adults & Housing",DSG Learning & Achievement Service,Primary,A72009,Benhurst,SCHOOL BANK ACCOUNTS,Sue Imbriano,,,
http://opendatacommunities.org/doc/london-borough-council/havering,London Borough of Havering,25/04/2016,127487.00,APR16L153,Benhurst Primary School,500606,"Children, Adults & Housing",DSG Learning & Achievement Service,Primary,A72009,Benhurst,SCHOOL BANK ACCOUNTS,Sue Imbriano,,,
http://opendatacommunities.org/doc/london-borough-council/havering,London Borough of Havering,28/04/2016,1072.54,APR16L154,Benhurst Primary School,500606,"Children, Adults & Housing",Learning & Achievement,Personnel Quality and Assurance,A35655,Sickness Insurance Scheme,STAFF OTHER EXPENSES,Sue Imbriano,,,
http://opendatacommunities.org/doc/london-borough-council/havering,London Borough of Havering,05/04/2016,1343.37,APR16L155,Benhurst Primary School,500606,"Children, Adults & Housing",Learning & Achievement,Personnel Quality and Assurance,A35655,Sickness Insurance Scheme,STAFF OTHER EXPENSES,Sue Imbriano,,,
http://opendatacommunities.org/doc/london-borough-council/havering,London Borough of Havering,06/04/2016,117160.00,APR16L156,Hacton School,500607,"Children, Adults & Housing",DSG Learning & Achievement Service,Primary,A72015,Hacton Primary,SCHOOL BANK ACCOUNTS,Sue Imbriano,,,
http://opendatacommunities.org/doc/london-borough-council/havering,London Borough of Havering,25/04/2016,157632.00,APR16L157,Hacton School,500607,"Children, Adults & Housing",DSG Learning & Achievement Service,Primary,A72015,Hacton Primary,SCHOOL BANK ACCOUNTS,Sue Imbriano,,,
http://opendatacommunities.org/doc/london-borough-council/havering,London Borough of Havering,06/04/2016,126688.00,APR16L158,Harold Wood Primary School,500608,"Children, Adults & Housing",DSG Learning & Achievement Service,Primary,A72005,Harold Wood Primary,SCHOOL BANK ACCOUNTS,Sue Imbriano,,,
http://opendatacommunities.org/doc/london-borough-council/havering,London Borough of Havering,25/04/2016,164806.00,APR16L159,Harold Wood Primary School,500608,"Children, Adults & Housing",DSG Learning & Achievement Service,Primary,A72005,Harold Wood Primary,SCHOOL BANK ACCOUNTS,Sue Imbriano,,,
http://opendatacommunities.org/doc/london-borough-council/havering,London Borough of Havering,28/04/2016,1945.69,APR16L160,Harold Wood Primary School,500608,"Children, Adults & Housing",Learning & Achievement,Personnel Quality and Assurance,A35655,Sickness Insurance Scheme,STAFF OTHER EXPENSES,Sue Imbriano,,,
http://opendatacommunities.org/doc/london-borough-council/havering,London Borough of Havering,05/04/2016,572.00,APR16L161,Harold Wood Primary School,500608,"Children, Adults & Housing",Learning & Achievement,Personnel Quality and Assurance,A35655,Sickness Insurance Scheme,STAFF OTHER EXPENSES,Sue Imbriano,,,
http://opendatacommunities.org/doc/london-borough-council/havering,London Borough of Havering,06/04/2016,107221.00,APR16L162,Nelmes Primary School,500609,"Children, Adults & Housing",DSG Learning & Achievement Service,Primary,A72086,Nelmes Primary,SCHOOL BANK ACCOUNTS,Sue Imbriano,,,
http://opendatacommunities.org/doc/london-borough-council/havering,London Borough of Havering,25/04/2016,139298.00,APR16L163,Nelmes Primary School,500609,"Children, Adults & Housing",DSG Learning & Achievement Service,Primary,A72086,Nelmes Primary,SCHOOL BANK ACCOUNTS,Sue Imbriano,,,
http://opendatacommunities.org/doc/london-borough-council/havering,London Borough of Havering,06/04/2016,108608.00,APR16L164,The R J Mitchell Primary School,500612,"Children, Adults & Housing",DSG Learning & Achievement Service,Primary,A72093,R J Mitchell Primary,SCHOOL BANK ACCOUNTS,Sue Imbriano,,,
http://opendatacommunities.org/doc/london-borough-council/havering,London Borough of Havering,26/04/2016,137901.00,APR16L165,The R J Mitchell Primary School,500612,"Children, Adults & Housing",DSG Learning & Achievement Service,Primary,A72093,R J Mitchell Primary,SCHOOL BANK ACCOUNTS,Sue Imbriano,,,
http://opendatacommunities.org/doc/london-borough-council/havering,London Borough of Havering,28/04/2016,3056.82,APR16L166,The R J Mitchell Primary School,500612,"Children, Adults & Housing",Learning & Achievement,Personnel Quality and Assurance,A35655,Sickness Insurance Scheme,STAFF OTHER EXPENSES,Sue Imbriano,,,
http://opendatacommunities.org/doc/london-borough-council/havering,London Borough of Havering,05/04/2016,5468.86,APR16L167,The R J Mitchell Primary School,500612,"Children, Adults & Housing",Learning & Achievement,Personnel Quality and Assurance,A35655,Sickness Insurance Scheme,STAFF OTHER EXPENSES,Sue Imbriano,,,
http://opendatacommunities.org/doc/london-borough-council/havering,London Borough of Havering,06/04/2016,86936.00,APR16L168,Ardleigh Green Junior School,500616,"Children, Adults & Housing",DSG Learning & Achievement Service,Primary,A72006,Ardleigh Green Junior,SCHOOL BANK ACCOUNTS,Sue Imbriano,,,
http://opendatacommunities.org/doc/london-borough-council/havering,London Borough of Havering,25/04/2016,106765.00,APR16L169,Ardleigh Green Junior School,500616,"Children, Adults & Housing",DSG Learning & Achievement Service,Primary,A72006,Ardleigh Green Junior,SCHOOL BANK ACCOUNTS,Sue Imbriano,,,
http://opendatacommunities.org/doc/london-borough-council/havering,London Borough of Havering,28/04/2016,4089.58,APR16L170,Ardleigh Green Junior School,500616,"Children, Adults & Housing",Learning & Achievement,Personnel Quality and Assurance,A35655,Sickness Insurance Scheme,STAFF OTHER EXPENSES,Sue Imbriano,,,
http://opendatacommunities.org/doc/london-borough-council/havering,London Borough of Havering,05/04/2016,4548.18,APR16L171,Ardleigh Green Junior School,500616,"Children, Adults & Housing",Learning & Achievement,Personnel Quality and Assurance,A35655,Sickness Insurance Scheme,STAFF OTHER EXPENSES,Sue Imbriano,,,
http://opendatacommunities.org/doc/london-borough-council/havering,London Borough of Havering,12/04/2016,12790.00,APR16L172,London Grid for Learning Trust,500628,"Children, Adults & Housing",DSG Learning & Achievement Service,Schools Provision and Commissioning - DSG,A33420,Schools Admissions,ICT SOFTWARE,Sue Imbriano,,,
http://opendatacommunities.org/doc/london-borough-council/havering,London Borough of Havering,07/04/2016,400.00,APR16L173,AT Graphics Ltd,500635,oneSource Non-Shared LBH,Asset Management,Prop & Land Hldgs,A46550,Romford Market,"ADVERTISING, PUBLICITY AND MARKETING",Mark Butler,,,
http://opendatacommunities.org/doc/london-borough-council/havering,London Borough of Havering,26/04/2016,750.00,APR16L174,AT Graphics Ltd,500635,oneSource Non-Shared LBH,Asset Management,Prop & Land Hldgs,A46550,Romford Market,"ADVERTISING, PUBLICITY AND MARKETING",Mark Butler,,,
http://opendatacommunities.org/doc/london-borough-council/havering,London Borough of Havering,20/04/2016,1654.00,APR16L175,Disclosure & Barring Service,500638,oneSource Shared,oS Exchequer & Transactional Services,oS Transactional Services,A42100,Transactional HR,PRIVATE CONTRACTORS PAYMENT - OTHER,Sarah Bryant,,,
http://opendatacommunities.org/doc/london-borough-council/havering,London Borough of Havering,06/04/2016,9647.50,APR16L176,Alzheimer's Society.,500645,"Children, Adults & Housing",Adult Services,Strategy and Commissioning,A34090,Mental Health Commissioning,PAYMENTS TO VOLUNTARY SECTOR,Barbara Nicholls,,,
http://opendatacommunities.org/doc/london-borough-council/havering,London Borough of Havering,06/04/2016,10568.00,APR16L177,Alzheimer's Society.,500645,"Children, Adults & Housing",Adult Services,Strategy and Commissioning,A34090,Mental Health Commissioning,PAYMENTS TO VOLUNTARY SECTOR,Barbara Nicholls,,,
http://opendatacommunities.org/doc/london-borough-council/havering,London Borough of Havering,06/04/2016,145000.00,APR16L178,Engayne Primary School,500646,"Children, Adults & Housing",DSG Learning & Achievement Service,Primary,A72094,Engayne Primary,SCHOOL BANK ACCOUNTS,Sue Imbriano,,,
http://opendatacommunities.org/doc/london-borough-council/havering,London Borough of Havering,25/04/2016,187353.00,APR16L179,Engayne Primary School,500646,"Children, Adults & Housing",DSG Learning & Achievement Service,Primary,A72094,Engayne Primary,SCHOOL BANK ACCOUNTS,Sue Imbriano,,,
http://opendatacommunities.org/doc/london-borough-council/havering,London Borough of Havering,05/04/2016,767.00,APR16L180,Engayne Primary School,500646,"Children, Adults & Housing",Learning & Achievement,Personnel Quality and Assurance,A35655,Sickness Insurance Scheme,STAFF OTHER EXPENSES,Sue Imbriano,,,
http://opendatacommunities.org/doc/london-borough-council/havering,London Borough of Havering,06/04/2016,106066.00,APR16L181,Gidea Park School,500701,"Children, Adults & Housing",DSG Learning & Achievement Service,Primary,A72069,Gidea Park Primary,SCHOOL BANK ACCOUNTS,Sue Imbriano,,,
http://opendatacommunities.org/doc/london-borough-council/havering,London Borough of Havering,25/04/2016,136350.00,APR16L182,Gidea Park School,500701,"Children, Adults & Housing",DSG Learning & Achievement Service,Primary,A72069,Gidea Park Primary,SCHOOL BANK ACCOUNTS,Sue Imbriano,,,
http://opendatacommunities.org/doc/london-borough-council/havering,London Borough of Havering,05/04/2016,1090.10,APR16L183,Gidea Park School,500701,"Children, Adults & Housing",Learning & Achievement,Personnel Quality and Assurance,A35655,Sickness Insurance Scheme,STAFF OTHER EXPENSES,Sue Imbriano,,,
http://opendatacommunities.org/doc/london-borough-council/havering,London Borough of Havering,01/04/2016,2745.00,APR16L184,London Borough of Newham,500711,"Children, Adults & Housing",Safeguarding - Quality and Assurance,Safeguarding Unit,A39030,Safeguard And Service Standards Unit,SALARIES,Sue Imbriano,,,
http://opendatacommunities.org/doc/london-borough-council/havering,London Borough of Havering,13/04/2016,66035.74,APR16L185,Centre for Engineering and Manufacturing Excellence Ltd (CEME),500759,oneSource Non-Shared LBH,Asset Management,Premises Management,A46416,CEME Training Centre,PREMISES HIRE - FACILITIES,Mark Butler,,,
http://opendatacommunities.org/doc/london-borough-council/havering,London Borough of Havering,29/04/2016,845.00,APR16L186,Bells Blinds,500775,"Children, Adults & Housing",Learning & Achievement,Adult Education,A30910,HCAE - Central Office,AUDIT FEES,Sue Imbriano,,,
http://opendatacommunities.org/doc/london-borough-council/havering,London Borough of Havering,27/04/2016,775.00,APR16L187,The Robins Surgery,500776,Public Health,Public Health,PH - NHS Health Check Programme,A48004,NHS Health Checks - Mandatory,PRIVATE CONTRACTORS PAYMENT - OTHER,Sue Milner,,,
http://opendatacommunities.org/doc/london-borough-council/havering,London Borough of Havering,27/04/2016,1360.00,APR16L188,Dr J C F O`Moore,500788,Public Health,Public Health,PH - NHS Health Check Programme,A48004,NHS Health Checks - Mandatory,PRIVATE CONTRACTORS PAYMENT - OTHER,Sue Milner,,,
http://opendatacommunities.org/doc/london-borough-council/havering,London Borough of Havering,05/04/2016,580.00,APR16L189,Dr I P Humberstone,500794,Community and Resources,Regulatory Services,Crematorium & Cems,A24210,Bereavement Customer Services,PRIVATE CONTRACTORS PAYMENT - OTHER,Patrick Keyes,,,
http://opendatacommunities.org/doc/london-borough-council/havering,London Borough of Havering,27/04/2016,445.00,APR16L190,Dr S Subramaniam,500852,Public Health,Public Health,PH - NHS Health Check Programme,A48004,NHS Health Checks - Mandatory,PRIVATE CONTRACTORS PAYMENT - OTHER,Sue Milner,,,
http://opendatacommunities.org/doc/london-borough-council/havering,London Borough of Havering,27/04/2016,765.00,APR16L191,Dr P Patel,500853,Public Health,Public Health,PH - NHS Health Check Programme,A48004,NHS Health Checks - Mandatory,PRIVATE CONTRACTORS PAYMENT - OTHER,Sue Milner,,,
http://opendatacommunities.org/doc/london-borough-council/havering,London Borough of Havering,25/04/2016,44679.60,APR16L192,British Telecommunications Redcare,500884,"Children, Adults & Housing",Housing (HRA),Hsg Needs & Strategy,A29145,CCTV Team (HRA),LAND LINE TELEPHONE COSTS,Neil Stubbings,,,
http://opendatacommunities.org/doc/london-borough-council/havering,London Borough of Havering,25/04/2016,2745.00,APR16L193,Early Education,500934,"Children, Adults & Housing",Learning & Achievement,HIAS Development Leadership Quality and Assurance,A31325,Early Years Quality and Assurance Team - CORE,STAFF DEVELOPMENT AND TRAINING,Sue Imbriano,,,
http://opendatacommunities.org/doc/london-borough-council/havering,London Borough of Havering,19/04/2016,535.75,APR16L194,Southern Electric,500939,"Children, Adults & Housing",Housing Services,Strategy,A28845,Private Housing Solutions Team,RESPONSIVE REPAIRS - BUILDING,Neil Stubbings,,,
http://opendatacommunities.org/doc/london-borough-council/havering,London Borough of Havering,01/04/2016,1037.00,APR16L195,G4S Fire & Security Systems (UK),500945,oneSource Non-Shared LBH,Asset Management,Premises Management,A46601,Corporate Landlord-LBH,CYCLICAL/PLANNED MAINTENANCE - BUILDING,Mark Butler,,,
http://opendatacommunities.org/doc/london-borough-council/havering,London Borough of Havering,01/04/2016,1037.00,APR16L196,G4S Fire & Security Systems (UK),500945,oneSource Non-Shared LBH,Asset Management,Premises Management,A46601,Corporate Landlord-LBH,CYCLICAL/PLANNED MAINTENANCE - BUILDING,Mark Butler,,,
http://opendatacommunities.org/doc/london-borough-council/havering,London Borough of Havering,27/04/2016,780.00,APR16L197,"Drs Zachariah, Lee, Acheson & Sinha",500974,Public Health,Public Health,PH - NHS Health Check Programme,A48004,NHS Health Checks - Mandatory,PRIVATE CONTRACTORS PAYMENT - OTHER,Sue Milner,,,
http://opendatacommunities.org/doc/london-borough-council/havering,London Borough of Havering,14/04/2016,750.00,APR16L198,Tribal Education Ltd,500985,"Children, Adults & Housing",Learning & Achievement,HIAS Development Leadership Quality and Assurance,A31325,Early Years Quality and Assurance Team - CORE,PRIVATE CONTRACTORS PAYMENT - OTHER,Sue Imbriano,,,
http://opendatacommunities.org/doc/london-borough-council/havering,London Borough of Havering,27/04/2016,815.00,APR16L199,Dr Kulendran & Associates,501032,Public Health,Public Health,PH - NHS Health Check Programme,A48004,NHS Health Checks - Mandatory,PRIVATE CONTRACTORS PAYMENT - OTHER,Sue Milner,,,
http://opendatacommunities.org/doc/london-borough-council/havering,London Borough of Havering,18/04/2016,712.80,APR16L200,Orchid Cellmark Ltd,501038,"Children, Adults & Housing",Childrens Services,Existing Placements,A38320,LAC Placements,LOOKED AFTER COST OTHER,Tim Aldridge,,,
http://opendatacommunities.org/doc/london-borough-council/havering,London Borough of Havering,12/04/2016,9750.00,APR16L201,PricewaterhouseCoopers LLP,501080,Community and Resources,Corporate Financial Matters,Corp Fin Transactions,A43150,Corporate Expenses,PRIVATE CONTRACTORS PAYMENT - OTHER,Deborah Hindson,,,
http://opendatacommunities.org/doc/london-borough-council/havering,London Borough of Havering,12/04/2016,6123.00,APR16L202,PricewaterhouseCoopers LLP,501080,Community and Resources,Corporate Financial Matters,Corp Fin Transactions,A43150,Corporate Expenses,PRIVATE CONTRACTORS PAYMENT - OTHER,Deborah Hindson,,,
http://opendatacommunities.org/doc/london-borough-council/havering,London Borough of Havering,12/04/2016,2500.00,APR16L203,PricewaterhouseCoopers LLP,501080,"Children, Adults & Housing",Housing (HRA),Director Of Property Services (HRA),A29210,Director Of Property Services (HRA),CONSULTANCY FEES,Neil Stubbings,,,
http://opendatacommunities.org/doc/london-borough-council/havering,London Borough of Havering,12/04/2016,8000.00,APR16L204,PricewaterhouseCoopers LLP,501080,"Children, Adults & Housing",Housing (HRA),Director Of Property Services (HRA),A29210,Director Of Property Services (HRA),CONSULTANCY FEES,Neil Stubbings,,,
http://opendatacommunities.org/doc/london-borough-council/havering,London Borough of Havering,14/04/2016,1613.42,APR16L205,Allpay Ltd,501081,"Children, Adults & Housing",Housing (HRA),Community Support Services,A29650,Rents (HRA),PRIVATE CONTRACTORS PAYMENT - OTHER,Neil Stubbings,,,
http://opendatacommunities.org/doc/london-borough-council/havering,London Borough of Havering,25/04/2016,527.25,APR16L206,G C Johnson Ltd,501108,Community and Resources,Streetcare,Parking Facilities,A24620,Multi Storey Car Parks,"PURCHASE - EQUIPMENT, FURNITURE AND MATERIALS",Steve Moore,,,
http://opendatacommunities.org/doc/london-borough-council/havering,London Borough of Havering,06/04/2016,-750.00,APR16L207,Dovetail Architects Ltd,501130,"Children, Adults & Housing",Housing Services,Strategy,A28830,Strategy-Housing GF,PROFESSIONAL SERVICES - GENERAL,Neil Stubbings,,,
http://opendatacommunities.org/doc/london-borough-council/havering,London Borough of Havering,14/04/2016,-7666.66,APR16L208,Shaw Trust Ltd,501152,"Children, Adults & Housing",Adult Services,Learning Disabilities,A32030,Learning Disability Development Fund,PRIVATE CONTRACTORS PAYMENT - OTHER,Barbara Nicholls,,,
http://opendatacommunities.org/doc/london-borough-council/havering,London Borough of Havering,15/04/2016,616.00,APR16L209,GB Group Plc,501186,"Children, Adults & Housing",Childrens Services,Childrens Social Services Other,A39140,Sen Staff-Children & Fami,STAFF OTHER EXPENSES,Tim Aldridge,,,
http://opendatacommunities.org/doc/london-borough-council/havering,London Borough of Havering,15/04/2016,3294.00,APR16L210,GB Group Plc,501186,oneSource Shared,oS Exchequer & Transactional Services,oS Transactional Services,A42100,Transactional HR,PRIVATE CONTRACTORS PAYMENT - OTHER,Sarah Bryant,,,
http://opendatacommunities.org/doc/london-borough-council/havering,London Borough of Havering,05/04/2016,483.64,APR16L211,Cedars Care Home for the Elderly_a,501209,"Children, Adults & Housing",Adult Services,Adult Community Team,A31885,Physical Support,RESIDENTIAL PLACEMENTS - PRIVATE CONTRACTORS PAYMENT,Barbara Nicholls,,,
http://opendatacommunities.org/doc/london-borough-council/havering,London Borough of Havering,05/04/2016,1923.76,APR16L212,Cedars Care Home for the Elderly_a,501209,"Children, Adults & Housing",Adult Services,Adult Community Team,A31885,Physical Support,RESIDENTIAL PLACEMENTS - PRIVATE CONTRACTORS PAYMENT,Barbara Nicholls,,,
http://opendatacommunities.org/doc/london-borough-council/havering,London Borough of Havering,14/04/2016,7194.16,APR16L213,Yaboo Company Ltd,501251,Community and Resources,Regulatory Services,Crematorium & Cems,A24220,South Essex Crematorium,BEREAVEMENT SERVICES EQUIPMENT,Patrick Keyes,,,
http://opendatacommunities.org/doc/london-borough-council/havering,London Borough of Havering,14/04/2016,3597.61,APR16L214,Yaboo Company Ltd,501251,Community and Resources,Regulatory Services,Crematorium & Cems,A24220,South Essex Crematorium,BEREAVEMENT SERVICES EQUIPMENT,Patrick Keyes,,,
http://opendatacommunities.org/doc/london-borough-council/havering,London Borough of Havering,26/04/2016,3597.61,APR16L215,Yaboo Company Ltd,501251,Community and Resources,Regulatory Services,Crematorium & Cems,A24220,South Essex Crematorium,BEREAVEMENT SERVICES EQUIPMENT,Patrick Keyes,,,
http://opendatacommunities.org/doc/london-borough-council/havering,London Borough of Havering,20/04/2016,2417.00,APR16L216,Ofsted,501255,"Children, Adults & Housing",Childrens Services,Fostering,A38600,Fostering Carers Costs,MEMBERSHIP AND SUBSCRIPTIONS,Tim Aldridge,,,
http://opendatacommunities.org/doc/london-borough-council/havering,London Borough of Havering,27/04/2016,714.21,APR16L217,British Gas Trading Ltd,501268,"Children, Adults & Housing",Housing Services,Strategy,A28845,Private Housing Solutions Team,RESPONSIVE REPAIRS - BUILDING,Neil Stubbings,,,
http://opendatacommunities.org/doc/london-borough-council/havering,London Borough of Havering,27/04/2016,630.93,APR16L218,British Gas Trading Ltd,501268,"Children, Adults & Housing",Housing Services,Strategy,A28845,Private Housing Solutions Team,RESPONSIVE REPAIRS - BUILDING,Neil Stubbings,,,
http://opendatacommunities.org/doc/london-borough-council/havering,London Borough of Havering,27/04/2016,533.27,APR16L219,British Gas Trading Ltd,501268,"Children, Adults & Housing",Housing Services,Strategy,A28845,Private Housing Solutions Team,RESPONSIVE REPAIRS - BUILDING,Neil Stubbings,,,
http://opendatacommunities.org/doc/london-borough-council/havering,London Borough of Havering,05/04/2016,554.13,APR16L220,British Gas Trading Ltd,501268,"Children, Adults & Housing",Housing Services,Strategy,A28845,Private Housing Solutions Team,RESPONSIVE REPAIRS - BUILDING,Neil Stubbings,,,
http://opendatacommunities.org/doc/london-borough-council/havering,London Borough of Havering,26/04/2016,-748.65,APR16L221,British Gas Trading Ltd t/as British Gas Business,501269,Community and Resources,Culture & Leisure,Sports Dev & Outdoor Ctrs,A21010,Hornchurch Stadium,GAS,Simon Parkinson,,,
http://opendatacommunities.org/doc/london-borough-council/havering,London Borough of Havering,25/04/2016,748.65,APR16L222,British Gas Trading Ltd t/as British Gas Business,501269,Community and Resources,Culture & Leisure,Sports Dev & Outdoor Ctrs,A21010,Hornchurch Stadium,GAS,Simon Parkinson,,,
http://opendatacommunities.org/doc/london-borough-council/havering,London Borough of Havering,06/04/2016,464.62,APR16L223,British Gas Trading Ltd t/as British Gas Business,501269,"Children, Adults & Housing",Mental Health,Mental Health - Non Section 75,A32325,156 Bevan Way,TRANSPORT RECHARGE,Barbara Nicholls,,,
http://opendatacommunities.org/doc/london-borough-council/havering,London Borough of Havering,26/04/2016,-522.00,APR16L224,Serco Ltd,501317,oneSource Non-Shared LBH,Asset Management,Premises Management,A46428,Langtons Facilities,REFUSE COLLECTION,Mark Butler,,,
http://opendatacommunities.org/doc/london-borough-council/havering,London Borough of Havering,06/04/2016,1031.00,APR16L225,Serco Ltd,501317,Community and Resources,Culture & Leisure,Sports Dev & Outdoor Ctrs,A21010,Hornchurch Stadium,GROUNDS MAINTENANCE,Simon Parkinson,,,
http://opendatacommunities.org/doc/london-borough-council/havering,London Borough of Havering,18/04/2016,1400.00,APR16L226,Authorised Publications,501318,"Children, Adults & Housing",Housing (HRA),Hsg Needs & Strategy,A28000,Havering Telecare Centre,"ADVERTISING, PUBLICITY AND MARKETING",Neil Stubbings,,,
http://opendatacommunities.org/doc/london-borough-council/havering,London Borough of Havering,18/04/2016,1400.00,APR16L227,Authorised Publications,501318,"Children, Adults & Housing",Housing (HRA),Hsg Needs & Strategy,A28000,Havering Telecare Centre,"ADVERTISING, PUBLICITY AND MARKETING",Neil Stubbings,,,
http://opendatacommunities.org/doc/london-borough-council/havering,London Borough of Havering,18/04/2016,1400.00,APR16L228,Authorised Publications,501318,"Children, Adults & Housing",Housing (HRA),Hsg Needs & Strategy,A28000,Havering Telecare Centre,"ADVERTISING, PUBLICITY AND MARKETING",Neil Stubbings,,,
http://opendatacommunities.org/doc/london-borough-council/havering,London Borough of Havering,18/04/2016,1400.00,APR16L229,Authorised Publications,501318,"Children, Adults & Housing",Housing (HRA),Hsg Needs & Strategy,A28000,Havering Telecare Centre,"ADVERTISING, PUBLICITY AND MARKETING",Neil Stubbings,,,
http://opendatacommunities.org/doc/london-borough-council/havering,London Borough of Havering,18/04/2016,1400.00,APR16L230,Authorised Publications,501318,"Children, Adults & Housing",Housing (HRA),Hsg Needs & Strategy,A28000,Havering Telecare Centre,"ADVERTISING, PUBLICITY AND MARKETING",Neil Stubbings,,,
http://opendatacommunities.org/doc/london-borough-council/havering,London Borough of Havering,26/04/2016,20000.00,APR16L231,Traffic Enforcement Centre,501346,Community and Resources,Streetcare,Parking Facilities,A24670,Onstreet Parking,PAYMENT TO OTHER LOCAL AUTHORITIES,Steve Moore,,,
http://opendatacommunities.org/doc/london-borough-council/havering,London Borough of Havering,15/04/2016,565.43,APR16L232,SWALEC-Atlantic Electric & Gas,501425,"Children, Adults & Housing",Housing Services,Strategy,A28845,Private Housing Solutions Team,PAYMENTS TO VOLUNTARY SECTOR,Neil Stubbings,,,
http://opendatacommunities.org/doc/london-borough-council/havering,London Borough of Havering,27/04/2016,1424.50,APR16L233,Northgate Public Services UK Ltd,501451,"Children, Adults & Housing",Childrens Services,Childrens Social Services Other,A39140,Sen Staff-Children & Fami,PRIVATE CONTRACTORS PAYMENT - OTHER,Tim Aldridge,,,
http://opendatacommunities.org/doc/london-borough-council/havering,London Borough of Havering,27/04/2016,9286.50,APR16L234,Northgate Public Services UK Ltd,501451,"Children, Adults & Housing",Adult Services,Health & Social Care Other,A32200,Asst Dir Adult Services,PRIVATE CONTRACTORS PAYMENT - OTHER,Barbara Nicholls,,,
http://opendatacommunities.org/doc/london-borough-council/havering,London Borough of Havering,08/04/2016,1370.10,APR16L235,Northgate Public Services UK Ltd,501451,"Children, Adults & Housing",Housing (HRA),Head Of Service,A28130,Head Of Service - HRA,ICT SOFTWARE,Neil Stubbings,,,
http://opendatacommunities.org/doc/london-borough-council/havering,London Borough of Havering,13/04/2016,1520.00,APR16L236,Northgate Public Services UK Ltd,501451,"Children, Adults & Housing",Housing (HRA),Head Of Service,A28130,Head Of Service - HRA,ICT SOFTWARE,Neil Stubbings,,,
http://opendatacommunities.org/doc/london-borough-council/havering,London Borough of Havering,13/04/2016,1136.77,APR16L237,Northgate Public Services UK Ltd,501451,oneSource Shared,oS ICT Services,oS Application and Development,A45130,Applications Management,ICT SOFTWARE,Geoff Connell,,,
http://opendatacommunities.org/doc/london-borough-council/havering,London Borough of Havering,13/04/2016,1485.80,APR16L238,Northgate Public Services UK Ltd,501451,Community and Resources,Customer Services,Customer Services,A23315,Blue Badge Scheme,PRIVATE CONTRACTORS PAYMENT - OTHER,Caroline Woolf,,,
http://opendatacommunities.org/doc/london-borough-council/havering,London Borough of Havering,27/04/2016,1880.00,APR16L239,Hornchurch Healthcare,501471,Public Health,Public Health,PH - NHS Health Check Programme,A48004,NHS Health Checks - Mandatory,PRIVATE CONTRACTORS PAYMENT - OTHER,Sue Milner,,,
http://opendatacommunities.org/doc/london-borough-council/havering,London Borough of Havering,13/04/2016,11478.37,APR16L240,Acorn Care & Education Ltd,501541,"Children, Adults & Housing",DSG Learning & Achievement Service,SEN - DSG,A33535,Residential School Budget,PRIVATE CONTRACTORS PAYMENT - OTHER,Sue Imbriano,,,
http://opendatacommunities.org/doc/london-borough-council/havering,London Borough of Havering,15/04/2016,778.00,APR16L241,EE Ltd,501592,oneSource Shared,oS ICT Services,oS Unified Communications,A45080,Corporate Telephone Systems,INTERNET COSTS,Geoff Connell,,,
http://opendatacommunities.org/doc/london-borough-council/havering,London Borough of Havering,26/04/2016,4005.00,APR16L242,Post Office Ltd (Vehicle Licence Renewals),501598,oneSource Non-Shared LBH,Asset Management,Transport Accounts,A47500,Vehicle & Plant,VEHICLE LICENSING,Mark Butler,,,
http://opendatacommunities.org/doc/london-borough-council/havering,London Borough of Havering,25/04/2016,1902.00,APR16L243,Albany School Academy,501608,"Children, Adults & Housing",DSG Learning & Achievement Service,Education Finance Support Quality and Assurance - DSG,A35301,Chbk Academy Holding Code,GENERAL CONTINGENCY,Sue Imbriano,,,
http://opendatacommunities.org/doc/london-borough-council/havering,London Borough of Havering,25/04/2016,798.00,APR16L244,The Campion School Academy,501609,"Children, Adults & Housing",DSG Learning & Achievement Service,Education Finance Support Quality and Assurance - DSG,A35301,Chbk Academy Holding Code,GENERAL CONTINGENCY,Sue Imbriano,,,
http://opendatacommunities.org/doc/london-borough-council/havering,London Borough of Havering,25/04/2016,599.00,APR16L245,Sacred Heart of Mary Girls School Academy,501610,"Children, Adults & Housing",DSG Learning & Achievement Service,Education Finance Support Quality and Assurance - DSG,A35301,Chbk Academy Holding Code,GENERAL CONTINGENCY,Sue Imbriano,,,
http://opendatacommunities.org/doc/london-borough-council/havering,London Borough of Havering,26/04/2016,4137.84,APR16L246,Sacred Heart of Mary Girls School Academy,501610,Community and Resources,Culture & Leisure,Historic Buildings,A20720,Upminster Windmill,PRIVATE CONTRACTORS PAYMENT - OTHER,Simon Parkinson,,,
http://opendatacommunities.org/doc/london-borough-council/havering,London Borough of Havering,20/04/2016,8707.65,APR16L247,Virgin Media Payments Ltd,501611,oneSource Shared,oS ICT Services,oS Unified Communications,A45050,Networking,PRIVATE CONTRACTORS PAYMENT - OTHER,Geoff Connell,,,
http://opendatacommunities.org/doc/london-borough-council/havering,London Borough of Havering,01/04/2016,2800.00,APR16L248,National Development Team for Inclusion,501728,"Children, Adults & Housing",Adult Services,Transforming Health and Social Care,A34120,NHS Support for Social Care,PROFESSIONAL SERVICES - GENERAL,Barbara Nicholls,,,
http://opendatacommunities.org/doc/london-borough-council/havering,London Borough of Havering,01/04/2016,4200.00,APR16L249,National Development Team for Inclusion,501728,"Children, Adults & Housing",Adult Services,Transforming Health and Social Care,A34120,NHS Support for Social Care,PROFESSIONAL SERVICES - GENERAL,Barbara Nicholls,,,
http://opendatacommunities.org/doc/london-borough-council/havering,London Borough of Havering,28/04/2016,585.00,APR16L250,Construction Industry Research and Information Association (CIRIA),501735,Community and Resources,Regulatory Services,Environmental Health,A26230,Envir Health Housing & Pub Health,"BOOKS, PUBLICATIONS AND RESOURCES",Patrick Keyes,,,
http://opendatacommunities.org/doc/london-borough-council/havering,London Borough of Havering,01/04/2016,1800.00,APR16L251,Parasol Ltd,501762,"Children, Adults & Housing",Adult Services,Transforming Health and Social Care,A34130,Care Act Programme,CONSULTANCY FEES,Barbara Nicholls,,,
http://opendatacommunities.org/doc/london-borough-council/havering,London Borough of Havering,01/04/2016,1600.00,APR16L252,Parasol Ltd,501762,"Children, Adults & Housing",Adult Services,Transforming Health and Social Care,A34130,Care Act Programme,CONSULTANCY FEES,Barbara Nicholls,,,
http://opendatacommunities.org/doc/london-borough-council/havering,London Borough of Havering,14/04/2016,1200.00,APR16L253,Parasol Ltd,501762,"Children, Adults & Housing",Adult Services,Transforming Health and Social Care,A34120,NHS Support for Social Care,CONSULTANCY FEES,Barbara Nicholls,,,
http://opendatacommunities.org/doc/london-borough-council/havering,London Borough of Havering,12/04/2016,1000.00,APR16L254,Parasol Ltd,501762,"Children, Adults & Housing",Adult Services,Transforming Health and Social Care,A34130,Care Act Programme,CONSULTANCY FEES,Barbara Nicholls,,,
http://opendatacommunities.org/doc/london-borough-council/havering,London Borough of Havering,12/04/2016,1600.00,APR16L255,Parasol Ltd,501762,"Children, Adults & Housing",Adult Services,Transforming Health and Social Care,A34130,Care Act Programme,CONSULTANCY FEES,Barbara Nicholls,,,
http://opendatacommunities.org/doc/london-borough-council/havering,London Borough of Havering,27/04/2016,575.00,APR16L256,The Office of Immigration Services Commissioner,501787,Community and Resources,Regulatory Services,Births Deaths & Mrgs,A23200,Registration Service,LEGAL FEES,Patrick Keyes,,,
http://opendatacommunities.org/doc/london-borough-council/havering,London Borough of Havering,25/04/2016,5202.00,APR16L257,Drapers Academy,501804,"Children, Adults & Housing",DSG Learning & Achievement Service,Education Finance Support Quality and Assurance - DSG,A35301,Chbk Academy Holding Code,GENERAL CONTINGENCY,Sue Imbriano,,,
http://opendatacommunities.org/doc/london-borough-council/havering,London Borough of Havering,07/04/2016,809.00,APR16L258,Havering Museum Ltd,501839,"Children, Adults & Housing",Housing (HRA),Community Support Services,A29425,Community Engagement HRA,MISCELLANEOUS EXPENSES,Neil Stubbings,,,
http://opendatacommunities.org/doc/london-borough-council/havering,London Borough of Havering,19/04/2016,799.00,APR16L259,Knowledge Train Ltd,501903,Community and Resources,Regulatory Services,Development Planning,A26610,Development Planning,STAFF DEVELOPMENT AND TRAINING,Patrick Keyes,,,
http://opendatacommunities.org/doc/london-borough-council/havering,London Borough of Havering,11/04/2016,10106.59,APR16L260,Epping Forest College,501910,"Children, Adults & Housing",DSG Learning & Achievement Service,SEN - DSG,A33585,Post-16 High Needs Top- up DSG,GENERAL CONTINGENCY,Sue Imbriano,,,
http://opendatacommunities.org/doc/london-borough-council/havering,London Borough of Havering,12/04/2016,434.00,APR16L261,Citibank Europe Plc,501957,"Children, Adults & Housing",Adult Services,Adult Community Team,A31890,Sensory Support,DIRECT PAYMENTS,Barbara Nicholls,,,
http://opendatacommunities.org/doc/london-borough-council/havering,London Borough of Havering,12/04/2016,855.98,APR16L262,Citibank Europe Plc,501957,"Children, Adults & Housing",Learning & Achievement,Children With Disabilities,A33930,C&F Direct Payments,DIRECT PAYMENTS,Sue Imbriano,,,
http://opendatacommunities.org/doc/london-borough-council/havering,London Borough of Havering,12/04/2016,1799.64,APR16L263,Citibank Europe Plc,501957,"Children, Adults & Housing",Adult Services,Learning Disabilities,A32005,Learning Disability Support,DIRECT PAYMENTS,Barbara Nicholls,,,
http://opendatacommunities.org/doc/london-borough-council/havering,London Borough of Havering,12/04/2016,2976.01,APR16L264,Citibank Europe Plc,501957,"Children, Adults & Housing",Adult Services,Adult Community Team,A31990,Support to Carer,DIRECT PAYMENTS,Barbara Nicholls,,,
http://opendatacommunities.org/doc/london-borough-council/havering,London Borough of Havering,12/04/2016,4998.78,APR16L265,Citibank Europe Plc,501957,"Children, Adults & Housing",Adult Services,Adult Community Team,A31885,Physical Support,DIRECT PAYMENTS,Barbara Nicholls,,,
http://opendatacommunities.org/doc/london-borough-council/havering,London Borough of Havering,13/04/2016,4000.00,APR16L266,Citibank Europe Plc,501957,"Children, Adults & Housing",Adult Services,Prevention,A32410,PD Equipment,"PURCHASE - EQUIPMENT, FURNITURE AND MATERIALS",Barbara Nicholls,,,
http://opendatacommunities.org/doc/london-borough-council/havering,London Borough of Havering,20/04/2016,481.00,APR16L267,Orange,502016,oneSource Shared,oS ICT Services,oS Unified Communications,A45080,Corporate Telephone Systems,MOBILE PHONE COSTS,Geoff Connell,,,
http://opendatacommunities.org/doc/london-borough-council/havering,London Borough of Havering,25/04/2016,3115.00,APR16L268,Abbs Cross Academy & Arts College,502032,"Children, Adults & Housing",DSG Learning & Achievement Service,Education Finance Support Quality and Assurance - DSG,A35301,Chbk Academy Holding Code,GENERAL CONTINGENCY,Sue Imbriano,,,
http://opendatacommunities.org/doc/london-borough-council/havering,London Borough of Havering,19/04/2016,4684.92,APR16L269,Brittons Academy Trust,502033,"Children, Adults & Housing",DSG Learning & Achievement Service,Personnel Quality and Assurance - DSG,A35660,Trade Union Costs,SALARIES,Sue Imbriano,,,
http://opendatacommunities.org/doc/london-borough-council/havering,London Borough of Havering,25/04/2016,1835.00,APR16L270,Brittons Academy Trust,502033,"Children, Adults & Housing",DSG Learning & Achievement Service,Education Finance Support Quality and Assurance - DSG,A35301,Chbk Academy Holding Code,GENERAL CONTINGENCY,Sue Imbriano,,,
http://opendatacommunities.org/doc/london-borough-council/havering,London Borough of Havering,25/04/2016,1494.00,APR16L271,The Coopers Company and Coborn School Academy,502034,"Children, Adults & Housing",DSG Learning & Achievement Service,Education Finance Support Quality and Assurance - DSG,A35301,Chbk Academy Holding Code,GENERAL CONTINGENCY,Sue Imbriano,,,
http://opendatacommunities.org/doc/london-borough-council/havering,London Borough of Havering,26/04/2016,3200.00,APR16L272,Chartered Institute of Environmental Health,502038,Community and Resources,Regulatory Services,Environmental Health,A26220,Envir Health - Commercial,"BOOKS, PUBLICATIONS AND RESOURCES",Patrick Keyes,,,
http://opendatacommunities.org/doc/london-borough-council/havering,London Borough of Havering,26/04/2016,3971.08,APR16L273,Orange Payment Processing,502074,oneSource Shared,oS ICT Services,oS Unified Communications,A45080,Corporate Telephone Systems,MOBILE PHONE COSTS,Geoff Connell,,,
http://opendatacommunities.org/doc/london-borough-council/havering,London Borough of Havering,19/04/2016,3020.08,APR16L274,Orange Payment Processing,502074,oneSource Shared,oS ICT Services,oS Unified Communications,A45080,Corporate Telephone Systems,INTERNET COSTS,Geoff Connell,,,
http://opendatacommunities.org/doc/london-borough-council/havering,London Borough of Havering,26/04/2016,1995.00,APR16L275,Orange Payment Processing,502074,Community and Resources,Streetcare,On Street Parking,A24500,On/Off Street Parking Enforcement,INTERNAL RECHARGES,Steve Moore,,,
http://opendatacommunities.org/doc/london-borough-council/havering,London Borough of Havering,27/04/2016,500.00,APR16L276,Porter Glenny,502190,"Children, Adults & Housing",Housing (HRA),Hsg Needs & Strategy,A28270,Development of HRA Land,CONSULTANCY FEES,Neil Stubbings,,,
http://opendatacommunities.org/doc/london-borough-council/havering,London Borough of Havering,25/04/2016,3803.00,APR16L277,Emerson Park Academy,502192,"Children, Adults & Housing",DSG Learning & Achievement Service,Education Finance Support Quality and Assurance - DSG,A35301,Chbk Academy Holding Code,GENERAL CONTINGENCY,Sue Imbriano,,,
http://opendatacommunities.org/doc/london-borough-council/havering,London Borough of Havering,18/04/2016,7930.72,APR16L278,Emerson Park Academy,502192,"Children, Adults & Housing",DSG Learning & Achievement Service,Personnel Quality and Assurance - DSG,A35660,Trade Union Costs,SALARIES,Sue Imbriano,,,
http://opendatacommunities.org/doc/london-borough-council/havering,London Borough of Havering,25/04/2016,9963.00,APR16L279,Redden Court School Academy,502193,"Children, Adults & Housing",DSG Learning & Achievement Service,Education Finance Support Quality and Assurance - DSG,A35301,Chbk Academy Holding Code,GENERAL CONTINGENCY,Sue Imbriano,,,
http://opendatacommunities.org/doc/london-borough-council/havering,London Borough of Havering,25/04/2016,8060.00,APR16L280,Redden Court School Academy,502193,"Children, Adults & Housing",DSG Learning & Achievement Service,ISB Other,A30500,Schools Pupil Growth,GENERAL CONTINGENCY,Sue Imbriano,,,
http://opendatacommunities.org/doc/london-borough-council/havering,London Borough of Havering,25/04/2016,2381.00,APR16L281,Redden Court School Academy,502193,"Children, Adults & Housing",DSG Learning & Achievement Service,SEN - DSG,A33580,Pre-16 High Needs Top-up DSG,GENERAL CONTINGENCY,Sue Imbriano,,,
http://opendatacommunities.org/doc/london-borough-council/havering,London Borough of Havering,25/04/2016,10420.00,APR16L282,Redden Court School Academy,502193,"Children, Adults & Housing",DSG Learning & Achievement Service,SEN - DSG,A33560,Secondary Support,PRIVATE CONTRACTORS PAYMENT - OTHER,Sue Imbriano,,,
http://opendatacommunities.org/doc/london-borough-council/havering,London Borough of Havering,27/04/2016,1460.00,APR16L283,Maylands Healthcare Ltd,502244,Public Health,Public Health,PH - NHS Health Check Programme,A48004,NHS Health Checks - Mandatory,PRIVATE CONTRACTORS PAYMENT - OTHER,Sue Milner,,,
http://opendatacommunities.org/doc/london-borough-council/havering,London Borough of Havering,19/04/2016,7170.00,APR16L284,London Borough of Hammersmith & Fulham,502268,Community and Resources,Streetcare,Borough Roads,A27000,Carriageway Maintenance - Planned,PRIVATE CONTRACTORS PAYMENT - OTHER,Steve Moore,,,
http://opendatacommunities.org/doc/london-borough-council/havering,London Borough of Havering,27/04/2016,2710.00,APR16L285,Dr C Dahs & Dr I P Humberstone,502276,Public Health,Public Health,PH - NHS Health Check Programme,A48004,NHS Health Checks - Mandatory,PRIVATE CONTRACTORS PAYMENT - OTHER,Sue Milner,,,
http://opendatacommunities.org/doc/london-borough-council/havering,London Borough of Havering,27/04/2016,835.00,APR16L286,The Partners t/a Spring Farm Surgery,502277,Public Health,Public Health,PH - NHS Health Check Programme,A48004,NHS Health Checks - Mandatory,PRIVATE CONTRACTORS PAYMENT - OTHER,Sue Milner,,,
http://opendatacommunities.org/doc/london-borough-council/havering,London Borough of Havering,01/04/2016,540.00,APR16L287,Health In Balance,502309,"Children, Adults & Housing",Adult Services,Transforming Health and Social Care,A34120,NHS Support for Social Care,PRIVATE CONTRACTORS PAYMENT - OTHER,Barbara Nicholls,,,
http://opendatacommunities.org/doc/london-borough-council/havering,London Borough of Havering,01/04/2016,7926.36,APR16L288,Capita IT Services (BSF) Ltd,502316,oneSource Shared,oS ICT Services,oS Commercial Services,A45000,Educational Computer Centre,ICT SOFTWARE,Geoff Connell,,,
http://opendatacommunities.org/doc/london-borough-council/havering,London Borough of Havering,18/04/2016,887.12,APR16L289,Capita IT Services (BSF) Ltd,502316,oneSource Shared,oS ICT Services,oS Commercial Services,A45000,Educational Computer Centre,ICT SOFTWARE,Geoff Connell,,,
http://opendatacommunities.org/doc/london-borough-council/havering,London Borough of Havering,18/04/2016,750.64,APR16L290,Capita IT Services (BSF) Ltd,502316,oneSource Shared,oS ICT Services,oS Commercial Services,A45000,Educational Computer Centre,ICT SOFTWARE,Geoff Connell,,,
http://opendatacommunities.org/doc/london-borough-council/havering,London Borough of Havering,19/04/2016,5180.00,APR16L291,People First (Havering),502339,"Children, Adults & Housing",Adult Services,Strategy and Commissioning,A32692,Strategy & Commissioning,PRIVATE CONTRACTORS PAYMENT - OTHER,Barbara Nicholls,,,
http://opendatacommunities.org/doc/london-borough-council/havering,London Borough of Havering,27/04/2016,1705.00,APR16L292,Dr B Beheshi & Dr M Sanomi,502408,Public Health,Public Health,PH - NHS Health Check Programme,A48004,NHS Health Checks - Mandatory,PRIVATE CONTRACTORS PAYMENT - OTHER,Sue Milner,,,
http://opendatacommunities.org/doc/london-borough-council/havering,London Borough of Havering,07/04/2016,4271.92,APR16L293,Thames Water Utilities Ltd,502436,Community and Resources,Regulatory Services,Crematorium & Cems,A24220,South Essex Crematorium,WATER AND SEWERAGE,Patrick Keyes,,,
http://opendatacommunities.org/doc/london-borough-council/havering,London Borough of Havering,01/04/2016,2516.00,APR16L294,Rotowash Ltd,502528,"Children, Adults & Housing",Adult Services,Learning Disabilities,A32010,Avelon Centre,"PURCHASE - EQUIPMENT, FURNITURE AND MATERIALS",Barbara Nicholls,,,
http://opendatacommunities.org/doc/london-borough-council/havering,London Borough of Havering,25/04/2016,543.00,APR16L295,Frances Bardsley Academy for Girls,502619,"Children, Adults & Housing",DSG Learning & Achievement Service,Education Finance Support Quality and Assurance - DSG,A35301,Chbk Academy Holding Code,GENERAL CONTINGENCY,Sue Imbriano,,,
http://opendatacommunities.org/doc/london-borough-council/havering,London Borough of Havering,18/04/2016,1604.50,APR16L296,Upminster Infant School Academy,502903,"Children, Adults & Housing",DSG Learning & Achievement Service,Personnel Quality and Assurance - DSG,A35660,Trade Union Costs,SALARIES,Sue Imbriano,,,
http://opendatacommunities.org/doc/london-borough-council/havering,London Borough of Havering,18/04/2016,7929.36,APR16L297,Upminster Infant School Academy,502903,"Children, Adults & Housing",DSG Learning & Achievement Service,Personnel Quality and Assurance - DSG,A35660,Trade Union Costs,SALARIES,Sue Imbriano,,,
http://opendatacommunities.org/doc/london-borough-council/havering,London Borough of Havering,25/04/2016,441.00,APR16L298,Upminster Junior School Academy,502904,"Children, Adults & Housing",DSG Learning & Achievement Service,Education Finance Support Quality and Assurance - DSG,A35301,Chbk Academy Holding Code,GENERAL CONTINGENCY,Sue Imbriano,,,
http://opendatacommunities.org/doc/london-borough-council/havering,London Borough of Havering,26/04/2016,1281.30,APR16L299,Marula House Ltd,502922,"Children, Adults & Housing",Mental Health,Mental Health - Non Section 75,A32185,Mental Health Support,LONG TERM SUPPORT - COMMUNITY: SUPPORTED LIVING,Barbara Nicholls,,,
http://opendatacommunities.org/doc/london-borough-council/havering,London Borough of Havering,26/04/2016,1197.90,APR16L300,Marula House Ltd,502922,"Children, Adults & Housing",Mental Health,Mental Health - Non Section 75,A32185,Mental Health Support,LONG TERM SUPPORT - COMMUNITY: SUPPORTED LIVING,Barbara Nicholls,,,
http://opendatacommunities.org/doc/london-borough-council/havering,London Borough of Havering,26/04/2016,3171.30,APR16L301,Marula House Ltd,502922,"Children, Adults & Housing",Mental Health,Mental Health - Non Section 75,A32185,Mental Health Support,LONG TERM SUPPORT - COMMUNITY: SUPPORTED LIVING,Barbara Nicholls,,,
http://opendatacommunities.org/doc/london-borough-council/havering,London Borough of Havering,26/04/2016,1680.00,APR16L302,Marula House Ltd,502922,"Children, Adults & Housing",Mental Health,Mental Health - Non Section 75,A32185,Mental Health Support,LONG TERM SUPPORT - COMMUNITY: SUPPORTED LIVING,Barbara Nicholls,,,
http://opendatacommunities.org/doc/london-borough-council/havering,London Borough of Havering,25/04/2016,2908.00,APR16L303,Bower Park Academy,503094,"Children, Adults & Housing",DSG Learning & Achievement Service,Education Finance Support Quality and Assurance - DSG,A35301,Chbk Academy Holding Code,GENERAL CONTINGENCY,Sue Imbriano,,,
http://opendatacommunities.org/doc/london-borough-council/havering,London Borough of Havering,15/04/2016,590.00,APR16L304,E & M Services t/a Swisher Southend,503177,oneSource Non-Shared LBH,Asset Management,Premises Management,A46458,Town Hall Facilities Management,WATER AND SEWERAGE,Mark Butler,,,
http://opendatacommunities.org/doc/london-borough-council/havering,London Borough of Havering,22/04/2016,622.69,APR16L305,Headway East London,503198,"Children, Adults & Housing",Adult Services,Adult Community Team,A31985,Support for Social Isolation - Other,DAYCARE - PRIVATE CONTRACTORS PAYMENT,Barbara Nicholls,,,
http://opendatacommunities.org/doc/london-borough-council/havering,London Borough of Havering,01/04/2016,6000.00,APR16L306,Mencap Employment,503222,"Children, Adults & Housing",Learning & Achievement,Schools Provision and Commissioning,A36620,14-19 Commissioning Team,PROFESSIONAL SERVICES - GENERAL,Sue Imbriano,,,
http://opendatacommunities.org/doc/london-borough-council/havering,London Borough of Havering,01/04/2016,3000.00,APR16L307,Stace LLP,503243,Community and Resources,Economic Development,Housing Development Company,A26850,Housing Dev Company (Operation),CONSULTANCY FEES,Tom Dobrashian,,,
http://opendatacommunities.org/doc/london-borough-council/havering,London Borough of Havering,05/04/2016,8480.00,APR16L308,Cambian Learning Disabilities Ltd,503339,"Children, Adults & Housing",Adult Services,Learning Disabilities,A32005,Learning Disability Support,RESIDENTIAL PLACEMENTS - PRIVATE CONTRACTORS PAYMENT,Barbara Nicholls,,,
http://opendatacommunities.org/doc/london-borough-council/havering,London Borough of Havering,06/04/2016,41000.00,APR16L309,British Red Cross Society,503350,"Children, Adults & Housing",Adult Services,Strategy and Commissioning,A34080,Carers Commissioning,PAYMENTS TO VOLUNTARY SECTOR,Barbara Nicholls,,,
http://opendatacommunities.org/doc/london-borough-council/havering,London Borough of Havering,27/04/2016,511.34,APR16L310,The Whittington Hospital NHS Trust,503408,Public Health,Public Health,PH - Sexual Health,A48001,SH - STI Testing and Treatment,PRIVATE CONTRACTORS PAYMENT - OTHER,Sue Milner,,,
http://opendatacommunities.org/doc/london-borough-council/havering,London Borough of Havering,21/04/2016,1733.33,APR16L311,M & Co Property Management Ltd,503415,"Children, Adults & Housing",Housing Services,Strategy,A28845,Private Housing Solutions Team,RENTS PAYABLE,Neil Stubbings,,,
http://opendatacommunities.org/doc/london-borough-council/havering,London Borough of Havering,08/04/2016,1648.00,APR16L312,Skyguard Ltd,503436,"Children, Adults & Housing",Adult Services,Transforming Health and Social Care,A34120,NHS Support for Social Care,"PURCHASE - EQUIPMENT, FURNITURE AND MATERIALS",Barbara Nicholls,,,
http://opendatacommunities.org/doc/london-borough-council/havering,London Borough of Havering,25/04/2016,1365.00,APR16L313,The Chafford School Academy Trust,503498,"Children, Adults & Housing",DSG Learning & Achievement Service,Education Finance Support Quality and Assurance - DSG,A35301,Chbk Academy Holding Code,GENERAL CONTINGENCY,Sue Imbriano,,,
http://opendatacommunities.org/doc/london-borough-council/havering,London Borough of Havering,11/04/2016,13976.00,APR16L314,Beacon Hill Academy,503528,"Children, Adults & Housing",DSG Learning & Achievement Service,SEN - DSG,A33585,Post-16 High Needs Top- up DSG,GENERAL CONTINGENCY,Sue Imbriano,,,
http://opendatacommunities.org/doc/london-borough-council/havering,London Borough of Havering,11/04/2016,875.00,APR16L315,Randstad CPE,503560,Community and Resources,Regulatory Services,Development Control Svs,A44510,Planning Control,AGENCY STAFF,Patrick Keyes,,,
http://opendatacommunities.org/doc/london-borough-council/havering,London Borough of Havering,01/04/2016,1275.63,APR16L316,Randstad CPE,503560,Community and Resources,Regulatory Services,Development Control Svs,A44510,Planning Control,AGENCY STAFF,Patrick Keyes,,,
http://opendatacommunities.org/doc/london-borough-council/havering,London Borough of Havering,11/04/2016,1105.00,APR16L317,Randstad CPE,503560,Community and Resources,Regulatory Services,Development Control Svs,A44510,Planning Control,AGENCY STAFF,Patrick Keyes,,,
http://opendatacommunities.org/doc/london-borough-council/havering,London Borough of Havering,14/04/2016,875.00,APR16L318,Randstad CPE,503560,Community and Resources,Regulatory Services,Development Control Svs,A44510,Planning Control,AGENCY STAFF,Patrick Keyes,,,
http://opendatacommunities.org/doc/london-borough-council/havering,London Borough of Havering,18/04/2016,845.00,APR16L319,Randstad CPE,503560,Community and Resources,Regulatory Services,Development Control Svs,A44510,Planning Control,AGENCY STAFF,Patrick Keyes,,,
http://opendatacommunities.org/doc/london-borough-council/havering,London Borough of Havering,18/04/2016,700.00,APR16L320,Randstad CPE,503560,Community and Resources,Regulatory Services,Development Control Svs,A44510,Planning Control,AGENCY STAFF,Patrick Keyes,,,
http://opendatacommunities.org/doc/london-borough-council/havering,London Borough of Havering,21/04/2016,1074.78,APR16L321,Randstad CPE,503560,Community and Resources,Regulatory Services,Development Control Svs,A44510,Planning Control,AGENCY STAFF,Patrick Keyes,,,
http://opendatacommunities.org/doc/london-borough-council/havering,London Borough of Havering,21/04/2016,925.00,APR16L322,Randstad CPE,503560,Community and Resources,Regulatory Services,Development Control Svs,A44510,Planning Control,AGENCY STAFF,Patrick Keyes,,,
http://opendatacommunities.org/doc/london-borough-council/havering,London Borough of Havering,27/04/2016,1397.50,APR16L323,Randstad CPE,503560,Community and Resources,Regulatory Services,Development Control Svs,A44510,Planning Control,AGENCY STAFF,Patrick Keyes,,,
http://opendatacommunities.org/doc/london-borough-council/havering,London Borough of Havering,27/04/2016,937.50,APR16L324,Randstad CPE,503560,Community and Resources,Regulatory Services,Development Control Svs,A44510,Planning Control,AGENCY STAFF,Patrick Keyes,,,
http://opendatacommunities.org/doc/london-borough-council/havering,London Borough of Havering,07/04/2016,23023.49,APR16L325,National Star College,503668,"Children, Adults & Housing",Adult Services,Adult Community Team,A31885,Physical Support,RESIDENTIAL PLACEMENTS - PRIVATE CONTRACTORS PAYMENT,Barbara Nicholls,,,
http://opendatacommunities.org/doc/london-borough-council/havering,London Borough of Havering,11/04/2016,10643.18,APR16L326,Tower Hamlets College,503670,"Children, Adults & Housing",DSG Learning & Achievement Service,SEN - DSG,A33585,Post-16 High Needs Top- up DSG,GENERAL CONTINGENCY,Sue Imbriano,,,
http://opendatacommunities.org/doc/london-borough-council/havering,London Borough of Havering,15/04/2016,14000.00,APR16L327,Arlingclose Ltd,503699,Community and Resources,Corporate Financial Matters,Cons Rev Adjustment,A43000,Treasury Management,PROFESSIONAL SERVICES - GENERAL,Deborah Hindson,,,
http://opendatacommunities.org/doc/london-borough-council/havering,London Borough of Havering,07/04/2016,491.07,APR16L328,Biffa Waste Services Ltd,503709,oneSource Non-Shared LBH,Asset Management,Prop & Land Hldgs,A46550,Romford Market,VEHICLE HIRE,Mark Butler,,,
http://opendatacommunities.org/doc/london-borough-council/havering,London Borough of Havering,07/04/2016,811.07,APR16L329,Biffa Waste Services Ltd,503709,oneSource Non-Shared LBH,Asset Management,Prop & Land Hldgs,A46550,Romford Market,VEHICLE HIRE,Mark Butler,,,
http://opendatacommunities.org/doc/london-borough-council/havering,London Borough of Havering,07/04/2016,1068.00,APR16L330,Biffa Waste Services Ltd,503709,Community and Resources,Streetcare,Refuse Coll & Waste Dis,A27565,Disp Ind & Comm Waste-ELWA,WASTE DISPOSAL COSTS,Steve Moore,,,
http://opendatacommunities.org/doc/london-borough-council/havering,London Borough of Havering,27/04/2016,2970.00,APR16L331,Guy's & St Thomas' NHS Foundation Trust,503718,Public Health,Public Health,PH - Sexual Health,A48001,SH - STI Testing and Treatment,PRIVATE CONTRACTORS PAYMENT - OTHER,Sue Milner,,,
http://opendatacommunities.org/doc/london-borough-council/havering,London Borough of Havering,13/04/2016,2500.00,APR16L332,Kevin Stephenson Associates Ltd,503726,Community and Resources,Economic Development,LEP NHB Programme,A26800,Romford Town Centre LEP Programme,PROFESSIONAL SERVICES - GENERAL,Tom Dobrashian,,,
http://opendatacommunities.org/doc/london-borough-council/havering,London Borough of Havering,29/04/2016,-20967.72,APR16L333,NHS Havering CCG,503745,Public Health,Public Health,PH - Misc. Public Health Services,A48018,Miscellaneous / Other PH Contracts,PRIVATE CONTRACTORS PAYMENT - OTHER,Sue Milner,,,
http://opendatacommunities.org/doc/london-borough-council/havering,London Borough of Havering,27/04/2016,20967.72,APR16L334,NHS Havering CCG,503745,Public Health,Public Health,PH - Misc. Public Health Services,A48018,Miscellaneous / Other PH Contracts,PRIVATE CONTRACTORS PAYMENT - OTHER,Sue Milner,,,
http://opendatacommunities.org/doc/london-borough-council/havering,London Borough of Havering,28/04/2016,157128.53,APR16L335,NHS Havering CCG,503745,"Children, Adults & Housing",Adult Services,Adult Community Team,A31985,Support for Social Isolation - Other,LONG TERM SUPPORT - COMMUNITY: SUPPORTED LIVING,Barbara Nicholls,,,
http://opendatacommunities.org/doc/london-borough-council/havering,London Borough of Havering,27/04/2016,1237.18,APR16L336,Homerton University Hospital NHS Foundation Trust,503746,Public Health,Public Health,PH - Sexual Health,A48001,SH - STI Testing and Treatment,PRIVATE CONTRACTORS PAYMENT - OTHER,Sue Milner,,,
http://opendatacommunities.org/doc/london-borough-council/havering,London Borough of Havering,27/04/2016,703.33,APR16L337,**Redacted Personal Data**,503843,"Children, Adults & Housing",Learning & Achievement,Education Finance Support Quality and Assurance,A35000,Administration,MEMBERSHIP AND SUBSCRIPTIONS,Sue Imbriano,,,
http://opendatacommunities.org/doc/london-borough-council/havering,London Borough of Havering,25/04/2016,2156.00,APR16L338,Drapers Brookside Junior School,503887,"Children, Adults & Housing",DSG Learning & Achievement Service,Education Finance Support Quality and Assurance - DSG,A35301,Chbk Academy Holding Code,GENERAL CONTINGENCY,Sue Imbriano,,,
http://opendatacommunities.org/doc/london-borough-council/havering,London Borough of Havering,08/04/2016,2400.00,APR16L339,The Wigmore Hall Trust,503906,Community and Resources,Culture & Leisure,Music Services,A31520,Havering Music School,STAFF DEVELOPMENT AND TRAINING,Simon Parkinson,,,
http://opendatacommunities.org/doc/london-borough-council/havering,London Borough of Havering,07/04/2016,748.29,APR16L340,Lift Safe Ltd,503922,oneSource Non-Shared LBH,Asset Management,Prop & Land Hldgs,A46550,Romford Market,"ADVERTISING, PUBLICITY AND MARKETING",Mark Butler,,,
http://opendatacommunities.org/doc/london-borough-council/havering,London Borough of Havering,07/04/2016,960.00,APR16L341,Lift Safe Ltd,503922,oneSource Non-Shared LBH,Asset Management,Prop & Land Hldgs,A46550,Romford Market,"ADVERTISING, PUBLICITY AND MARKETING",Mark Butler,,,
http://opendatacommunities.org/doc/london-borough-council/havering,London Borough of Havering,29/04/2016,38315.00,APR16L342,Priors Court Foundation,504755,"Children, Adults & Housing",DSG Learning & Achievement Service,SEN - DSG,A33535,Residential School Budget,PRIVATE CONTRACTORS PAYMENT - OTHER,Sue Imbriano,,,
http://opendatacommunities.org/doc/london-borough-council/havering,London Borough of Havering,05/04/2016,4952.15,APR16L343,Hays Specialist Recruitment Ltd,505168,"Children, Adults & Housing",Learning & Achievement,Traded Services,A35640,Personnel - Education,FEES & CHARGES INCOME - OTHER,Sue Imbriano,,,
http://opendatacommunities.org/doc/london-borough-council/havering,London Borough of Havering,20/04/2016,2500.00,APR16L344,Future of London 2011 Ltd,507556,Community and Resources,Economic Development,Economic Regeneration,A26340,Economic Development Implementation,MEMBERSHIP AND SUBSCRIPTIONS,Tom Dobrashian,,,
http://opendatacommunities.org/doc/london-borough-council/havering,London Borough of Havering,18/04/2016,3879.34,APR16L345,Barnardos,507587,"Children, Adults & Housing",Childrens Services,Existing Placements,A38320,LAC Placements,FOSTERING AGENCY PLACEMENTS - PRIVATE CONTRACTORS PAYMENT,Tim Aldridge,,,
http://opendatacommunities.org/doc/london-borough-council/havering,London Borough of Havering,18/04/2016,10107.10,APR16L346,The Artemis Team,507807,"Children, Adults & Housing",Childrens Services,Leaving Care Service,A38420,Section 23 & 24 Childrens Act,SUPPORTED OTHER ACCOMMODATION - PRIVATE CONTRACTORS PAYMENT,Tim Aldridge,,,
http://opendatacommunities.org/doc/london-borough-council/havering,London Borough of Havering,13/04/2016,499.48,APR16L347,Signpost Solutions Ltd,508239,Community and Resources,Streetcare,Highways Cost Recovery Account,A27310,Highways Cost Recovery Account,PRIVATE CONTRACTORS PAYMENT - OTHER,Steve Moore,,,
http://opendatacommunities.org/doc/london-borough-council/havering,London Borough of Havering,07/04/2016,675.00,APR16L348,Diversified Business Communications UK Ltd,509973,oneSource Non-Shared LBH,Asset Management,Prop & Land Hldgs,A46550,Romford Market,"ADVERTISING, PUBLICITY AND MARKETING",Mark Butler,,,
http://opendatacommunities.org/doc/london-borough-council/havering,London Borough of Havering,05/04/2016,6917.80,APR16L349,NorthgateArinso UK Ltd,510803,Community and Resources,Transformation Agenda,People And Change Transformation,A50715,Terms and Conditions Review,PRIVATE CONTRACTORS PAYMENT - OTHER,Andrew Blake-Herbert,,,
http://opendatacommunities.org/doc/london-borough-council/havering,London Borough of Havering,13/04/2016,1500.00,APR16L350,Hardwicke Chambers,511206,"Children, Adults & Housing",Housing Services,Housing Aid & Advice,A28600,Provision For Homeless,LEGAL FEES,Neil Stubbings,,,
http://opendatacommunities.org/doc/london-borough-council/havering,London Borough of Havering,01/04/2016,1500.00,APR16L351,Pre-Construct Archaeology Ltd,511848,Community and Resources,Economic Development,Housing Development Company,A26850,Housing Dev Company (Operation),CONSULTANCY FEES,Tom Dobrashian,,,
http://opendatacommunities.org/doc/london-borough-council/havering,London Borough of Havering,01/04/2016,1575.00,APR16L352,InterQuest Group UK Limited,511890,"Children, Adults & Housing",Childrens Services,Childrens Social Services Other,A39400,Contact Point,CONSULTANCY FEES,Tim Aldridge,,,
http://opendatacommunities.org/doc/london-borough-council/havering,London Borough of Havering,01/04/2016,1575.00,APR16L353,InterQuest Group UK Limited,511890,"Children, Adults & Housing",Childrens Services,Childrens Social Services Other,A39400,Contact Point,CONSULTANCY FEES,Tim Aldridge,,,
http://opendatacommunities.org/doc/london-borough-council/havering,London Borough of Havering,05/04/2016,1260.00,APR16L354,InterQuest Group UK Limited,511890,"Children, Adults & Housing",Childrens Services,Childrens Social Services Other,A39400,Contact Point,CONSULTANCY FEES,Tim Aldridge,,,
http://opendatacommunities.org/doc/london-borough-council/havering,London Borough of Havering,18/04/2016,1260.00,APR16L355,InterQuest Group UK Limited,511890,"Children, Adults & Housing",Childrens Services,Childrens Social Services Other,A39400,Contact Point,CONSULTANCY FEES,Tim Aldridge,,,
http://opendatacommunities.org/doc/london-borough-council/havering,London Borough of Havering,18/04/2016,1575.00,APR16L356,InterQuest Group UK Limited,511890,"Children, Adults & Housing",Childrens Services,Childrens Social Services Other,A39400,Contact Point,CONSULTANCY FEES,Tim Aldridge,,,
http://opendatacommunities.org/doc/london-borough-council/havering,London Borough of Havering,12/04/2016,8900.00,APR16L357,Ealing Council,511966,"Children, Adults & Housing",Housing (HRA),Hsg Needs & Strategy,A28000,Havering Telecare Centre,PRIVATE CONTRACTORS PAYMENT - OTHER,Neil Stubbings,,,
http://opendatacommunities.org/doc/london-borough-council/havering,London Borough of Havering,28/04/2016,18930.00,APR16L358,Ealing Council,511966,Public Health,Public Health,PH - Misc. Public Health Services,A48018,Miscellaneous / Other PH Contracts,PRIVATE CONTRACTORS PAYMENT - OTHER,Sue Milner,,,
http://opendatacommunities.org/doc/london-borough-council/havering,London Borough of Havering,29/04/2016,716.03,APR16L359,Good Skills Training Ltd,515109,"Children, Adults & Housing",Safeguarding - Quality and Assurance,Learning and Development,A47420,Learning and Development,STAFF DEVELOPMENT AND TRAINING,Sue Imbriano,,,
http://opendatacommunities.org/doc/london-borough-council/havering,London Borough of Havering,26/04/2016,970.00,APR16L360,**Redacted Personal Data**,515339,"Children, Adults & Housing",Childrens Services,"MASH, Assessment and Child protection",A39160,Legal Costs - Children'S Social Care,LEGAL FEES,Tim Aldridge,,,
http://opendatacommunities.org/doc/london-borough-council/havering,London Borough of Havering,14/04/2016,656.32,APR16L361,Instarmac Group PLC,517364,Community and Resources,Streetcare,Highways Cost Recovery Account,A27310,Highways Cost Recovery Account,PRIVATE CONTRACTORS PAYMENT - OTHER,Steve Moore,,,
http://opendatacommunities.org/doc/london-borough-council/havering,London Borough of Havering,18/04/2016,1800.00,APR16L362,Thurrock Borough Council,518154,Community and Resources,Economic Development,Economic Regeneration,A26795,ED Business Support,PROFESSIONAL SERVICES - GENERAL,Tom Dobrashian,,,
http://opendatacommunities.org/doc/london-borough-council/havering,London Borough of Havering,15/04/2016,4500.00,APR16L363,Thurrock Borough Council,518154,Community and Resources,Economic Development,Economic Regeneration,A26795,ED Business Support,PROFESSIONAL SERVICES - GENERAL,Tom Dobrashian,,,
http://opendatacommunities.org/doc/london-borough-council/havering,London Borough of Havering,13/04/2016,15000.00,APR16L364,The Tavistock Institute of Human Relations,521212,"Children, Adults & Housing",Childrens Services,Adoption,A38520,Adoption Team,CONSULTANCY FEES,Tim Aldridge,,,
http://opendatacommunities.org/doc/london-borough-council/havering,London Borough of Havering,15/04/2016,3530.00,APR16L365,Rosehill Instruments Ltd,524622,Community and Resources,Culture & Leisure,Music Services,A31520,Havering Music School,PRIVATE CONTRACTORS PAYMENT - OTHER,Simon Parkinson,,,
http://opendatacommunities.org/doc/london-borough-council/havering,London Borough of Havering,21/04/2016,770.00,APR16L366,Diocese of Brentwood,524853,Community and Resources,Regulatory Services,Development Control Svs,A44510,Planning Control,FEES & CHARGES INCOME - OTHER,Patrick Keyes,,,
http://opendatacommunities.org/doc/london-borough-council/havering,London Borough of Havering,05/04/2016,566.00,APR16L367,LPFA t/a London Pensions Fund Authority,524948,oneSource Non-Shared LBH,Internal Shared Services,Shared Services,A42145,Pension Section,PRIVATE CONTRACTORS PAYMENT - OTHER,Sarah Bryant,,,
http://opendatacommunities.org/doc/london-borough-council/havering,London Borough of Havering,19/04/2016,1000.00,APR16L368,Capsticks Solicitors LLP,528654,Community and Resources,Policy & Performance,Community Safety & Development,A53400,Community Safety.,STAFF DEVELOPMENT AND TRAINING,Phillipa Brent-Isherwood,,,
http://opendatacommunities.org/doc/london-borough-council/havering,London Borough of Havering,04/04/2016,1290.00,APR16L369,Oxford Brookes University,528927,"Children, Adults & Housing",Learning & Achievement,Special Educational Needs and Disabilities,A36810,"SEND Team ? Commissioning, procurement and Q&A",STAFF DEVELOPMENT AND TRAINING,Sue Imbriano,,,
http://opendatacommunities.org/doc/london-borough-council/havering,London Borough of Havering,05/04/2016,638.00,APR16L370,PPMA,528940,oneSource Shared,oS Strategic & Operational HR,oS Strategic & Operational HR,A47310,People & Change,STAFF DEVELOPMENT AND TRAINING,Caroline Nugent,,,
http://opendatacommunities.org/doc/london-borough-council/havering,London Borough of Havering,26/04/2016,2172.00,APR16L371,PPMA,528940,oneSource Shared,oS Strategic & Operational HR,oS Strategic & Operational HR,A47310,People & Change,MISCELLANEOUS EXPENSES,Caroline Nugent,,,
http://opendatacommunities.org/doc/london-borough-council/havering,London Borough of Havering,27/04/2016,430.00,APR16L372,Dr Aarron Patel,528958,Public Health,Public Health,PH - NHS Health Check Programme,A48004,NHS Health Checks - Mandatory,PRIVATE CONTRACTORS PAYMENT - OTHER,Sue Milner,,,
http://opendatacommunities.org/doc/london-borough-council/havering,London Borough of Havering,12/04/2016,-670.05,APR16L373,Assa Abloy Entrance Systems Ltd,529064,oneSource Non-Shared LBH,Asset Management,Premises Management,A46601,Corporate Landlord-LBH,CYCLICAL/PLANNED MAINTENANCE - BUILDING,Mark Butler,,,
http://opendatacommunities.org/doc/london-borough-council/havering,London Borough of Havering,12/04/2016,670.05,APR16L374,Assa Abloy Entrance Systems Ltd,529064,oneSource Non-Shared LBH,Asset Management,Premises Management,A46601,Corporate Landlord-LBH,CYCLICAL/PLANNED MAINTENANCE - BUILDING,Mark Butler,,,
http://opendatacommunities.org/doc/london-borough-council/havering,London Borough of Havering,15/04/2016,795.00,APR16L375,The National Association of British Market Authorities (NABMA) - Conferences,529066,oneSource Non-Shared LBH,Asset Management,Prop & Land Hldgs,A46550,Romford Market,WATER AND SEWERAGE,Mark Butler,,,
http://opendatacommunities.org/doc/london-borough-council/havering,London Borough of Havering,20/04/2016,845.78,APR16L376,Computershare Voucher Services,529150,oneSource Non-Shared LBH,Internal Shared Services,Shared Services,A42150,Payroll - Childcare Vouchers,PRIVATE CONTRACTORS PAYMENT - OTHER,Sarah Bryant,,,
http://opendatacommunities.org/doc/london-borough-council/havering,London Borough of Havering,20/04/2016,28192.65,APR16L377,Computershare Voucher Services,529150,oneSource Non-Shared LBH,Internal Shared Services,Shared Services,A42150,Payroll - Childcare Vouchers,PRIVATE CONTRACTORS PAYMENT - OTHER,Sarah Bryant,,,
http://opendatacommunities.org/doc/london-borough-council/havering,London Borough of Havering,28/04/2016,937.00,APR16L378,Essex Ecology Services Ltd,529278,"Children, Adults & Housing",Housing (HRA),Hsg Needs & Strategy,A28270,Development of HRA Land,PROFESSIONAL SERVICES - GENERAL,Neil Stubbings,,,
http://opendatacommunities.org/doc/london-borough-council/havering,London Borough of Havering,29/04/2016,18000.00,APR16L379,Intec for Business Ltd,529388,oneSource Shared,oS Finance,"oS Audit, Risk, Insurance & Fraud",A23855,Benefits - Fraud,PRIVATE CONTRACTORS PAYMENT - OTHER,Deborah Hindson,,,
http://opendatacommunities.org/doc/london-borough-council/havering,London Borough of Havering,25/04/2016,10744.00,APR16L380,Hall Mead School Academy,529413,"Children, Adults & Housing",DSG Learning & Achievement Service,Education Finance Support Quality and Assurance - DSG,A35301,Chbk Academy Holding Code,GENERAL CONTINGENCY,Sue Imbriano,,,
http://opendatacommunities.org/doc/london-borough-council/havering,London Borough of Havering,25/04/2016,5873.00,APR16L381,Hall Mead School Academy,529413,"Children, Adults & Housing",DSG Learning & Achievement Service,Education Finance Support Quality and Assurance - DSG,A35301,Chbk Academy Holding Code,GENERAL CONTINGENCY,Sue Imbriano,,,
http://opendatacommunities.org/doc/london-borough-council/havering,London Borough of Havering,25/04/2016,1667.00,APR16L382,Hall Mead School Academy,529413,"Children, Adults & Housing",DSG Learning & Achievement Service,SEN - DSG,A33590,Special Unit and Resourced Provision,GENERAL CONTINGENCY,Sue Imbriano,,,
http://opendatacommunities.org/doc/london-borough-council/havering,London Borough of Havering,25/04/2016,3274.00,APR16L383,Hall Mead School Academy,529413,"Children, Adults & Housing",DSG Learning & Achievement Service,SEN - DSG,A33580,Pre-16 High Needs Top-up DSG,GENERAL CONTINGENCY,Sue Imbriano,,,
http://opendatacommunities.org/doc/london-borough-council/havering,London Borough of Havering,19/04/2016,20000.00,APR16L384,Hall Mead School Academy,529413,"Children, Adults & Housing",Learning & Achievement,Borough Catering,A36303,Catering - Hall Mead,ICT HARDWARE,Sue Imbriano,,,
http://opendatacommunities.org/doc/london-borough-council/havering,London Borough of Havering,25/04/2016,1802.00,APR16L385,St Edwards Church of England School & Sixth Form College,529415,"Children, Adults & Housing",DSG Learning & Achievement Service,Education Finance Support Quality and Assurance - DSG,A35301,Chbk Academy Holding Code,GENERAL CONTINGENCY,Sue Imbriano,,,
http://opendatacommunities.org/doc/london-borough-council/havering,London Borough of Havering,13/04/2016,3169.50,APR16L386,Savills (UK) Ltd,529420,Community and Resources,Streetcare,Borough Roads,A27026,Bor Rds Highways General,PRIVATE CONTRACTORS PAYMENT - OTHER,Steve Moore,,,
http://opendatacommunities.org/doc/london-borough-council/havering,London Borough of Havering,13/04/2016,2972.50,APR16L387,Savills (UK) Ltd,529420,Community and Resources,Streetcare,Borough Roads,A27026,Bor Rds Highways General,PRIVATE CONTRACTORS PAYMENT - OTHER,Steve Moore,,,
http://opendatacommunities.org/doc/london-borough-council/havering,London Borough of Havering,21/04/2016,7425.00,APR16L388,Keith Ibbetson Consulting Ltd,529485,"Children, Adults & Housing",Safeguarding - Quality and Assurance,Safeguarding Unit,A39000,Local Safeguarding Children Board,MEMBERSHIP AND SUBSCRIPTIONS,Sue Imbriano,,,
http://opendatacommunities.org/doc/london-borough-council/havering,London Borough of Havering,27/04/2016,955.00,APR16L389,"Dr Ansari, Dr Imran, Dr Oladimeji t/a J Hamilton-Smith & Partners",529647,Public Health,Public Health,PH - NHS Health Check Programme,A48004,NHS Health Checks - Mandatory,PRIVATE CONTRACTORS PAYMENT - OTHER,Sue Milner,,,
http://opendatacommunities.org/doc/london-borough-council/havering,London Borough of Havering,06/04/2016,1667.00,APR16L390,Havcare,529889,"Children, Adults & Housing",Adult Services,Learning Disabilities,A32005,Learning Disability Support,PRIVATE CONTRACTORS PAYMENT - OTHER,Barbara Nicholls,,,
http://opendatacommunities.org/doc/london-borough-council/havering,London Borough of Havering,29/04/2016,889.00,APR16L391,Pentagon Leisure (Services) Ltd t/as Pentagon IT,529898,Community and Resources,Regulatory Services,Environmental Health,A26230,Envir Health Housing & Pub Health,STAFF DEVELOPMENT AND TRAINING,Patrick Keyes,,,
http://opendatacommunities.org/doc/london-borough-council/havering,London Borough of Havering,29/04/2016,2814.90,APR16L392,Foster Care Associates Ltd,529966,"Children, Adults & Housing",Learning & Achievement,Children With Disabilities,A38380,CWD Placements,FOSTERING AGENCY PLACEMENTS - PRIVATE CONTRACTORS PAYMENT,Sue Imbriano,,,
http://opendatacommunities.org/doc/london-borough-council/havering,London Borough of Havering,29/04/2016,3439.80,APR16L393,Foster Care Associates Ltd,529966,"Children, Adults & Housing",Learning & Achievement,Children With Disabilities,A38380,CWD Placements,FOSTERING AGENCY PLACEMENTS - PRIVATE CONTRACTORS PAYMENT,Sue Imbriano,,,
http://opendatacommunities.org/doc/london-borough-council/havering,London Borough of Havering,15/04/2016,1231.00,APR16L394,Foster Care Associates Ltd,529966,"Children, Adults & Housing",Learning & Achievement,Children With Disabilities,A38380,CWD Placements,FOSTERING AGENCY PLACEMENTS - PRIVATE CONTRACTORS PAYMENT,Sue Imbriano,,,
http://opendatacommunities.org/doc/london-borough-council/havering,London Borough of Havering,15/04/2016,1231.00,APR16L395,Foster Care Associates Ltd,529966,"Children, Adults & Housing",Learning & Achievement,Children With Disabilities,A38380,CWD Placements,FOSTERING AGENCY PLACEMENTS - PRIVATE CONTRACTORS PAYMENT,Sue Imbriano,,,
http://opendatacommunities.org/doc/london-borough-council/havering,London Borough of Havering,15/04/2016,3458.77,APR16L396,Apetito Ltd,530202,"Children, Adults & Housing",Learning & Achievement,Borough Catering,A36364,Catering - Meals on Wheels,VEHICLE LEASES,Sue Imbriano,,,
http://opendatacommunities.org/doc/london-borough-council/havering,London Borough of Havering,06/04/2016,68369.00,APR16L397,Towers Infant School,530203,"Children, Adults & Housing",DSG Learning & Achievement Service,Primary,A72070,Towers Infant,SCHOOL BANK ACCOUNTS,Sue Imbriano,,,
http://opendatacommunities.org/doc/london-borough-council/havering,London Borough of Havering,26/04/2016,94152.00,APR16L398,Towers Infant School,530203,"Children, Adults & Housing",DSG Learning & Achievement Service,Primary,A72070,Towers Infant,SCHOOL BANK ACCOUNTS,Sue Imbriano,,,
http://opendatacommunities.org/doc/london-borough-council/havering,London Borough of Havering,11/04/2016,15906.00,APR16L399,Havering College of Further & Higher Education,530206,"Children, Adults & Housing",DSG Learning & Achievement Service,SEN - DSG,A33585,Post-16 High Needs Top- up DSG,GENERAL CONTINGENCY,Sue Imbriano,,,
http://opendatacommunities.org/doc/london-borough-council/havering,London Borough of Havering,06/04/2016,94524.00,APR16L400,Crownfield Junior School,530219,"Children, Adults & Housing",DSG Learning & Achievement Service,Primary,A72041,Crownfield Junior,SCHOOL BANK ACCOUNTS,Sue Imbriano,,,
http://opendatacommunities.org/doc/london-borough-council/havering,London Borough of Havering,25/04/2016,116018.00,APR16L401,Crownfield Junior School,530219,"Children, Adults & Housing",DSG Learning & Achievement Service,Primary,A72041,Crownfield Junior,SCHOOL BANK ACCOUNTS,Sue Imbriano,,,
http://opendatacommunities.org/doc/london-borough-council/havering,London Borough of Havering,06/04/2016,99519.00,APR16L402,Parklands Infant School,530220,"Children, Adults & Housing",DSG Learning & Achievement Service,Primary,A72056,Parklands Infant,SCHOOL BANK ACCOUNTS,Sue Imbriano,,,
http://opendatacommunities.org/doc/london-borough-council/havering,London Borough of Havering,25/04/2016,144149.00,APR16L403,Parklands Infant School,530220,"Children, Adults & Housing",DSG Learning & Achievement Service,Primary,A72056,Parklands Infant,SCHOOL BANK ACCOUNTS,Sue Imbriano,,,
http://opendatacommunities.org/doc/london-borough-council/havering,London Borough of Havering,06/04/2016,200751.00,APR16L404,Gaynes School Language College,530221,"Children, Adults & Housing",DSG Learning & Achievement Service,Secondary,A74026,Gaynes School,SCHOOL BANK ACCOUNTS,Sue Imbriano,,,
http://opendatacommunities.org/doc/london-borough-council/havering,London Borough of Havering,25/04/2016,244669.00,APR16L405,Gaynes School Language College,530221,"Children, Adults & Housing",DSG Learning & Achievement Service,Secondary,A74026,Gaynes School,SCHOOL BANK ACCOUNTS,Sue Imbriano,,,
http://opendatacommunities.org/doc/london-borough-council/havering,London Borough of Havering,06/04/2016,122267.00,APR16L406,Hylands Primary School,530226,"Children, Adults & Housing",DSG Learning & Achievement Service,Primary,A72014,Hylands Primary,SCHOOL BANK ACCOUNTS,Sue Imbriano,,,
http://opendatacommunities.org/doc/london-borough-council/havering,London Borough of Havering,25/04/2016,163742.00,APR16L407,Hylands Primary School,530226,"Children, Adults & Housing",DSG Learning & Achievement Service,Primary,A72014,Hylands Primary,SCHOOL BANK ACCOUNTS,Sue Imbriano,,,
http://opendatacommunities.org/doc/london-borough-council/havering,London Borough of Havering,05/04/2016,528.01,APR16L408,Hylands Primary School,530226,"Children, Adults & Housing",Learning & Achievement,Personnel Quality and Assurance,A35655,Sickness Insurance Scheme,STAFF OTHER EXPENSES,Sue Imbriano,,,
http://opendatacommunities.org/doc/london-borough-council/havering,London Borough of Havering,06/04/2016,63643.00,APR16L409,St Peters Catholic Primary School,530227,"Children, Adults & Housing",DSG Learning & Achievement Service,Primary,A73507,St Peters Primary,SCHOOL BANK ACCOUNTS,Sue Imbriano,,,
http://opendatacommunities.org/doc/london-borough-council/havering,London Borough of Havering,26/04/2016,83489.00,APR16L410,St Peters Catholic Primary School,530227,"Children, Adults & Housing",DSG Learning & Achievement Service,Primary,A73507,St Peters Primary,SCHOOL BANK ACCOUNTS,Sue Imbriano,,,
http://opendatacommunities.org/doc/london-borough-council/havering,London Borough of Havering,20/04/2016,430.00,APR16L411,LLG Legal Training Ltd,530230,oneSource Shared,oS Legal & Governance,oS Legal,A53320,Legal Services,STAFF DEVELOPMENT AND TRAINING,Daniel Fenwick,,,
http://opendatacommunities.org/doc/london-borough-council/havering,London Borough of Havering,08/04/2016,665.00,APR16L412,Action First iPeople Ltd,530248,"Children, Adults & Housing",Adult Services,Prevention,A31750,Adult Protection,PRIVATE CONTRACTORS PAYMENT - OTHER,Barbara Nicholls,,,
http://opendatacommunities.org/doc/london-borough-council/havering,London Borough of Havering,08/04/2016,630.00,APR16L413,Action First iPeople Ltd,530248,"Children, Adults & Housing",Adult Services,Prevention,A31750,Adult Protection,PRIVATE CONTRACTORS PAYMENT - OTHER,Barbara Nicholls,,,
http://opendatacommunities.org/doc/london-borough-council/havering,London Borough of Havering,12/04/2016,945.00,APR16L414,Action First iPeople Ltd,530248,"Children, Adults & Housing",Adult Services,Prevention,A31750,Adult Protection,PRIVATE CONTRACTORS PAYMENT - OTHER,Barbara Nicholls,,,
http://opendatacommunities.org/doc/london-borough-council/havering,London Borough of Havering,14/04/2016,15150.00,APR16L415,Pitney Bowes Ltd t/as Pitney Bowes Purchase Power,530255,oneSource Shared,oS Asset Management Services,oS Health & Safety,A46412,Corp.Support Svs Section,INTERNAL RECHARGES,Mark Butler,,,
http://opendatacommunities.org/doc/london-borough-council/havering,London Borough of Havering,06/04/2016,148229.00,APR16L416,Manor Green College_a,530259,"Children, Adults & Housing",DSG Learning & Achievement Service,Special,A71104,ISB PUPIL REFERRAL SERVICE,SCHOOL BANK ACCOUNTS,Sue Imbriano,,,
http://opendatacommunities.org/doc/london-borough-council/havering,London Borough of Havering,25/04/2016,163455.00,APR16L417,Manor Green College_a,530259,"Children, Adults & Housing",DSG Learning & Achievement Service,Special,A71104,ISB PUPIL REFERRAL SERVICE,SCHOOL BANK ACCOUNTS,Sue Imbriano,,,
http://opendatacommunities.org/doc/london-borough-council/havering,London Borough of Havering,28/04/2016,5309.96,APR16L418,Manor Green College_a,530259,"Children, Adults & Housing",Learning & Achievement,Personnel Quality and Assurance,A35655,Sickness Insurance Scheme,STAFF OTHER EXPENSES,Sue Imbriano,,,
http://opendatacommunities.org/doc/london-borough-council/havering,London Borough of Havering,25/04/2016,2097.00,APR16L419,Langtons Junior Academy,530260,"Children, Adults & Housing",DSG Learning & Achievement Service,Education Finance Support Quality and Assurance - DSG,A35301,Chbk Academy Holding Code,GENERAL CONTINGENCY,Sue Imbriano,,,
http://opendatacommunities.org/doc/london-borough-council/havering,London Borough of Havering,18/04/2016,2788.52,APR16L420,District Surveyors Association Ltd,530325,Community and Resources,Regulatory Services,Development Control Svs,A44500,Building Control,MEMBERSHIP AND SUBSCRIPTIONS,Patrick Keyes,,,
http://opendatacommunities.org/doc/london-borough-council/havering,London Borough of Havering,21/04/2016,1000.00,APR16L421,RNIB Services Ltd,530332,"Children, Adults & Housing",Safeguarding - Quality and Assurance,Learning and Development,A47420,Learning and Development,STAFF DEVELOPMENT AND TRAINING,Sue Imbriano,,,
http://opendatacommunities.org/doc/london-borough-council/havering,London Borough of Havering,06/04/2016,55200.00,APR16L422,La Salette Roman Catholic Primary School,530443,"Children, Adults & Housing",DSG Learning & Achievement Service,Primary,A73502,La Salette Primary,SCHOOL BANK ACCOUNTS,Sue Imbriano,,,
http://opendatacommunities.org/doc/london-borough-council/havering,London Borough of Havering,25/04/2016,71017.00,APR16L423,La Salette Roman Catholic Primary School,530443,"Children, Adults & Housing",DSG Learning & Achievement Service,Primary,A73502,La Salette Primary,SCHOOL BANK ACCOUNTS,Sue Imbriano,,,
http://opendatacommunities.org/doc/london-borough-council/havering,London Borough of Havering,28/04/2016,650.00,APR16L424,La Salette Roman Catholic Primary School,530443,"Children, Adults & Housing",Learning & Achievement,Personnel Quality and Assurance,A35655,Sickness Insurance Scheme,STAFF OTHER EXPENSES,Sue Imbriano,,,
http://opendatacommunities.org/doc/london-borough-council/havering,London Borough of Havering,06/04/2016,95086.00,APR16L425,St Mary's Roman Catholic Primary School,530444,"Children, Adults & Housing",DSG Learning & Achievement Service,Primary,A73501,St Marys Jm&I School,SCHOOL BANK ACCOUNTS,Sue Imbriano,,,
http://opendatacommunities.org/doc/london-borough-council/havering,London Borough of Havering,26/04/2016,129575.00,APR16L426,St Mary's Roman Catholic Primary School,530444,"Children, Adults & Housing",DSG Learning & Achievement Service,Primary,A73501,St Marys Jm&I School,SCHOOL BANK ACCOUNTS,Sue Imbriano,,,
http://opendatacommunities.org/doc/london-borough-council/havering,London Borough of Havering,28/04/2016,1309.79,APR16L427,St Mary's Roman Catholic Primary School,530444,"Children, Adults & Housing",Learning & Achievement,Personnel Quality and Assurance,A35655,Sickness Insurance Scheme,STAFF OTHER EXPENSES,Sue Imbriano,,,
http://opendatacommunities.org/doc/london-borough-council/havering,London Borough of Havering,05/04/2016,588.95,APR16L428,St Mary's Roman Catholic Primary School,530444,"Children, Adults & Housing",Learning & Achievement,Personnel Quality and Assurance,A35655,Sickness Insurance Scheme,STAFF OTHER EXPENSES,Sue Imbriano,,,
http://opendatacommunities.org/doc/london-borough-council/havering,London Borough of Havering,06/04/2016,71796.00,APR16L429,Scargill Infant School,530463,"Children, Adults & Housing",DSG Learning & Achievement Service,Primary,A72023,Scargill Infant,SCHOOL BANK ACCOUNTS,Sue Imbriano,,,
http://opendatacommunities.org/doc/london-borough-council/havering,London Borough of Havering,26/04/2016,93986.00,APR16L430,Scargill Infant School,530463,"Children, Adults & Housing",DSG Learning & Achievement Service,Primary,A72023,Scargill Infant,SCHOOL BANK ACCOUNTS,Sue Imbriano,,,
http://opendatacommunities.org/doc/london-borough-council/havering,London Borough of Havering,06/04/2016,68082.00,APR16L431,Whybridge Junior School,530464,"Children, Adults & Housing",DSG Learning & Achievement Service,Primary,A72025,Whybridge Junior,SCHOOL BANK ACCOUNTS,Sue Imbriano,,,
http://opendatacommunities.org/doc/london-borough-council/havering,London Borough of Havering,26/04/2016,83743.00,APR16L432,Whybridge Junior School,530464,"Children, Adults & Housing",DSG Learning & Achievement Service,Primary,A72025,Whybridge Junior,SCHOOL BANK ACCOUNTS,Sue Imbriano,,,
http://opendatacommunities.org/doc/london-borough-council/havering,London Borough of Havering,28/04/2016,1532.70,APR16L433,Whybridge Junior School,530464,"Children, Adults & Housing",Learning & Achievement,Personnel Quality and Assurance,A35655,Sickness Insurance Scheme,STAFF OTHER EXPENSES,Sue Imbriano,,,
http://opendatacommunities.org/doc/london-borough-council/havering,London Borough of Havering,05/04/2016,507.65,APR16L434,Whybridge Junior School,530464,"Children, Adults & Housing",Learning & Achievement,Personnel Quality and Assurance,A35655,Sickness Insurance Scheme,STAFF OTHER EXPENSES,Sue Imbriano,,,
http://opendatacommunities.org/doc/london-borough-council/havering,London Borough of Havering,06/04/2016,67339.00,APR16L435,Ardleigh Green Infants School,530562,"Children, Adults & Housing",DSG Learning & Achievement Service,Primary,A72007,Ardleigh Green Infant,SCHOOL BANK ACCOUNTS,Sue Imbriano,,,
http://opendatacommunities.org/doc/london-borough-council/havering,London Borough of Havering,25/04/2016,91509.00,APR16L436,Ardleigh Green Infants School,530562,"Children, Adults & Housing",DSG Learning & Achievement Service,Primary,A72007,Ardleigh Green Infant,SCHOOL BANK ACCOUNTS,Sue Imbriano,,,
http://opendatacommunities.org/doc/london-borough-council/havering,London Borough of Havering,11/04/2016,660.52,APR16L437,Hanson Aggregates,530566,Community and Resources,Streetcare,Highways Cost Recovery Account,A27310,Highways Cost Recovery Account,PRIVATE CONTRACTORS PAYMENT - OTHER,Steve Moore,,,
http://opendatacommunities.org/doc/london-borough-council/havering,London Borough of Havering,14/04/2016,691.88,APR16L438,Hanson Aggregates,530566,Community and Resources,Streetcare,Highways Cost Recovery Account,A27310,Highways Cost Recovery Account,PRIVATE CONTRACTORS PAYMENT - OTHER,Steve Moore,,,
http://opendatacommunities.org/doc/london-borough-council/havering,London Borough of Havering,22/04/2016,525.28,APR16L439,Hanson Aggregates,530566,Community and Resources,Streetcare,Highways Cost Recovery Account,A27310,Highways Cost Recovery Account,PRIVATE CONTRACTORS PAYMENT - OTHER,Steve Moore,,,
http://opendatacommunities.org/doc/london-borough-council/havering,London Borough of Havering,22/04/2016,456.68,APR16L440,Hanson Aggregates,530566,Community and Resources,Streetcare,Highways Cost Recovery Account,A27310,Highways Cost Recovery Account,PRIVATE CONTRACTORS PAYMENT - OTHER,Steve Moore,,,
http://opendatacommunities.org/doc/london-borough-council/havering,London Borough of Havering,28/04/2016,686.00,APR16L441,Hanson Aggregates,530566,Community and Resources,Streetcare,Highways Cost Recovery Account,A27310,Highways Cost Recovery Account,PRIVATE CONTRACTORS PAYMENT - OTHER,Steve Moore,,,
http://opendatacommunities.org/doc/london-borough-council/havering,London Borough of Havering,28/04/2016,403.76,APR16L442,Hanson Aggregates,530566,Community and Resources,Streetcare,Highways Cost Recovery Account,A27310,Highways Cost Recovery Account,PRIVATE CONTRACTORS PAYMENT - OTHER,Steve Moore,,,
http://opendatacommunities.org/doc/london-borough-council/havering,London Borough of Havering,27/04/2016,5250.00,APR16L443,Greater London Authority,530569,"Children, Adults & Housing",Housing (HRA),Hsg Needs & Strategy,A28250,Needs and Service Development,MEMBERSHIP AND SUBSCRIPTIONS,Neil Stubbings,,,
http://opendatacommunities.org/doc/london-borough-council/havering,London Borough of Havering,06/04/2016,124213.00,APR16L444,Branfil Primary School,530575,"Children, Adults & Housing",DSG Learning & Achievement Service,Primary,A73509,Branfil Primary,SCHOOL BANK ACCOUNTS,Sue Imbriano,,,
http://opendatacommunities.org/doc/london-borough-council/havering,London Borough of Havering,25/04/2016,160806.00,APR16L445,Branfil Primary School,530575,"Children, Adults & Housing",DSG Learning & Achievement Service,Primary,A73509,Branfil Primary,SCHOOL BANK ACCOUNTS,Sue Imbriano,,,
http://opendatacommunities.org/doc/london-borough-council/havering,London Borough of Havering,01/04/2016,1187.75,APR16L446,**Redacted Personal Data**,530701,Community and Resources,Culture & Leisure,Library Service,A23110,Bibliographical Services,"BOOKS, PUBLICATIONS AND RESOURCES",Simon Parkinson,,,
http://opendatacommunities.org/doc/london-borough-council/havering,London Borough of Havering,07/04/2016,690.73,APR16L447,Mears Care Ltd,530719,"Children, Adults & Housing",Adult Services,Adult Community Team,A31885,Physical Support,HOME CARE - PRIVATE CONTRACTORS PAYMENT,Barbara Nicholls,,,
http://opendatacommunities.org/doc/london-borough-council/havering,London Borough of Havering,07/04/2016,593.86,APR16L448,Mears Care Ltd,530719,"Children, Adults & Housing",Adult Services,Adult Community Team,A31885,Physical Support,HOME CARE - PRIVATE CONTRACTORS PAYMENT,Barbara Nicholls,,,
http://opendatacommunities.org/doc/london-borough-council/havering,London Borough of Havering,07/04/2016,729.57,APR16L449,Mears Care Ltd,530719,"Children, Adults & Housing",Adult Services,Adult Community Team,A31885,Physical Support,HOME CARE - PRIVATE CONTRACTORS PAYMENT,Barbara Nicholls,,,
http://opendatacommunities.org/doc/london-borough-council/havering,London Borough of Havering,07/04/2016,805.27,APR16L450,Mears Care Ltd,530719,"Children, Adults & Housing",Adult Services,Adult Community Team,A31885,Physical Support,HOME CARE - PRIVATE CONTRACTORS PAYMENT,Barbara Nicholls,,,
http://opendatacommunities.org/doc/london-borough-council/havering,London Borough of Havering,07/04/2016,590.04,APR16L451,Mears Care Ltd,530719,"Children, Adults & Housing",Adult Services,Adult Community Team,A31885,Physical Support,HOME CARE - PRIVATE CONTRACTORS PAYMENT,Barbara Nicholls,,,
http://opendatacommunities.org/doc/london-borough-council/havering,London Borough of Havering,07/04/2016,1711.37,APR16L452,Mears Care Ltd,530719,"Children, Adults & Housing",Adult Services,Adult Community Team,A31885,Physical Support,HOME CARE - PRIVATE CONTRACTORS PAYMENT,Barbara Nicholls,,,
http://opendatacommunities.org/doc/london-borough-council/havering,London Borough of Havering,07/04/2016,774.89,APR16L453,Mears Care Ltd,530719,"Children, Adults & Housing",Adult Services,Adult Community Team,A31885,Physical Support,HOME CARE - PRIVATE CONTRACTORS PAYMENT,Barbara Nicholls,,,
http://opendatacommunities.org/doc/london-borough-council/havering,London Borough of Havering,07/04/2016,569.97,APR16L454,Mears Care Ltd,530719,"Children, Adults & Housing",Adult Services,Adult Community Team,A31985,Support for Social Isolation - Other,HOME CARE - PRIVATE CONTRACTORS PAYMENT,Barbara Nicholls,,,
http://opendatacommunities.org/doc/london-borough-council/havering,London Borough of Havering,07/04/2016,448.21,APR16L455,Mears Care Ltd,530719,"Children, Adults & Housing",Adult Services,Adult Community Team,A31885,Physical Support,HOME CARE - PRIVATE CONTRACTORS PAYMENT,Barbara Nicholls,,,
http://opendatacommunities.org/doc/london-borough-council/havering,London Borough of Havering,07/04/2016,1592.10,APR16L456,Mears Care Ltd,530719,"Children, Adults & Housing",Adult Services,Adult Community Team,A31885,Physical Support,HOME CARE - PRIVATE CONTRACTORS PAYMENT,Barbara Nicholls,,,
http://opendatacommunities.org/doc/london-borough-council/havering,London Borough of Havering,07/04/2016,453.43,APR16L457,Mears Care Ltd,530719,"Children, Adults & Housing",Adult Services,Adult Community Team,A31885,Physical Support,HOME CARE - PRIVATE CONTRACTORS PAYMENT,Barbara Nicholls,,,
http://opendatacommunities.org/doc/london-borough-council/havering,London Borough of Havering,07/04/2016,637.94,APR16L458,Mears Care Ltd,530719,"Children, Adults & Housing",Adult Services,Adult Community Team,A31885,Physical Support,HOME CARE - PRIVATE CONTRACTORS PAYMENT,Barbara Nicholls,,,
http://opendatacommunities.org/doc/london-borough-council/havering,London Borough of Havering,07/04/2016,442.97,APR16L459,Mears Care Ltd,530719,"Children, Adults & Housing",Adult Services,Adult Community Team,A31885,Physical Support,HOME CARE - PRIVATE CONTRACTORS PAYMENT,Barbara Nicholls,,,
http://opendatacommunities.org/doc/london-borough-council/havering,London Borough of Havering,07/04/2016,886.94,APR16L460,Mears Care Ltd,530719,"Children, Adults & Housing",Adult Services,Adult Community Team,A31885,Physical Support,HOME CARE - PRIVATE CONTRACTORS PAYMENT,Barbara Nicholls,,,
http://opendatacommunities.org/doc/london-borough-council/havering,London Borough of Havering,07/04/2016,507.46,APR16L461,Mears Care Ltd,530719,"Children, Adults & Housing",Adult Services,Adult Community Team,A31885,Physical Support,HOME CARE - PRIVATE CONTRACTORS PAYMENT,Barbara Nicholls,,,
http://opendatacommunities.org/doc/london-borough-council/havering,London Borough of Havering,07/04/2016,824.19,APR16L462,Mears Care Ltd,530719,"Children, Adults & Housing",Adult Services,Adult Community Team,A31885,Physical Support,HOME CARE - PRIVATE CONTRACTORS PAYMENT,Barbara Nicholls,,,
http://opendatacommunities.org/doc/london-borough-council/havering,London Borough of Havering,07/04/2016,418.32,APR16L463,Mears Care Ltd,530719,"Children, Adults & Housing",Adult Services,Adult Community Team,A31885,Physical Support,HOME CARE - PRIVATE CONTRACTORS PAYMENT,Barbara Nicholls,,,
http://opendatacommunities.org/doc/london-borough-council/havering,London Borough of Havering,18/04/2016,5502.98,APR16L464,EDF Energy Customers Plc,530741,Community and Resources,Culture & Leisure,Indoor Sports & Recreation,A20400,Chafford Sports Complex,ELECTRICITY,Simon Parkinson,,,
http://opendatacommunities.org/doc/london-borough-council/havering,London Borough of Havering,29/04/2016,21025.36,APR16L465,Farleigh FEC - Frome Priory,531789,"Children, Adults & Housing",DSG Learning & Achievement Service,SEN - DSG,A33585,Post-16 High Needs Top- up DSG,PRIVATE CONTRACTORS PAYMENT - OTHER,Sue Imbriano,,,
http://opendatacommunities.org/doc/london-borough-council/havering,London Borough of Havering,07/04/2016,5968.68,APR16L466,NAS Services Limited,534382,"Children, Adults & Housing",Adult Services,Learning Disabilities,A32005,Learning Disability Support,HOME CARE - PRIVATE CONTRACTORS PAYMENT,Barbara Nicholls,,,
http://opendatacommunities.org/doc/london-borough-council/havering,London Borough of Havering,29/04/2016,5968.68,APR16L467,NAS Services Limited,534382,"Children, Adults & Housing",Adult Services,Learning Disabilities,A32005,Learning Disability Support,HOME CARE - PRIVATE CONTRACTORS PAYMENT,Barbara Nicholls,,,
http://opendatacommunities.org/doc/london-borough-council/havering,London Borough of Havering,20/04/2016,735.00,APR16L468,Embassy Site Services,535598,Community and Resources,Streetcare,Borough Roads,A27032,Borough Roads - Income,OTHER SALES - VATABLE,Steve Moore,,,
http://opendatacommunities.org/doc/london-borough-council/havering,London Borough of Havering,29/04/2016,17378.57,APR16L469,Halliwell Homes Ltd,535662,"Children, Adults & Housing",Learning & Achievement,Children With Disabilities,A38380,CWD Placements,RESIDENTIAL PLACEMENTS - PRIVATE CONTRACTORS PAYMENT,Sue Imbriano,,,
http://opendatacommunities.org/doc/london-borough-council/havering,London Borough of Havering,11/04/2016,764.40,APR16L470,Ulverscroft Large Print Books Ltd_a,577705,Community and Resources,Culture & Leisure,Library Service,A23110,Bibliographical Services,"BOOKS, PUBLICATIONS AND RESOURCES",Simon Parkinson,,,
http://opendatacommunities.org/doc/london-borough-council/havering,London Borough of Havering,19/04/2016,677.50,APR16L471,Whale Tankers Ltd_a,577708,oneSource Non-Shared LBH,Asset Management,Transport Accounts,A47560,Transport Workshop,"PURCHASE - EQUIPMENT, FURNITURE AND MATERIALS",Mark Butler,,,
http://opendatacommunities.org/doc/london-borough-council/havering,London Borough of Havering,05/04/2016,1990.84,APR16L472,Bupa Care Homes - Hutton Village_a,577712,"Children, Adults & Housing",Adult Services,Adult Community Team,A31885,Physical Support,NURSING HOMES - PRIVATE CONTRACTORS PAYMENT,Barbara Nicholls,,,
http://opendatacommunities.org/doc/london-borough-council/havering,London Borough of Havering,01/04/2016,400.00,APR16L473,Romford YMCA Ltd_a,577713,"Children, Adults & Housing",Adult Services,Strategy and Commissioning,A34080,Carers Commissioning,EVENTS,Barbara Nicholls,,,
http://opendatacommunities.org/doc/london-borough-council/havering,London Borough of Havering,06/04/2016,2350.75,APR16L474,Romford YMCA Ltd_a,577713,"Children, Adults & Housing",Adult Services,Strategy and Commissioning,A34080,Carers Commissioning,PAYMENTS TO VOLUNTARY SECTOR,Barbara Nicholls,,,
http://opendatacommunities.org/doc/london-borough-council/havering,London Borough of Havering,05/04/2016,483.64,APR16L475,Priory Supporting Care Ltd_a,577715,"Children, Adults & Housing",Adult Services,Adult Community Team,A31885,Physical Support,RESIDENTIAL PLACEMENTS - PRIVATE CONTRACTORS PAYMENT,Barbara Nicholls,,,
http://opendatacommunities.org/doc/london-borough-council/havering,London Borough of Havering,05/04/2016,-422.29,APR16L476,Priory Supporting Care Ltd_a,577715,"Children, Adults & Housing",Adult Services,Adult Community Team,A31885,Physical Support,RESIDENTIAL CARE INCOME,Barbara Nicholls,,,
http://opendatacommunities.org/doc/london-borough-council/havering,London Borough of Havering,05/04/2016,673.59,APR16L477,Priory Supporting Care Ltd_a,577715,"Children, Adults & Housing",Adult Services,Adult Community Team,A31885,Physical Support,RESIDENTIAL PLACEMENTS - PRIVATE CONTRACTORS PAYMENT,Barbara Nicholls,,,
http://opendatacommunities.org/doc/london-borough-council/havering,London Borough of Havering,05/04/2016,779.23,APR16L478,Priory Supporting Care Ltd_a,577715,"Children, Adults & Housing",Adult Services,Adult Community Team,A31885,Physical Support,RESIDENTIAL PLACEMENTS - PRIVATE CONTRACTORS PAYMENT,Barbara Nicholls,,,
http://opendatacommunities.org/doc/london-borough-council/havering,London Borough of Havering,05/04/2016,779.23,APR16L479,Priory Supporting Care Ltd_a,577715,"Children, Adults & Housing",Adult Services,Adult Community Team,A31885,Physical Support,RESIDENTIAL PLACEMENTS - PRIVATE CONTRACTORS PAYMENT,Barbara Nicholls,,,
http://opendatacommunities.org/doc/london-borough-council/havering,London Borough of Havering,05/04/2016,673.59,APR16L480,Priory Supporting Care Ltd_a,577715,"Children, Adults & Housing",Adult Services,Adult Community Team,A31885,Physical Support,RESIDENTIAL PLACEMENTS - PRIVATE CONTRACTORS PAYMENT,Barbara Nicholls,,,
http://opendatacommunities.org/doc/london-borough-council/havering,London Borough of Havering,05/04/2016,779.23,APR16L481,Priory Supporting Care Ltd_a,577715,"Children, Adults & Housing",Adult Services,Adult Community Team,A31995,Support with Memory & Cognition,RESIDENTIAL PLACEMENTS - PRIVATE CONTRACTORS PAYMENT,Barbara Nicholls,,,
http://opendatacommunities.org/doc/london-borough-council/havering,London Borough of Havering,05/04/2016,673.59,APR16L482,Priory Supporting Care Ltd_a,577715,"Children, Adults & Housing",Adult Services,Adult Community Team,A31885,Physical Support,RESIDENTIAL PLACEMENTS - PRIVATE CONTRACTORS PAYMENT,Barbara Nicholls,,,
http://opendatacommunities.org/doc/london-borough-council/havering,London Borough of Havering,05/04/2016,2181.84,APR16L483,Priory Supporting Care Ltd_a,577715,"Children, Adults & Housing",Adult Services,Adult Community Team,A31885,Physical Support,RESIDENTIAL PLACEMENTS - PRIVATE CONTRACTORS PAYMENT,Barbara Nicholls,,,
http://opendatacommunities.org/doc/london-borough-council/havering,London Borough of Havering,05/04/2016,1923.76,APR16L484,Priory Supporting Care Ltd_a,577715,"Children, Adults & Housing",Adult Services,Adult Community Team,A31885,Physical Support,RESIDENTIAL PLACEMENTS - PRIVATE CONTRACTORS PAYMENT,Barbara Nicholls,,,
http://opendatacommunities.org/doc/london-borough-council/havering,London Borough of Havering,05/04/2016,2181.84,APR16L485,Priory Supporting Care Ltd_a,577715,"Children, Adults & Housing",Adult Services,Adult Community Team,A31885,Physical Support,RESIDENTIAL PLACEMENTS - PRIVATE CONTRACTORS PAYMENT,Barbara Nicholls,,,
http://opendatacommunities.org/doc/london-borough-council/havering,London Borough of Havering,05/04/2016,2181.84,APR16L486,Priory Supporting Care Ltd_a,577715,"Children, Adults & Housing",Adult Services,Adult Community Team,A31995,Support with Memory & Cognition,RESIDENTIAL PLACEMENTS - PRIVATE CONTRACTORS PAYMENT,Barbara Nicholls,,,
http://opendatacommunities.org/doc/london-borough-council/havering,London Borough of Havering,05/04/2016,-756.13,APR16L487,Priory Supporting Care Ltd_a,577715,"Children, Adults & Housing",Adult Services,Adult Community Team,A31885,Physical Support,RESIDENTIAL CARE INCOME,Barbara Nicholls,,,
http://opendatacommunities.org/doc/london-borough-council/havering,London Borough of Havering,05/04/2016,1212.45,APR16L488,Priory Supporting Care Ltd_a,577715,"Children, Adults & Housing",Adult Services,Adult Community Team,A31885,Physical Support,RESIDENTIAL PLACEMENTS - PRIVATE CONTRACTORS PAYMENT,Barbara Nicholls,,,
http://opendatacommunities.org/doc/london-borough-council/havering,London Borough of Havering,05/04/2016,1402.61,APR16L489,Priory Supporting Care Ltd_a,577715,"Children, Adults & Housing",Adult Services,Adult Community Team,A31885,Physical Support,RESIDENTIAL PLACEMENTS - PRIVATE CONTRACTORS PAYMENT,Barbara Nicholls,,,
http://opendatacommunities.org/doc/london-borough-council/havering,London Borough of Havering,05/04/2016,1402.61,APR16L490,Priory Supporting Care Ltd_a,577715,"Children, Adults & Housing",Adult Services,Adult Community Team,A31885,Physical Support,RESIDENTIAL PLACEMENTS - PRIVATE CONTRACTORS PAYMENT,Barbara Nicholls,,,
http://opendatacommunities.org/doc/london-borough-council/havering,London Borough of Havering,05/04/2016,1212.45,APR16L491,Priory Supporting Care Ltd_a,577715,"Children, Adults & Housing",Adult Services,Adult Community Team,A31885,Physical Support,RESIDENTIAL PLACEMENTS - PRIVATE CONTRACTORS PAYMENT,Barbara Nicholls,,,
http://opendatacommunities.org/doc/london-borough-council/havering,London Borough of Havering,05/04/2016,1402.61,APR16L492,Priory Supporting Care Ltd_a,577715,"Children, Adults & Housing",Adult Services,Adult Community Team,A31995,Support with Memory & Cognition,RESIDENTIAL PLACEMENTS - PRIVATE CONTRACTORS PAYMENT,Barbara Nicholls,,,
http://opendatacommunities.org/doc/london-borough-council/havering,London Borough of Havering,05/04/2016,1212.45,APR16L493,Priory Supporting Care Ltd_a,577715,"Children, Adults & Housing",Adult Services,Adult Community Team,A31885,Physical Support,RESIDENTIAL PLACEMENTS - PRIVATE CONTRACTORS PAYMENT,Barbara Nicholls,,,
http://opendatacommunities.org/doc/london-borough-council/havering,London Borough of Havering,05/04/2016,-611.15,APR16L494,Priory Supporting Care Ltd_a,577715,"Children, Adults & Housing",Adult Services,Adult Community Team,A31885,Physical Support,RESIDENTIAL PLACEMENTS - PRIVATE CONTRACTORS PAYMENT,Barbara Nicholls,,,
http://opendatacommunities.org/doc/london-borough-council/havering,London Borough of Havering,06/04/2016,75980.00,APR16L495,Towers Junior School_a,577716,"Children, Adults & Housing",DSG Learning & Achievement Service,Primary,A72076,Towers Junior,SCHOOL BANK ACCOUNTS,Sue Imbriano,,,
http://opendatacommunities.org/doc/london-borough-council/havering,London Borough of Havering,26/04/2016,93364.00,APR16L496,Towers Junior School_a,577716,"Children, Adults & Housing",DSG Learning & Achievement Service,Primary,A72076,Towers Junior,SCHOOL BANK ACCOUNTS,Sue Imbriano,,,
http://opendatacommunities.org/doc/london-borough-council/havering,London Borough of Havering,05/04/2016,483.64,APR16L497,Ash Grove Residential Care Home_a,577717,"Children, Adults & Housing",Adult Services,Adult Community Team,A31885,Physical Support,RESIDENTIAL PLACEMENTS - PRIVATE CONTRACTORS PAYMENT,Barbara Nicholls,,,
http://opendatacommunities.org/doc/london-borough-council/havering,London Borough of Havering,05/04/2016,779.23,APR16L498,Ash Grove Residential Care Home_a,577717,"Children, Adults & Housing",Adult Services,Adult Community Team,A31885,Physical Support,RESIDENTIAL PLACEMENTS - PRIVATE CONTRACTORS PAYMENT,Barbara Nicholls,,,
http://opendatacommunities.org/doc/london-borough-council/havering,London Borough of Havering,05/04/2016,779.23,APR16L499,Ash Grove Residential Care Home_a,577717,"Children, Adults & Housing",Adult Services,Adult Community Team,A31885,Physical Support,RESIDENTIAL PLACEMENTS - PRIVATE CONTRACTORS PAYMENT,Barbara Nicholls,,,
http://opendatacommunities.org/doc/london-borough-council/havering,London Borough of Havering,05/04/2016,779.23,APR16L500,Ash Grove Residential Care Home_a,577717,"Children, Adults & Housing",Adult Services,Adult Community Team,A31995,Support with Memory & Cognition,RESIDENTIAL PLACEMENTS - PRIVATE CONTRACTORS PAYMENT,Barbara Nicholls,,,
http://opendatacommunities.org/doc/london-borough-council/havering,London Borough of Havering,05/04/2016,779.23,APR16L501,Ash Grove Residential Care Home_a,577717,"Children, Adults & Housing",Adult Services,Adult Community Team,A31885,Physical Support,RESIDENTIAL PLACEMENTS - PRIVATE CONTRACTORS PAYMENT,Barbara Nicholls,,,
http://opendatacommunities.org/doc/london-borough-council/havering,London Borough of Havering,05/04/2016,673.59,APR16L502,Ash Grove Residential Care Home_a,577717,"Children, Adults & Housing",Adult Services,Adult Community Team,A31985,Support for Social Isolation - Other,RESIDENTIAL PLACEMENTS - PRIVATE CONTRACTORS PAYMENT,Barbara Nicholls,,,
http://opendatacommunities.org/doc/london-borough-council/havering,London Borough of Havering,05/04/2016,673.59,APR16L503,Ash Grove Residential Care Home_a,577717,"Children, Adults & Housing",Adult Services,Adult Community Team,A31885,Physical Support,RESIDENTIAL PLACEMENTS - PRIVATE CONTRACTORS PAYMENT,Barbara Nicholls,,,
http://opendatacommunities.org/doc/london-borough-council/havering,London Borough of Havering,05/04/2016,2181.84,APR16L504,Ash Grove Residential Care Home_a,577717,"Children, Adults & Housing",Adult Services,Adult Community Team,A31885,Physical Support,RESIDENTIAL PLACEMENTS - PRIVATE CONTRACTORS PAYMENT,Barbara Nicholls,,,
http://opendatacommunities.org/doc/london-borough-council/havering,London Borough of Havering,05/04/2016,2181.84,APR16L505,Ash Grove Residential Care Home_a,577717,"Children, Adults & Housing",Adult Services,Adult Community Team,A31885,Physical Support,RESIDENTIAL PLACEMENTS - PRIVATE CONTRACTORS PAYMENT,Barbara Nicholls,,,
http://opendatacommunities.org/doc/london-borough-council/havering,London Borough of Havering,05/04/2016,1923.76,APR16L506,Ash Grove Residential Care Home_a,577717,"Children, Adults & Housing",Adult Services,Adult Community Team,A31885,Physical Support,RESIDENTIAL PLACEMENTS - PRIVATE CONTRACTORS PAYMENT,Barbara Nicholls,,,
http://opendatacommunities.org/doc/london-borough-council/havering,London Borough of Havering,05/04/2016,1848.84,APR16L507,Ash Grove Residential Care Home_a,577717,"Children, Adults & Housing",Adult Services,Adult Community Team,A31885,Physical Support,RESPITE CARE - PRIVATE CONTRACTORS PAYMENT,Barbara Nicholls,,,
http://opendatacommunities.org/doc/london-borough-council/havering,London Borough of Havering,05/04/2016,-592.02,APR16L508,Ash Grove Residential Care Home_a,577717,"Children, Adults & Housing",Adult Services,Adult Community Team,A31885,Physical Support,RESIDENTIAL CARE INCOME,Barbara Nicholls,,,
http://opendatacommunities.org/doc/london-borough-council/havering,London Borough of Havering,05/04/2016,1402.61,APR16L509,Ash Grove Residential Care Home_a,577717,"Children, Adults & Housing",Adult Services,Adult Community Team,A31885,Physical Support,RESIDENTIAL PLACEMENTS - PRIVATE CONTRACTORS PAYMENT,Barbara Nicholls,,,
http://opendatacommunities.org/doc/london-borough-council/havering,London Borough of Havering,05/04/2016,-412.61,APR16L510,Ash Grove Residential Care Home_a,577717,"Children, Adults & Housing",Adult Services,Adult Community Team,A31885,Physical Support,RESIDENTIAL CARE INCOME,Barbara Nicholls,,,
http://opendatacommunities.org/doc/london-borough-council/havering,London Borough of Havering,05/04/2016,1402.61,APR16L511,Ash Grove Residential Care Home_a,577717,"Children, Adults & Housing",Adult Services,Adult Community Team,A31885,Physical Support,RESIDENTIAL PLACEMENTS - PRIVATE CONTRACTORS PAYMENT,Barbara Nicholls,,,
http://opendatacommunities.org/doc/london-borough-council/havering,London Borough of Havering,05/04/2016,-454.60,APR16L512,Ash Grove Residential Care Home_a,577717,"Children, Adults & Housing",Adult Services,Adult Community Team,A31995,Support with Memory & Cognition,RESIDENTIAL CARE INCOME,Barbara Nicholls,,,
http://opendatacommunities.org/doc/london-borough-council/havering,London Borough of Havering,05/04/2016,1402.61,APR16L513,Ash Grove Residential Care Home_a,577717,"Children, Adults & Housing",Adult Services,Adult Community Team,A31995,Support with Memory & Cognition,RESIDENTIAL PLACEMENTS - PRIVATE CONTRACTORS PAYMENT,Barbara Nicholls,,,
http://opendatacommunities.org/doc/london-borough-council/havering,London Borough of Havering,05/04/2016,1402.61,APR16L514,Ash Grove Residential Care Home_a,577717,"Children, Adults & Housing",Adult Services,Adult Community Team,A31885,Physical Support,RESIDENTIAL PLACEMENTS - PRIVATE CONTRACTORS PAYMENT,Barbara Nicholls,,,
http://opendatacommunities.org/doc/london-borough-council/havering,London Borough of Havering,05/04/2016,1212.45,APR16L515,Ash Grove Residential Care Home_a,577717,"Children, Adults & Housing",Adult Services,Adult Community Team,A31985,Support for Social Isolation - Other,RESIDENTIAL PLACEMENTS - PRIVATE CONTRACTORS PAYMENT,Barbara Nicholls,,,
http://opendatacommunities.org/doc/london-borough-council/havering,London Borough of Havering,05/04/2016,1212.45,APR16L516,Ash Grove Residential Care Home_a,577717,"Children, Adults & Housing",Adult Services,Adult Community Team,A31885,Physical Support,RESIDENTIAL PLACEMENTS - PRIVATE CONTRACTORS PAYMENT,Barbara Nicholls,,,
http://opendatacommunities.org/doc/london-borough-council/havering,London Borough of Havering,29/04/2016,967.34,APR16L517,Carers Trust East Midlands_a,577719,"Children, Adults & Housing",Adult Services,Adult Community Team,A31885,Physical Support,HOME CARE - PRIVATE CONTRACTORS PAYMENT,Barbara Nicholls,,,
http://opendatacommunities.org/doc/london-borough-council/havering,London Borough of Havering,29/04/2016,476.67,APR16L518,Carers Trust East Midlands_a,577719,"Children, Adults & Housing",Adult Services,Learning Disabilities,A32005,Learning Disability Support,HOME CARE - PRIVATE CONTRACTORS PAYMENT,Barbara Nicholls,,,
http://opendatacommunities.org/doc/london-borough-council/havering,London Borough of Havering,29/04/2016,993.55,APR16L519,Carers Trust East Midlands_a,577719,"Children, Adults & Housing",Adult Services,Adult Community Team,A31885,Physical Support,HOME CARE - PRIVATE CONTRACTORS PAYMENT,Barbara Nicholls,,,
http://opendatacommunities.org/doc/london-borough-council/havering,London Borough of Havering,29/04/2016,551.45,APR16L520,Carers Trust East Midlands_a,577719,"Children, Adults & Housing",Adult Services,Learning Disabilities,A32005,Learning Disability Support,HOME CARE - PRIVATE CONTRACTORS PAYMENT,Barbara Nicholls,,,
http://opendatacommunities.org/doc/london-borough-council/havering,London Borough of Havering,06/04/2016,9373.00,APR16L521,Carers Trust East Midlands_a,577719,"Children, Adults & Housing",Adult Services,Strategy and Commissioning,A34080,Carers Commissioning,PAYMENTS TO VOLUNTARY SECTOR,Barbara Nicholls,,,
http://opendatacommunities.org/doc/london-borough-council/havering,London Borough of Havering,06/04/2016,5228.64,APR16L522,Carers Trust East Midlands_a,577719,"Children, Adults & Housing",Adult Services,Strategy and Commissioning,A34080,Carers Commissioning,PAYMENTS TO VOLUNTARY SECTOR,Barbara Nicholls,,,
http://opendatacommunities.org/doc/london-borough-council/havering,London Borough of Havering,06/04/2016,7500.00,APR16L523,Carers Trust East Midlands_a,577719,"Children, Adults & Housing",Adult Services,Strategy and Commissioning,A34060,Adult Community Commissioning,PAYMENTS TO VOLUNTARY SECTOR,Barbara Nicholls,,,
http://opendatacommunities.org/doc/london-borough-council/havering,London Borough of Havering,05/04/2016,2074.64,APR16L524,Bupa Care Homes - Ghyll Grove_a,577720,"Children, Adults & Housing",Adult Services,Adult Community Team,A31885,Physical Support,NURSING HOMES - PRIVATE CONTRACTORS PAYMENT,Barbara Nicholls,,,
http://opendatacommunities.org/doc/london-borough-council/havering,London Borough of Havering,05/04/2016,2181.84,APR16L525,Bupa Care Homes - Ghyll Grove_a,577720,"Children, Adults & Housing",Adult Services,Adult Community Team,A31995,Support with Memory & Cognition,RESIDENTIAL PLACEMENTS - PRIVATE CONTRACTORS PAYMENT,Barbara Nicholls,,,
http://opendatacommunities.org/doc/london-borough-council/havering,London Borough of Havering,05/04/2016,779.23,APR16L526,Squirrels Nursing & Residential Home_a,577721,"Children, Adults & Housing",Adult Services,Adult Community Team,A31885,Physical Support,RESIDENTIAL PLACEMENTS - PRIVATE CONTRACTORS PAYMENT,Barbara Nicholls,,,
http://opendatacommunities.org/doc/london-borough-council/havering,London Borough of Havering,05/04/2016,1402.61,APR16L527,Squirrels Nursing & Residential Home_a,577721,"Children, Adults & Housing",Adult Services,Adult Community Team,A31885,Physical Support,RESIDENTIAL PLACEMENTS - PRIVATE CONTRACTORS PAYMENT,Barbara Nicholls,,,
http://opendatacommunities.org/doc/london-borough-council/havering,London Borough of Havering,05/04/2016,1715.96,APR16L528,Clacton Family Trust_a,577722,"Children, Adults & Housing",Adult Services,Learning Disabilities,A32005,Learning Disability Support,RESIDENTIAL PLACEMENTS - PRIVATE CONTRACTORS PAYMENT,Barbara Nicholls,,,
http://opendatacommunities.org/doc/london-borough-council/havering,London Borough of Havering,05/04/2016,1733.26,APR16L529,Clacton Family Trust_a,577722,"Children, Adults & Housing",Adult Services,Learning Disabilities,A32005,Learning Disability Support,RESIDENTIAL PLACEMENTS - PRIVATE CONTRACTORS PAYMENT,Barbara Nicholls,,,
http://opendatacommunities.org/doc/london-borough-council/havering,London Borough of Havering,05/04/2016,1517.41,APR16L530,Clacton Family Trust_a,577722,"Children, Adults & Housing",Adult Services,Learning Disabilities,A32005,Learning Disability Support,RESIDENTIAL PLACEMENTS - PRIVATE CONTRACTORS PAYMENT,Barbara Nicholls,,,
http://opendatacommunities.org/doc/london-borough-council/havering,London Borough of Havering,05/04/2016,3088.72,APR16L531,Clacton Family Trust_a,577722,"Children, Adults & Housing",Adult Services,Learning Disabilities,A32005,Learning Disability Support,RESIDENTIAL PLACEMENTS - PRIVATE CONTRACTORS PAYMENT,Barbara Nicholls,,,
http://opendatacommunities.org/doc/london-borough-council/havering,London Borough of Havering,05/04/2016,3119.86,APR16L532,Clacton Family Trust_a,577722,"Children, Adults & Housing",Adult Services,Learning Disabilities,A32005,Learning Disability Support,RESIDENTIAL PLACEMENTS - PRIVATE CONTRACTORS PAYMENT,Barbara Nicholls,,,
http://opendatacommunities.org/doc/london-borough-council/havering,London Borough of Havering,05/04/2016,2731.35,APR16L533,Clacton Family Trust_a,577722,"Children, Adults & Housing",Adult Services,Learning Disabilities,A32005,Learning Disability Support,RESIDENTIAL PLACEMENTS - PRIVATE CONTRACTORS PAYMENT,Barbara Nicholls,,,
http://opendatacommunities.org/doc/london-borough-council/havering,London Borough of Havering,05/04/2016,470.05,APR16L534,Langley House_a,577723,"Children, Adults & Housing",Adult Services,Adult Community Team,A31995,Support with Memory & Cognition,RESIDENTIAL PLACEMENTS - PRIVATE CONTRACTORS PAYMENT,Barbara Nicholls,,,
http://opendatacommunities.org/doc/london-borough-council/havering,London Borough of Havering,05/04/2016,483.64,APR16L535,Langley House_a,577723,"Children, Adults & Housing",Adult Services,Adult Community Team,A31885,Physical Support,RESIDENTIAL PLACEMENTS - PRIVATE CONTRACTORS PAYMENT,Barbara Nicholls,,,
http://opendatacommunities.org/doc/london-borough-council/havering,London Borough of Havering,05/04/2016,483.64,APR16L536,Langley House_a,577723,"Children, Adults & Housing",Adult Services,Adult Community Team,A31885,Physical Support,RESIDENTIAL PLACEMENTS - PRIVATE CONTRACTORS PAYMENT,Barbara Nicholls,,,
http://opendatacommunities.org/doc/london-borough-council/havering,London Borough of Havering,05/04/2016,559.46,APR16L537,Langley House_a,577723,"Children, Adults & Housing",Adult Services,Adult Community Team,A31885,Physical Support,RESIDENTIAL PLACEMENTS - PRIVATE CONTRACTORS PAYMENT,Barbara Nicholls,,,
http://opendatacommunities.org/doc/london-borough-council/havering,London Borough of Havering,05/04/2016,483.64,APR16L538,Langley House_a,577723,"Children, Adults & Housing",Adult Services,Adult Community Team,A31885,Physical Support,RESIDENTIAL PLACEMENTS - PRIVATE CONTRACTORS PAYMENT,Barbara Nicholls,,,
http://opendatacommunities.org/doc/london-borough-council/havering,London Borough of Havering,05/04/2016,559.46,APR16L539,Langley House_a,577723,"Children, Adults & Housing",Adult Services,Adult Community Team,A31995,Support with Memory & Cognition,RESIDENTIAL PLACEMENTS - PRIVATE CONTRACTORS PAYMENT,Barbara Nicholls,,,
http://opendatacommunities.org/doc/london-borough-council/havering,London Borough of Havering,05/04/2016,483.64,APR16L540,Langley House_a,577723,"Children, Adults & Housing",Adult Services,Adult Community Team,A31885,Physical Support,RESIDENTIAL PLACEMENTS - PRIVATE CONTRACTORS PAYMENT,Barbara Nicholls,,,
http://opendatacommunities.org/doc/london-borough-council/havering,London Borough of Havering,05/04/2016,559.46,APR16L541,Langley House_a,577723,"Children, Adults & Housing",Adult Services,Adult Community Team,A31995,Support with Memory & Cognition,RESIDENTIAL PLACEMENTS - PRIVATE CONTRACTORS PAYMENT,Barbara Nicholls,,,
http://opendatacommunities.org/doc/london-borough-council/havering,London Borough of Havering,05/04/2016,794.81,APR16L542,Langley House_a,577723,"Children, Adults & Housing",Adult Services,Adult Community Team,A31885,Physical Support,RESIDENTIAL PLACEMENTS - PRIVATE CONTRACTORS PAYMENT,Barbara Nicholls,,,
http://opendatacommunities.org/doc/london-borough-council/havering,London Borough of Havering,05/04/2016,687.06,APR16L543,Langley House_a,577723,"Children, Adults & Housing",Adult Services,Adult Community Team,A31885,Physical Support,RESIDENTIAL PLACEMENTS - PRIVATE CONTRACTORS PAYMENT,Barbara Nicholls,,,
http://opendatacommunities.org/doc/london-borough-council/havering,London Borough of Havering,05/04/2016,-447.99,APR16L544,Langley House_a,577723,"Children, Adults & Housing",Adult Services,Adult Community Team,A31995,Support with Memory & Cognition,RESIDENTIAL CARE INCOME,Barbara Nicholls,,,
http://opendatacommunities.org/doc/london-borough-council/havering,London Borough of Havering,05/04/2016,794.81,APR16L545,Langley House_a,577723,"Children, Adults & Housing",Adult Services,Adult Community Team,A31995,Support with Memory & Cognition,RESIDENTIAL PLACEMENTS - PRIVATE CONTRACTORS PAYMENT,Barbara Nicholls,,,
http://opendatacommunities.org/doc/london-borough-council/havering,London Borough of Havering,05/04/2016,779.23,APR16L546,Langley House_a,577723,"Children, Adults & Housing",Adult Services,Adult Community Team,A31885,Physical Support,RESIDENTIAL PLACEMENTS - PRIVATE CONTRACTORS PAYMENT,Barbara Nicholls,,,
http://opendatacommunities.org/doc/london-borough-council/havering,London Borough of Havering,05/04/2016,673.59,APR16L547,Langley House_a,577723,"Children, Adults & Housing",Adult Services,Adult Community Team,A31885,Physical Support,RESIDENTIAL PLACEMENTS - PRIVATE CONTRACTORS PAYMENT,Barbara Nicholls,,,
http://opendatacommunities.org/doc/london-borough-council/havering,London Borough of Havering,05/04/2016,673.59,APR16L548,Langley House_a,577723,"Children, Adults & Housing",Adult Services,Adult Community Team,A31885,Physical Support,RESIDENTIAL PLACEMENTS - PRIVATE CONTRACTORS PAYMENT,Barbara Nicholls,,,
http://opendatacommunities.org/doc/london-borough-council/havering,London Borough of Havering,05/04/2016,687.06,APR16L549,Langley House_a,577723,"Children, Adults & Housing",Adult Services,Adult Community Team,A31885,Physical Support,RESIDENTIAL PLACEMENTS - PRIVATE CONTRACTORS PAYMENT,Barbara Nicholls,,,
http://opendatacommunities.org/doc/london-borough-council/havering,London Borough of Havering,05/04/2016,1871.28,APR16L550,Langley House_a,577723,"Children, Adults & Housing",Adult Services,Adult Community Team,A31995,Support with Memory & Cognition,RESIDENTIAL PLACEMENTS - PRIVATE CONTRACTORS PAYMENT,Barbara Nicholls,,,
http://opendatacommunities.org/doc/london-borough-council/havering,London Borough of Havering,05/04/2016,1923.76,APR16L551,Langley House_a,577723,"Children, Adults & Housing",Adult Services,Adult Community Team,A31885,Physical Support,RESIDENTIAL PLACEMENTS - PRIVATE CONTRACTORS PAYMENT,Barbara Nicholls,,,
http://opendatacommunities.org/doc/london-borough-council/havering,London Borough of Havering,05/04/2016,2225.48,APR16L552,Langley House_a,577723,"Children, Adults & Housing",Adult Services,Adult Community Team,A31995,Support with Memory & Cognition,RESIDENTIAL PLACEMENTS - PRIVATE CONTRACTORS PAYMENT,Barbara Nicholls,,,
http://opendatacommunities.org/doc/london-borough-council/havering,London Borough of Havering,05/04/2016,1923.76,APR16L553,Langley House_a,577723,"Children, Adults & Housing",Adult Services,Adult Community Team,A31885,Physical Support,RESIDENTIAL PLACEMENTS - PRIVATE CONTRACTORS PAYMENT,Barbara Nicholls,,,
http://opendatacommunities.org/doc/london-borough-council/havering,London Borough of Havering,05/04/2016,2181.84,APR16L554,Langley House_a,577723,"Children, Adults & Housing",Adult Services,Adult Community Team,A31885,Physical Support,RESIDENTIAL PLACEMENTS - PRIVATE CONTRACTORS PAYMENT,Barbara Nicholls,,,
http://opendatacommunities.org/doc/london-borough-council/havering,London Borough of Havering,05/04/2016,2181.84,APR16L555,Langley House_a,577723,"Children, Adults & Housing",Adult Services,Adult Community Team,A31885,Physical Support,RESIDENTIAL PLACEMENTS - PRIVATE CONTRACTORS PAYMENT,Barbara Nicholls,,,
http://opendatacommunities.org/doc/london-borough-council/havering,London Borough of Havering,05/04/2016,1430.67,APR16L556,Langley House_a,577723,"Children, Adults & Housing",Adult Services,Adult Community Team,A31885,Physical Support,RESIDENTIAL PLACEMENTS - PRIVATE CONTRACTORS PAYMENT,Barbara Nicholls,,,
http://opendatacommunities.org/doc/london-borough-council/havering,London Borough of Havering,05/04/2016,1236.70,APR16L557,Langley House_a,577723,"Children, Adults & Housing",Adult Services,Adult Community Team,A31885,Physical Support,RESIDENTIAL PLACEMENTS - PRIVATE CONTRACTORS PAYMENT,Barbara Nicholls,,,
http://opendatacommunities.org/doc/london-borough-council/havering,London Borough of Havering,05/04/2016,-812.67,APR16L558,Langley House_a,577723,"Children, Adults & Housing",Adult Services,Adult Community Team,A31995,Support with Memory & Cognition,RESIDENTIAL CARE INCOME,Barbara Nicholls,,,
http://opendatacommunities.org/doc/london-borough-council/havering,London Borough of Havering,05/04/2016,1430.67,APR16L559,Langley House_a,577723,"Children, Adults & Housing",Adult Services,Adult Community Team,A31995,Support with Memory & Cognition,RESIDENTIAL PLACEMENTS - PRIVATE CONTRACTORS PAYMENT,Barbara Nicholls,,,
http://opendatacommunities.org/doc/london-borough-council/havering,London Borough of Havering,05/04/2016,-434.06,APR16L560,Langley House_a,577723,"Children, Adults & Housing",Adult Services,Adult Community Team,A31885,Physical Support,RESIDENTIAL CARE INCOME,Barbara Nicholls,,,
http://opendatacommunities.org/doc/london-borough-council/havering,London Borough of Havering,05/04/2016,1402.61,APR16L561,Langley House_a,577723,"Children, Adults & Housing",Adult Services,Adult Community Team,A31885,Physical Support,RESIDENTIAL PLACEMENTS - PRIVATE CONTRACTORS PAYMENT,Barbara Nicholls,,,
http://opendatacommunities.org/doc/london-borough-council/havering,London Borough of Havering,05/04/2016,1212.45,APR16L562,Langley House_a,577723,"Children, Adults & Housing",Adult Services,Adult Community Team,A31885,Physical Support,RESIDENTIAL PLACEMENTS - PRIVATE CONTRACTORS PAYMENT,Barbara Nicholls,,,
http://opendatacommunities.org/doc/london-borough-council/havering,London Borough of Havering,05/04/2016,1212.45,APR16L563,Langley House_a,577723,"Children, Adults & Housing",Adult Services,Adult Community Team,A31885,Physical Support,RESIDENTIAL PLACEMENTS - PRIVATE CONTRACTORS PAYMENT,Barbara Nicholls,,,
http://opendatacommunities.org/doc/london-borough-council/havering,London Borough of Havering,05/04/2016,1236.70,APR16L564,Langley House_a,577723,"Children, Adults & Housing",Adult Services,Adult Community Team,A31885,Physical Support,RESIDENTIAL PLACEMENTS - PRIVATE CONTRACTORS PAYMENT,Barbara Nicholls,,,
http://opendatacommunities.org/doc/london-borough-council/havering,London Borough of Havering,05/04/2016,726.33,APR16L565,Langley House_a,577723,"Children, Adults & Housing",Adult Services,Adult Community Team,A31885,Physical Support,RESPITE CARE - PRIVATE CONTRACTORS PAYMENT,Barbara Nicholls,,,
http://opendatacommunities.org/doc/london-borough-council/havering,London Borough of Havering,05/04/2016,2839.60,APR16L566,Langley House_a,577723,"Children, Adults & Housing",Adult Services,Adult Community Team,A31885,Physical Support,RESIDENTIAL PLACEMENTS - PRIVATE CONTRACTORS PAYMENT,Barbara Nicholls,,,
http://opendatacommunities.org/doc/london-borough-council/havering,London Borough of Havering,05/04/2016,779.23,APR16L567,Ebury Court_a,577724,"Children, Adults & Housing",Adult Services,Adult Community Team,A31885,Physical Support,RESIDENTIAL PLACEMENTS - PRIVATE CONTRACTORS PAYMENT,Barbara Nicholls,,,
http://opendatacommunities.org/doc/london-borough-council/havering,London Borough of Havering,05/04/2016,779.23,APR16L568,Ebury Court_a,577724,"Children, Adults & Housing",Adult Services,Adult Community Team,A31885,Physical Support,RESIDENTIAL PLACEMENTS - PRIVATE CONTRACTORS PAYMENT,Barbara Nicholls,,,
http://opendatacommunities.org/doc/london-borough-council/havering,London Borough of Havering,05/04/2016,-401.19,APR16L569,Ebury Court_a,577724,"Children, Adults & Housing",Adult Services,Adult Community Team,A31885,Physical Support,RESIDENTIAL CARE INCOME,Barbara Nicholls,,,
http://opendatacommunities.org/doc/london-borough-council/havering,London Borough of Havering,05/04/2016,779.23,APR16L570,Ebury Court_a,577724,"Children, Adults & Housing",Adult Services,Adult Community Team,A31995,Support with Memory & Cognition,RESIDENTIAL PLACEMENTS - PRIVATE CONTRACTORS PAYMENT,Barbara Nicholls,,,
http://opendatacommunities.org/doc/london-borough-council/havering,London Borough of Havering,05/04/2016,2900.00,APR16L571,Ebury Court_a,577724,"Children, Adults & Housing",Adult Services,Learning Disabilities,A32005,Learning Disability Support,RESIDENTIAL PLACEMENTS - PRIVATE CONTRACTORS PAYMENT,Barbara Nicholls,,,
http://opendatacommunities.org/doc/london-borough-council/havering,London Borough of Havering,05/04/2016,3060.00,APR16L572,Ebury Court_a,577724,"Children, Adults & Housing",Adult Services,Adult Community Team,A31885,Physical Support,RESIDENTIAL PLACEMENTS - PRIVATE CONTRACTORS PAYMENT,Barbara Nicholls,,,
http://opendatacommunities.org/doc/london-borough-council/havering,London Borough of Havering,05/04/2016,2181.84,APR16L573,Ebury Court_a,577724,"Children, Adults & Housing",Adult Services,Adult Community Team,A31885,Physical Support,RESIDENTIAL PLACEMENTS - PRIVATE CONTRACTORS PAYMENT,Barbara Nicholls,,,
http://opendatacommunities.org/doc/london-borough-council/havering,London Borough of Havering,05/04/2016,-445.14,APR16L574,Ebury Court_a,577724,"Children, Adults & Housing",Adult Services,Adult Community Team,A31885,Physical Support,RESIDENTIAL CARE INCOME,Barbara Nicholls,,,
http://opendatacommunities.org/doc/london-borough-council/havering,London Borough of Havering,05/04/2016,1402.61,APR16L575,Ebury Court_a,577724,"Children, Adults & Housing",Adult Services,Adult Community Team,A31885,Physical Support,RESIDENTIAL PLACEMENTS - PRIVATE CONTRACTORS PAYMENT,Barbara Nicholls,,,
http://opendatacommunities.org/doc/london-borough-council/havering,London Borough of Havering,05/04/2016,-566.05,APR16L576,Ebury Court_a,577724,"Children, Adults & Housing",Adult Services,Adult Community Team,A31885,Physical Support,RESIDENTIAL CARE INCOME,Barbara Nicholls,,,
http://opendatacommunities.org/doc/london-borough-council/havering,London Borough of Havering,05/04/2016,1402.61,APR16L577,Ebury Court_a,577724,"Children, Adults & Housing",Adult Services,Adult Community Team,A31885,Physical Support,RESIDENTIAL PLACEMENTS - PRIVATE CONTRACTORS PAYMENT,Barbara Nicholls,,,
http://opendatacommunities.org/doc/london-borough-council/havering,London Borough of Havering,05/04/2016,-710.43,APR16L578,Ebury Court_a,577724,"Children, Adults & Housing",Adult Services,Adult Community Team,A31885,Physical Support,RESIDENTIAL CARE INCOME,Barbara Nicholls,,,
http://opendatacommunities.org/doc/london-borough-council/havering,London Borough of Havering,05/04/2016,1402.61,APR16L579,Ebury Court_a,577724,"Children, Adults & Housing",Adult Services,Adult Community Team,A31995,Support with Memory & Cognition,RESIDENTIAL PLACEMENTS - PRIVATE CONTRACTORS PAYMENT,Barbara Nicholls,,,
http://opendatacommunities.org/doc/london-borough-council/havering,London Borough of Havering,05/04/2016,-2687.73,APR16L580,Ebury Court_a,577724,"Children, Adults & Housing",Adult Services,Adult Community Team,A31885,Physical Support,NURSING HOMES - PRIVATE CONTRACTORS PAYMENT,Barbara Nicholls,,,
http://opendatacommunities.org/doc/london-borough-council/havering,London Borough of Havering,06/04/2016,5460.78,APR16L581,Marlborough Pre-School_a,577725,"Children, Adults & Housing",DSG Learning & Achievement Service,Schools Provision and Commissioning - DSG,A33100,Nursery Educ - 3 To 4 Yr Olds,PRIVATE CONTRACTORS PAYMENT - OTHER,Sue Imbriano,,,
http://opendatacommunities.org/doc/london-borough-council/havering,London Borough of Havering,06/04/2016,-464.41,APR16L582,Moor Lane Church Pre-school_a,577726,"Children, Adults & Housing",DSG Learning & Achievement Service,Schools Provision and Commissioning - DSG,A33100,Nursery Educ - 3 To 4 Yr Olds,PRIVATE CONTRACTORS PAYMENT - OTHER,Sue Imbriano,,,
http://opendatacommunities.org/doc/london-borough-council/havering,London Borough of Havering,06/04/2016,1666.37,APR16L583,Moor Lane Church Pre-school_a,577726,"Children, Adults & Housing",DSG Learning & Achievement Service,Schools Provision and Commissioning - DSG,A33105,Nursery Education 2Yr Olds,PRIVATE CONTRACTORS PAYMENT - OTHER,Sue Imbriano,,,
http://opendatacommunities.org/doc/london-borough-council/havering,London Borough of Havering,06/04/2016,4516.02,APR16L584,Moor Lane Church Pre-school_a,577726,"Children, Adults & Housing",DSG Learning & Achievement Service,Schools Provision and Commissioning - DSG,A33100,Nursery Educ - 3 To 4 Yr Olds,PRIVATE CONTRACTORS PAYMENT - OTHER,Sue Imbriano,,,
http://opendatacommunities.org/doc/london-borough-council/havering,London Borough of Havering,06/04/2016,411.84,APR16L585,North Romford Community Centre Playgroup_a,577727,"Children, Adults & Housing",DSG Learning & Achievement Service,Schools Provision and Commissioning - DSG,A33105,Nursery Education 2Yr Olds,PRIVATE CONTRACTORS PAYMENT - OTHER,Sue Imbriano,,,
http://opendatacommunities.org/doc/london-borough-council/havering,London Borough of Havering,06/04/2016,999.65,APR16L586,North Romford Community Centre Playgroup_a,577727,"Children, Adults & Housing",DSG Learning & Achievement Service,Schools Provision and Commissioning - DSG,A33100,Nursery Educ - 3 To 4 Yr Olds,PRIVATE CONTRACTORS PAYMENT - OTHER,Sue Imbriano,,,
http://opendatacommunities.org/doc/london-borough-council/havering,London Borough of Havering,06/04/2016,19400.73,APR16L587,Oakfields Montessori Nursery_a,577728,"Children, Adults & Housing",DSG Learning & Achievement Service,Schools Provision and Commissioning - DSG,A33100,Nursery Educ - 3 To 4 Yr Olds,PRIVATE CONTRACTORS PAYMENT - OTHER,Sue Imbriano,,,
http://opendatacommunities.org/doc/london-borough-council/havering,London Borough of Havering,06/04/2016,2601.98,APR16L588,Oakfields Montessori Nursery_a,577728,"Children, Adults & Housing",DSG Learning & Achievement Service,Schools Provision and Commissioning - DSG,A33105,Nursery Education 2Yr Olds,PRIVATE CONTRACTORS PAYMENT - OTHER,Sue Imbriano,,,
http://opendatacommunities.org/doc/london-borough-council/havering,London Borough of Havering,06/04/2016,5557.04,APR16L589,Oakfields Montessori Nursery_a,577728,"Children, Adults & Housing",DSG Learning & Achievement Service,Schools Provision and Commissioning - DSG,A33100,Nursery Educ - 3 To 4 Yr Olds,PRIVATE CONTRACTORS PAYMENT - OTHER,Sue Imbriano,,,
http://opendatacommunities.org/doc/london-borough-council/havering,London Borough of Havering,06/04/2016,9142.22,APR16L590,Cognita Schools Group t/a Oakfields Montessori School_a,577729,"Children, Adults & Housing",DSG Learning & Achievement Service,Schools Provision and Commissioning - DSG,A33100,Nursery Educ - 3 To 4 Yr Olds,PRIVATE CONTRACTORS PAYMENT - OTHER,Sue Imbriano,,,
http://opendatacommunities.org/doc/london-borough-council/havering,London Borough of Havering,06/04/2016,494.21,APR16L591,Orange Tree Playgroup_a,577730,"Children, Adults & Housing",DSG Learning & Achievement Service,Schools Provision and Commissioning - DSG,A33105,Nursery Education 2Yr Olds,PRIVATE CONTRACTORS PAYMENT - OTHER,Sue Imbriano,,,
http://opendatacommunities.org/doc/london-borough-council/havering,London Borough of Havering,06/04/2016,3888.69,APR16L592,Orange Tree Playgroup_a,577730,"Children, Adults & Housing",DSG Learning & Achievement Service,Schools Provision and Commissioning - DSG,A33100,Nursery Educ - 3 To 4 Yr Olds,PRIVATE CONTRACTORS PAYMENT - OTHER,Sue Imbriano,,,
http://opendatacommunities.org/doc/london-borough-council/havering,London Borough of Havering,06/04/2016,16373.36,APR16L593,FIG Playgroup & Playscheme_a,577731,"Children, Adults & Housing",DSG Learning & Achievement Service,Schools Provision and Commissioning - DSG,A33100,Nursery Educ - 3 To 4 Yr Olds,PRIVATE CONTRACTORS PAYMENT - OTHER,Sue Imbriano,,,
http://opendatacommunities.org/doc/london-borough-council/havering,London Borough of Havering,06/04/2016,3493.25,APR16L594,FIG Playgroup & Playscheme_a,577731,"Children, Adults & Housing",DSG Learning & Achievement Service,Schools Provision and Commissioning - DSG,A33105,Nursery Education 2Yr Olds,PRIVATE CONTRACTORS PAYMENT - OTHER,Sue Imbriano,,,
http://opendatacommunities.org/doc/london-borough-council/havering,London Borough of Havering,06/04/2016,4780.23,APR16L595,FIG Playgroup & Playscheme_a,577731,"Children, Adults & Housing",DSG Learning & Achievement Service,Schools Provision and Commissioning - DSG,A33100,Nursery Educ - 3 To 4 Yr Olds,PRIVATE CONTRACTORS PAYMENT - OTHER,Sue Imbriano,,,
http://opendatacommunities.org/doc/london-borough-council/havering,London Borough of Havering,06/04/2016,6974.96,APR16L596,Raphael Independent School_a,577733,"Children, Adults & Housing",DSG Learning & Achievement Service,Schools Provision and Commissioning - DSG,A33100,Nursery Educ - 3 To 4 Yr Olds,PRIVATE CONTRACTORS PAYMENT - OTHER,Sue Imbriano,,,
http://opendatacommunities.org/doc/london-borough-council/havering,London Borough of Havering,06/04/2016,902.07,APR16L597,Raphael Independent School_a,577733,"Children, Adults & Housing",DSG Learning & Achievement Service,Schools Provision and Commissioning - DSG,A33100,Nursery Educ - 3 To 4 Yr Olds,PRIVATE CONTRACTORS PAYMENT - OTHER,Sue Imbriano,,,
http://opendatacommunities.org/doc/london-borough-council/havering,London Borough of Havering,06/04/2016,576.58,APR16L598,Romford United Reformed Church Playgroup_a,577734,"Children, Adults & Housing",DSG Learning & Achievement Service,Schools Provision and Commissioning - DSG,A33105,Nursery Education 2Yr Olds,PRIVATE CONTRACTORS PAYMENT - OTHER,Sue Imbriano,,,
http://opendatacommunities.org/doc/london-borough-council/havering,London Borough of Havering,06/04/2016,3606.72,APR16L599,Romford United Reformed Church Playgroup_a,577734,"Children, Adults & Housing",DSG Learning & Achievement Service,Schools Provision and Commissioning - DSG,A33100,Nursery Educ - 3 To 4 Yr Olds,PRIVATE CONTRACTORS PAYMENT - OTHER,Sue Imbriano,,,
http://opendatacommunities.org/doc/london-borough-council/havering,London Borough of Havering,06/04/2016,2669.25,APR16L600,Springfield Playgroup_a,577735,"Children, Adults & Housing",DSG Learning & Achievement Service,Schools Provision and Commissioning - DSG,A33100,Nursery Educ - 3 To 4 Yr Olds,PRIVATE CONTRACTORS PAYMENT - OTHER,Sue Imbriano,,,
http://opendatacommunities.org/doc/london-borough-council/havering,London Borough of Havering,06/04/2016,3903.90,APR16L601,Springfield Playgroup_a,577735,"Children, Adults & Housing",DSG Learning & Achievement Service,Schools Provision and Commissioning - DSG,A33100,Nursery Educ - 3 To 4 Yr Olds,PRIVATE CONTRACTORS PAYMENT - OTHER,Sue Imbriano,,,
http://opendatacommunities.org/doc/london-borough-council/havering,London Borough of Havering,29/04/2016,500.00,APR16L602,Sparrows St Georges Harold Hill_a,577736,"Children, Adults & Housing",DSG Learning & Achievement Service,Special Educational Needs and Disabilities - DSG,A33250,Individual Support Special Education Needs and Support,PRIVATE CONTRACTORS PAYMENT - OTHER,Sue Imbriano,,,
http://opendatacommunities.org/doc/london-borough-council/havering,London Borough of Havering,06/04/2016,18822.21,APR16L603,Sparrows St Georges Harold Hill_a,577736,"Children, Adults & Housing",DSG Learning & Achievement Service,Schools Provision and Commissioning - DSG,A33100,Nursery Educ - 3 To 4 Yr Olds,PRIVATE CONTRACTORS PAYMENT - OTHER,Sue Imbriano,,,
http://opendatacommunities.org/doc/london-borough-council/havering,London Borough of Havering,06/04/2016,5036.06,APR16L604,Sparrows St Georges Harold Hill_a,577736,"Children, Adults & Housing",DSG Learning & Achievement Service,Schools Provision and Commissioning - DSG,A33105,Nursery Education 2Yr Olds,PRIVATE CONTRACTORS PAYMENT - OTHER,Sue Imbriano,,,
http://opendatacommunities.org/doc/london-borough-council/havering,London Borough of Havering,06/04/2016,4224.01,APR16L605,Sparrows St Georges Harold Hill_a,577736,"Children, Adults & Housing",DSG Learning & Achievement Service,Schools Provision and Commissioning - DSG,A33100,Nursery Educ - 3 To 4 Yr Olds,PRIVATE CONTRACTORS PAYMENT - OTHER,Sue Imbriano,,,
http://opendatacommunities.org/doc/london-borough-council/havering,London Borough of Havering,06/04/2016,1564.99,APR16L606,Val Robinson t/a St Johns Pre-School_a,577738,"Children, Adults & Housing",DSG Learning & Achievement Service,Schools Provision and Commissioning - DSG,A33105,Nursery Education 2Yr Olds,PRIVATE CONTRACTORS PAYMENT - OTHER,Sue Imbriano,,,
http://opendatacommunities.org/doc/london-borough-council/havering,London Borough of Havering,06/04/2016,8323.38,APR16L607,Val Robinson t/a St Johns Pre-School_a,577738,"Children, Adults & Housing",DSG Learning & Achievement Service,Schools Provision and Commissioning - DSG,A33100,Nursery Educ - 3 To 4 Yr Olds,PRIVATE CONTRACTORS PAYMENT - OTHER,Sue Imbriano,,,
http://opendatacommunities.org/doc/london-borough-council/havering,London Borough of Havering,06/04/2016,3393.39,APR16L608,St Laurence Playgroup_a,577740,"Children, Adults & Housing",DSG Learning & Achievement Service,Schools Provision and Commissioning - DSG,A33100,Nursery Educ - 3 To 4 Yr Olds,PRIVATE CONTRACTORS PAYMENT - OTHER,Sue Imbriano,,,
http://opendatacommunities.org/doc/london-borough-council/havering,London Borough of Havering,06/04/2016,5576.76,APR16L609,St Marys Hare Park School_a,577741,"Children, Adults & Housing",DSG Learning & Achievement Service,Schools Provision and Commissioning - DSG,A33100,Nursery Educ - 3 To 4 Yr Olds,PRIVATE CONTRACTORS PAYMENT - OTHER,Sue Imbriano,,,
http://opendatacommunities.org/doc/london-borough-council/havering,London Borough of Havering,06/04/2016,1153.15,APR16L610,The Old School Playgroup_a,577743,"Children, Adults & Housing",DSG Learning & Achievement Service,Schools Provision and Commissioning - DSG,A33105,Nursery Education 2Yr Olds,PRIVATE CONTRACTORS PAYMENT - OTHER,Sue Imbriano,,,
http://opendatacommunities.org/doc/london-borough-council/havering,London Borough of Havering,06/04/2016,9650.55,APR16L611,The Old School Playgroup_a,577743,"Children, Adults & Housing",DSG Learning & Achievement Service,Schools Provision and Commissioning - DSG,A33100,Nursery Educ - 3 To 4 Yr Olds,PRIVATE CONTRACTORS PAYMENT - OTHER,Sue Imbriano,,,
http://opendatacommunities.org/doc/london-borough-council/havering,London Borough of Havering,06/04/2016,402.24,APR16L612,The Gaynes Park Nursery Ltd_a,577744,"Children, Adults & Housing",DSG Learning & Achievement Service,Schools Provision and Commissioning - DSG,A33100,Nursery Educ - 3 To 4 Yr Olds,PRIVATE CONTRACTORS PAYMENT - OTHER,Sue Imbriano,,,
http://opendatacommunities.org/doc/london-borough-council/havering,London Borough of Havering,06/04/2016,2216.99,APR16L613,The Gaynes Park Nursery Ltd_a,577744,"Children, Adults & Housing",DSG Learning & Achievement Service,Schools Provision and Commissioning - DSG,A33100,Nursery Educ - 3 To 4 Yr Olds,PRIVATE CONTRACTORS PAYMENT - OTHER,Sue Imbriano,,,
http://opendatacommunities.org/doc/london-borough-council/havering,London Borough of Havering,06/04/2016,8657.04,APR16L614,Tweed Way Pre-School_a,577745,"Children, Adults & Housing",DSG Learning & Achievement Service,Schools Provision and Commissioning - DSG,A33100,Nursery Educ - 3 To 4 Yr Olds,PRIVATE CONTRACTORS PAYMENT - OTHER,Sue Imbriano,,,
http://opendatacommunities.org/doc/london-borough-council/havering,London Borough of Havering,06/04/2016,3411.07,APR16L615,Tweed Way Pre-School_a,577745,"Children, Adults & Housing",DSG Learning & Achievement Service,Schools Provision and Commissioning - DSG,A33100,Nursery Educ - 3 To 4 Yr Olds,PRIVATE CONTRACTORS PAYMENT - OTHER,Sue Imbriano,,,
http://opendatacommunities.org/doc/london-borough-council/havering,London Borough of Havering,06/04/2016,10937.55,APR16L616,Wingletye Pre School_a,577746,"Children, Adults & Housing",DSG Learning & Achievement Service,Schools Provision and Commissioning - DSG,A33100,Nursery Educ - 3 To 4 Yr Olds,PRIVATE CONTRACTORS PAYMENT - OTHER,Sue Imbriano,,,
http://opendatacommunities.org/doc/london-borough-council/havering,London Borough of Havering,06/04/2016,535.39,APR16L617,Wingletye Pre School_a,577746,"Children, Adults & Housing",DSG Learning & Achievement Service,Schools Provision and Commissioning - DSG,A33105,Nursery Education 2Yr Olds,PRIVATE CONTRACTORS PAYMENT - OTHER,Sue Imbriano,,,
http://opendatacommunities.org/doc/london-borough-council/havering,London Borough of Havering,06/04/2016,5329.74,APR16L618,Wingletye Pre School_a,577746,"Children, Adults & Housing",DSG Learning & Achievement Service,Schools Provision and Commissioning - DSG,A33100,Nursery Educ - 3 To 4 Yr Olds,PRIVATE CONTRACTORS PAYMENT - OTHER,Sue Imbriano,,,
http://opendatacommunities.org/doc/london-borough-council/havering,London Borough of Havering,06/04/2016,1623.44,APR16L619,Wingletye Playgroup_a,577747,"Children, Adults & Housing",DSG Learning & Achievement Service,Schools Provision and Commissioning - DSG,A33100,Nursery Educ - 3 To 4 Yr Olds,PRIVATE CONTRACTORS PAYMENT - OTHER,Sue Imbriano,,,
http://opendatacommunities.org/doc/london-borough-council/havering,London Borough of Havering,06/04/2016,617.76,APR16L620,Wingletye Playgroup_a,577747,"Children, Adults & Housing",DSG Learning & Achievement Service,Schools Provision and Commissioning - DSG,A33105,Nursery Education 2Yr Olds,PRIVATE CONTRACTORS PAYMENT - OTHER,Sue Imbriano,,,
http://opendatacommunities.org/doc/london-borough-council/havering,London Borough of Havering,06/04/2016,4554.55,APR16L621,Wingletye Playgroup_a,577747,"Children, Adults & Housing",DSG Learning & Achievement Service,Schools Provision and Commissioning - DSG,A33100,Nursery Educ - 3 To 4 Yr Olds,PRIVATE CONTRACTORS PAYMENT - OTHER,Sue Imbriano,,,
http://opendatacommunities.org/doc/london-borough-council/havering,London Borough of Havering,05/04/2016,955.43,APR16L622,The Cottage Residential Care Home_a,577748,"Children, Adults & Housing",Adult Services,Learning Disabilities,A32005,Learning Disability Support,RESIDENTIAL PLACEMENTS - PRIVATE CONTRACTORS PAYMENT,Barbara Nicholls,,,
http://opendatacommunities.org/doc/london-borough-council/havering,London Borough of Havering,05/04/2016,1719.77,APR16L623,The Cottage Residential Care Home_a,577748,"Children, Adults & Housing",Adult Services,Learning Disabilities,A32005,Learning Disability Support,RESIDENTIAL PLACEMENTS - PRIVATE CONTRACTORS PAYMENT,Barbara Nicholls,,,
http://opendatacommunities.org/doc/london-borough-council/havering,London Borough of Havering,05/04/2016,717.97,APR16L624,The Hornchurch Nursing Centre_a,577749,"Children, Adults & Housing",Adult Services,Adult Community Team,A31885,Physical Support,NURSING HOMES - PRIVATE CONTRACTORS PAYMENT,Barbara Nicholls,,,
http://opendatacommunities.org/doc/london-borough-council/havering,London Borough of Havering,05/04/2016,717.97,APR16L625,The Hornchurch Nursing Centre_a,577749,"Children, Adults & Housing",Adult Services,Adult Community Team,A31885,Physical Support,NURSING HOMES - PRIVATE CONTRACTORS PAYMENT,Barbara Nicholls,,,
http://opendatacommunities.org/doc/london-borough-council/havering,London Borough of Havering,05/04/2016,717.97,APR16L626,The Hornchurch Nursing Centre_a,577749,"Children, Adults & Housing",Adult Services,Adult Community Team,A31885,Physical Support,NURSING HOMES - PRIVATE CONTRACTORS PAYMENT,Barbara Nicholls,,,
http://opendatacommunities.org/doc/london-borough-council/havering,London Borough of Havering,05/04/2016,673.59,APR16L627,The Hornchurch Nursing Centre_a,577749,"Children, Adults & Housing",Adult Services,Adult Community Team,A31885,Physical Support,RESIDENTIAL PLACEMENTS - PRIVATE CONTRACTORS PAYMENT,Barbara Nicholls,,,
http://opendatacommunities.org/doc/london-borough-council/havering,London Borough of Havering,05/04/2016,740.94,APR16L628,The Hornchurch Nursing Centre_a,577749,"Children, Adults & Housing",Adult Services,Adult Community Team,A31995,Support with Memory & Cognition,NURSING HOMES - PRIVATE CONTRACTORS PAYMENT,Barbara Nicholls,,,
http://opendatacommunities.org/doc/london-borough-council/havering,London Borough of Havering,05/04/2016,673.59,APR16L629,The Hornchurch Nursing Centre_a,577749,"Children, Adults & Housing",Adult Services,Adult Community Team,A31885,Physical Support,RESIDENTIAL PLACEMENTS - PRIVATE CONTRACTORS PAYMENT,Barbara Nicholls,,,
http://opendatacommunities.org/doc/london-borough-council/havering,London Borough of Havering,05/04/2016,673.59,APR16L630,The Hornchurch Nursing Centre_a,577749,"Children, Adults & Housing",Adult Services,Adult Community Team,A31885,Physical Support,RESIDENTIAL PLACEMENTS - PRIVATE CONTRACTORS PAYMENT,Barbara Nicholls,,,
http://opendatacommunities.org/doc/london-borough-council/havering,London Borough of Havering,05/04/2016,-451.19,APR16L631,The Hornchurch Nursing Centre_a,577749,"Children, Adults & Housing",Adult Services,Adult Community Team,A31995,Support with Memory & Cognition,NURSING CARE INCOME,Barbara Nicholls,,,
http://opendatacommunities.org/doc/london-borough-council/havering,London Borough of Havering,05/04/2016,740.94,APR16L632,The Hornchurch Nursing Centre_a,577749,"Children, Adults & Housing",Adult Services,Adult Community Team,A31995,Support with Memory & Cognition,NURSING HOMES - PRIVATE CONTRACTORS PAYMENT,Barbara Nicholls,,,
http://opendatacommunities.org/doc/london-borough-council/havering,London Borough of Havering,05/04/2016,740.94,APR16L633,The Hornchurch Nursing Centre_a,577749,"Children, Adults & Housing",Adult Services,Adult Community Team,A31885,Physical Support,NURSING HOMES - PRIVATE CONTRACTORS PAYMENT,Barbara Nicholls,,,
http://opendatacommunities.org/doc/london-borough-council/havering,London Borough of Havering,05/04/2016,740.94,APR16L634,The Hornchurch Nursing Centre_a,577749,"Children, Adults & Housing",Adult Services,Adult Community Team,A31885,Physical Support,NURSING HOMES - PRIVATE CONTRACTORS PAYMENT,Barbara Nicholls,,,
http://opendatacommunities.org/doc/london-borough-council/havering,London Borough of Havering,05/04/2016,740.94,APR16L635,The Hornchurch Nursing Centre_a,577749,"Children, Adults & Housing",Adult Services,Adult Community Team,A31995,Support with Memory & Cognition,NURSING HOMES - PRIVATE CONTRACTORS PAYMENT,Barbara Nicholls,,,
http://opendatacommunities.org/doc/london-borough-council/havering,London Borough of Havering,05/04/2016,779.23,APR16L636,The Hornchurch Nursing Centre_a,577749,"Children, Adults & Housing",Adult Services,Adult Community Team,A31995,Support with Memory & Cognition,RESIDENTIAL PLACEMENTS - PRIVATE CONTRACTORS PAYMENT,Barbara Nicholls,,,
http://opendatacommunities.org/doc/london-borough-council/havering,London Borough of Havering,05/04/2016,779.23,APR16L637,The Hornchurch Nursing Centre_a,577749,"Children, Adults & Housing",Adult Services,Adult Community Team,A31885,Physical Support,RESIDENTIAL PLACEMENTS - PRIVATE CONTRACTORS PAYMENT,Barbara Nicholls,,,
http://opendatacommunities.org/doc/london-borough-council/havering,London Borough of Havering,05/04/2016,740.94,APR16L638,The Hornchurch Nursing Centre_a,577749,"Children, Adults & Housing",Adult Services,Adult Community Team,A31885,Physical Support,NURSING HOMES - PRIVATE CONTRACTORS PAYMENT,Barbara Nicholls,,,
http://opendatacommunities.org/doc/london-borough-council/havering,London Borough of Havering,05/04/2016,779.23,APR16L639,The Hornchurch Nursing Centre_a,577749,"Children, Adults & Housing",Adult Services,Adult Community Team,A31995,Support with Memory & Cognition,RESIDENTIAL PLACEMENTS - PRIVATE CONTRACTORS PAYMENT,Barbara Nicholls,,,
http://opendatacommunities.org/doc/london-borough-council/havering,London Borough of Havering,05/04/2016,740.94,APR16L640,The Hornchurch Nursing Centre_a,577749,"Children, Adults & Housing",Adult Services,Adult Community Team,A31885,Physical Support,NURSING HOMES - PRIVATE CONTRACTORS PAYMENT,Barbara Nicholls,,,
http://opendatacommunities.org/doc/london-borough-council/havering,London Borough of Havering,05/04/2016,740.94,APR16L641,The Hornchurch Nursing Centre_a,577749,"Children, Adults & Housing",Adult Services,Adult Community Team,A31885,Physical Support,NURSING HOMES - PRIVATE CONTRACTORS PAYMENT,Barbara Nicholls,,,
http://opendatacommunities.org/doc/london-borough-council/havering,London Borough of Havering,05/04/2016,2742.96,APR16L642,The Hornchurch Nursing Centre_a,577749,"Children, Adults & Housing",Adult Services,Adult Community Team,A31995,Support with Memory & Cognition,NURSING HOMES - PRIVATE CONTRACTORS PAYMENT,Barbara Nicholls,,,
http://opendatacommunities.org/doc/london-borough-council/havering,London Borough of Havering,05/04/2016,2010.32,APR16L643,The Hornchurch Nursing Centre_a,577749,"Children, Adults & Housing",Adult Services,Adult Community Team,A31885,Physical Support,NURSING HOMES - PRIVATE CONTRACTORS PAYMENT,Barbara Nicholls,,,
http://opendatacommunities.org/doc/london-borough-council/havering,London Borough of Havering,05/04/2016,-578.98,APR16L644,The Hornchurch Nursing Centre_a,577749,"Children, Adults & Housing",Adult Services,Adult Community Team,A31885,Physical Support,NURSING CARE INCOME,Barbara Nicholls,,,
http://opendatacommunities.org/doc/london-borough-council/havering,London Borough of Havering,05/04/2016,1292.35,APR16L645,The Hornchurch Nursing Centre_a,577749,"Children, Adults & Housing",Adult Services,Adult Community Team,A31885,Physical Support,NURSING HOMES - PRIVATE CONTRACTORS PAYMENT,Barbara Nicholls,,,
http://opendatacommunities.org/doc/london-borough-council/havering,London Borough of Havering,05/04/2016,1292.35,APR16L646,The Hornchurch Nursing Centre_a,577749,"Children, Adults & Housing",Adult Services,Adult Community Team,A31885,Physical Support,NURSING HOMES - PRIVATE CONTRACTORS PAYMENT,Barbara Nicholls,,,
http://opendatacommunities.org/doc/london-borough-council/havering,London Borough of Havering,05/04/2016,1292.35,APR16L647,The Hornchurch Nursing Centre_a,577749,"Children, Adults & Housing",Adult Services,Adult Community Team,A31885,Physical Support,NURSING HOMES - PRIVATE CONTRACTORS PAYMENT,Barbara Nicholls,,,
http://opendatacommunities.org/doc/london-borough-council/havering,London Borough of Havering,05/04/2016,-636.45,APR16L648,The Hornchurch Nursing Centre_a,577749,"Children, Adults & Housing",Adult Services,Adult Community Team,A31885,Physical Support,RESIDENTIAL CARE INCOME,Barbara Nicholls,,,
